{"text_format":"1","workbook":"xlsx","n_sheets":4,"sheets":["متابعة الشيكات","شيكات قيد التحصيل","شيكات مجيرة","تقرير الشيكات"],"not_rendered":{"charts":0,"images":0,"macros":1,"external_links":1,"defined_names":2,"comments":0,"pivot_tables":0},"unopened":[],"bounds":{"document_bytes":16777216,"sheet_cells":100000,"rows_first":2000,"rows_last":500,"rows_between":2000,"halvings":0,"cell_chars":16384,"cell_head_chars":4096},"cells_cut":0,"cells_raw":0,"read":"whole","date_system":"1900"}

{"sheet":"متابعة الشيكات","index":0,"n_rows":13,"n_cols":15,"rows_kept":13,"cut":false,"hidden":false,"merged":[]}
[2020,null,null,null,null,null,"الوقت الان",null,{"$f":"NOW()","v":43903.980838773146},"←خاص الوقت المتبقي للصرف",{"$f":"NOW()","v":"2020-03-13T23:32:24.470"},"الوقت المتبقي لصرف الشيكات",null,null,"باقي بالايام لصرف الشيك"]
[null,null,null,null,null,null,"التاريخ",null,{"$f":"TODAY()","v":"2020-03-13"},"مجموع الشيكات",{"$f":"SUM(G3:G528)","v":12200}]
["رقم ","اسم الزبون","نوع السيارة","لون السيارة","قوة المحرك","رقمها بالشراء","قيمة الشيك ","رقم الشيك","البنك","تاريخ الاستحقاق","اسم صاحب الشيك","ترحيل",null,{"$f":"COUNTIF('[1]شيكات مجيرة'!$H$4:$H$1000,'[1]شيكات قيد التحصيل'!#REF!)","v":{"$error":"#VALUE!"}}]
[21,"محمد عايد محمد عوض","كيا مورنينج فتحه","بيج",1000,6,2200,70,"الاسلامي العربي","30/1/2021","محمد عايد محمد عوض يطا الحيله بجانب مدرسه الحيله 0502957643",null,null,{"$f":"COUNTIF('[1]شيكات مجيرة'!$H$4:$H$1000,'[1]شيكات قيد التحصيل'!H3)","v":{"$error":"#VALUE!"}}]
[22,"محمد عايد محمد عوض","كيا مورنينج فتحه","بيج",1000,6,2500,501,"القاهرة عمان","28/2/2021","عيسى خليل محمود مخامرة يطا 0502957643",null,null,{"$f":"COUNTIF('[1]شيكات مجيرة'!$H$4:$H$1000,'[1]شيكات قيد التحصيل'!H4)","v":{"$error":"#VALUE!"}}]
[23,"محمد عايد محمد عوض","كيا مورنينج فتحه","بيج",1000,6,2500,507,"القاهرة عمان","30/3/2021","عيسى خليل محمود مخامرة يطا 0502957644","ترحيل",null,{"$f":"COUNTIF('[1]شيكات مجيرة'!$H$4:$H$1000,'[1]شيكات قيد التحصيل'!H5)","v":{"$error":"#VALUE!"}}]
["رقم ","اسم الزبون","نوع السيارة","لون السيارة","قوة المحرك","رقمها بالشراء","قيمة الشيك ","رقم الشيك","البنك","تاريخ الاستحقاق","اسم صاحب الشيك",null,null,{"$f":"COUNTIF('[1]شيكات مجيرة'!$H$4:$H$1000,'[1]شيكات قيد التحصيل'!H6)","v":{"$error":"#VALUE!"}}]
[21,"خليل","بولو","بيج",1200,7,3000,501,"فلسطين","2020-03-30","خليل"]
[22,"خليل","بولو","بيج",1200,7,2000,502,"القدس","2020-04-30","خليل"]
["رقم ","اسم الزبون","نوع السيارة","لون السيارة","قوة المحرك","رقمها بالشراء","قيمة الشيك ","رقم الشيك","البنك","تاريخ الاستحقاق","اسم صاحب الشيك",null,null,{"$f":"COUNTIF('[1]شيكات مجيرة'!$H$4:$H$1000,'[1]شيكات قيد التحصيل'!H9)","v":{"$error":"#VALUE!"}}]
[1,"مشكلة عند كل عملية ترحيل الى شيت \"شيكات مجيرة \"يعمل على تكرار ترحيل البيانات المظللة عند اضافة صف التفاصيل \"رقم اسم الزبون نوع السيارة ..ألخ\""]
[2,"مشكلة في صفحة \"شيكات قيد التحصيل \" يحذف كل الشيكات التي تحمل نفس رقم الشيك (هناك شيكات تتطابق رقمها )) ويحذف صف التفاصيل \"رقم \"رقم اسم الزبون نوع السيارة ..الخ\"\"يرجى عمل كود الحذف عند تطابق كل البيانات المدرجة إن امكن"]
[3,"اخر طلب اضافة شيت تقرير الشيكات يعمل على ترتيب الشيكات حسب تاريخ الصرف وشكرا من العماق"]

{"sheet":"شيكات قيد التحصيل","index":1,"n_rows":992,"n_cols":12,"rows_kept":992,"cut":false,"hidden":false,"merged":[]}
[null,null,null,null,null,null,null,null,"مجموع الشيكات الكل",null,"مجموع الشيكات بالصندوق"]
[null,null,null,null,null,null,null,null,{"$f":"SUM(G:G)","v":5500},null,{"$f":"SUM(G:G)","v":5500}]
["رقم ","اسم الزبون","نوع السيارة","لون السيارة","قوة المحرك","رقمها بالشراء","قيمة الشيك ","رقم الشيك","البنك","تاريخ الاستحقاق","اسم صاحب الشيك",{"$f":"IF(AND(H3<>\"\",H3<>\"رقم الشيك\"),COUNTIF('شيكات مجيرة'!$H$4:$H$996,'شيكات قيد التحصيل'!H3),\"0\")","v":"0"}]
["رقم ","اسم الزبون","نوع السيارة","لون السيارة","قوة المحرك","رقمها بالشراء","قيمة الشيك ","رقم الشيك","البنك","تاريخ الاستحقاق","اسم صاحب الشيك",{"$f":"IF(AND(H4<>\"\",H4<>\"رقم الشيك\"),COUNTIF('شيكات مجيرة'!$H$4:$H$996,'شيكات قيد التحصيل'!H4),\"0\")","v":"0"}]
[22,"محمد عايد محمد عوض","كيا مورنينج فتحه","بيج",1000,6,2500,20,"القاهرة عمان","28/2/2021","عيسى خليل محمود مخامرة يطا 0502957643",{"$f":"IF(AND(H5<>\"\",H5<>\"رقم الشيك\"),COUNTIF('شيكات مجيرة'!$H$4:$H$996,'شيكات قيد التحصيل'!H5),\"0\")","v":0}]
[21,"خليل","بولو","بيج",1200,7,3000,13,"فلسطين","2020-03-30","خليل",{"$f":"IF(AND(H6<>\"\",H6<>\"رقم الشيك\"),COUNTIF('شيكات مجيرة'!$H$4:$H$996,'شيكات قيد التحصيل'!H6),\"0\")","v":0}]
[null,null,null,null,null,null,null,null,null,null,null,{"$f":"IF(AND(H7<>\"\",H7<>\"رقم الشيك\"),COUNTIF('شيكات مجيرة'!$H$4:$H$996,'شيكات قيد التحصيل'!H7),\"0\")","v":"0"}]
[null,null,null,null,null,null,null,null,null,null,null,{"$f":"IF(AND(H8<>\"\",H8<>\"رقم الشيك\"),COUNTIF('شيكات مجيرة'!$H$4:$H$996,'شيكات قيد التحصيل'!H8),\"0\")","v":"0"}]
[null,null,null,null,null,null,null,null,null,null,null,{"$f":"IF(AND(H9<>\"\",H9<>\"رقم الشيك\"),COUNTIF('شيكات مجيرة'!$H$4:$H$996,'شيكات قيد التحصيل'!H9),\"0\")","v":"0"}]
[null,null,null,null,null,null,null,null,null,null,null,{"$f":"IF(AND(H10<>\"\",H10<>\"رقم الشيك\"),COUNTIF('شيكات مجيرة'!$H$4:$H$996,'شيكات قيد التحصيل'!H10),\"0\")","v":"0"}]
[null,null,null,null,null,null,null,null,null,null,null,{"$f":"IF(AND(H11<>\"\",H11<>\"رقم الشيك\"),COUNTIF('شيكات مجيرة'!$H$4:$H$996,'شيكات قيد التحصيل'!H11),\"0\")","v":"0"}]
[null,null,null,null,null,null,null,null,null,null,null,{"$f":"IF(AND(H12<>\"\",H12<>\"رقم الشيك\"),COUNTIF('شيكات مجيرة'!$H$4:$H$996,'شيكات قيد التحصيل'!H12),\"0\")","v":"0"}]
[null,null,null,null,null,null,null,null,null,null,null,{"$f":"IF(AND(H13<>\"\",H13<>\"رقم الشيك\"),COUNTIF('شيكات مجيرة'!$H$4:$H$996,'شيكات قيد التحصيل'!H13),\"0\")","v":"0"}]
[null,null,null,null,null,null,null,null,null,null,null,{"$f":"IF(AND(H14<>\"\",H14<>\"رقم الشيك\"),COUNTIF('شيكات مجيرة'!$H$4:$H$996,'شيكات قيد التحصيل'!H14),\"0\")","v":"0"}]
[null,null,null,null,null,null,null,null,null,null,null,{"$f":"IF(AND(H15<>\"\",H15<>\"رقم الشيك\"),COUNTIF('شيكات مجيرة'!$H$4:$H$996,'شيكات قيد التحصيل'!H15),\"0\")","v":"0"}]
[null,null,null,null,null,null,null,null,null,null,null,{"$f":"IF(AND(H16<>\"\",H16<>\"رقم الشيك\"),COUNTIF('شيكات مجيرة'!$H$4:$H$996,'شيكات قيد التحصيل'!H16),\"0\")","v":"0"}]
[null,null,null,null,null,null,null,null,null,null,null,{"$f":"IF(AND(H17<>\"\",H17<>\"رقم الشيك\"),COUNTIF('شيكات مجيرة'!$H$4:$H$996,'شيكات قيد التحصيل'!H17),\"0\")","v":"0"}]
[null,null,null,null,null,null,null,null,null,null,null,{"$f":"IF(AND(H18<>\"\",H18<>\"رقم الشيك\"),COUNTIF('شيكات مجيرة'!$H$4:$H$996,'شيكات قيد التحصيل'!H18),\"0\")","v":"0"}]
[null,null,null,null,null,null,null,null,null,null,null,{"$f":"IF(AND(H19<>\"\",H19<>\"رقم الشيك\"),COUNTIF('شيكات مجيرة'!$H$4:$H$996,'شيكات قيد التحصيل'!H19),\"0\")","v":"0"}]
[null,null,null,null,null,null,null,null,null,null,null,{"$f":"IF(AND(H20<>\"\",H20<>\"رقم الشيك\"),COUNTIF('شيكات مجيرة'!$H$4:$H$996,'شيكات قيد التحصيل'!H20),\"0\")","v":"0"}]
[null,null,null,null,null,null,null,null,null,null,null,{"$f":"IF(AND(H21<>\"\",H21<>\"رقم الشيك\"),COUNTIF('شيكات مجيرة'!$H$4:$H$996,'شيكات قيد التحصيل'!H21),\"0\")","v":"0"}]
[null,null,null,null,null,null,null,null,null,null,null,{"$f":"IF(AND(H22<>\"\",H22<>\"رقم الشيك\"),COUNTIF('شيكات مجيرة'!$H$4:$H$996,'شيكات قيد التحصيل'!H22),\"0\")","v":"0"}]
[null,null,null,null,null,null,null,null,null,null,null,{"$f":"IF(AND(H23<>\"\",H23<>\"رقم الشيك\"),COUNTIF('شيكات مجيرة'!$H$4:$H$996,'شيكات قيد التحصيل'!H23),\"0\")","v":"0"}]
[null,null,null,null,null,null,null,null,null,null,null,{"$f":"IF(AND(H24<>\"\",H24<>\"رقم الشيك\"),COUNTIF('شيكات مجيرة'!$H$4:$H$996,'شيكات قيد التحصيل'!H24),\"0\")","v":"0"}]
[null,null,null,null,null,null,null,null,null,null,null,{"$f":"IF(AND(H25<>\"\",H25<>\"رقم الشيك\"),COUNTIF('شيكات مجيرة'!$H$4:$H$996,'شيكات قيد التحصيل'!H25),\"0\")","v":"0"}]
[null,null,null,null,null,null,null,null,null,null,null,{"$f":"IF(AND(H26<>\"\",H26<>\"رقم الشيك\"),COUNTIF('شيكات مجيرة'!$H$4:$H$996,'شيكات قيد التحصيل'!H26),\"0\")","v":"0"}]
[null,null,null,null,null,null,null,null,null,null,null,{"$f":"IF(AND(H27<>\"\",H27<>\"رقم الشيك\"),COUNTIF('شيكات مجيرة'!$H$4:$H$996,'شيكات قيد التحصيل'!H27),\"0\")","v":"0"}]
[null,null,null,null,null,null,null,null,null,null,null,{"$f":"IF(AND(H28<>\"\",H28<>\"رقم الشيك\"),COUNTIF('شيكات مجيرة'!$H$4:$H$996,'شيكات قيد التحصيل'!H28),\"0\")","v":"0"}]
[null,null,null,null,null,null,null,null,null,null,null,{"$f":"IF(AND(H29<>\"\",H29<>\"رقم الشيك\"),COUNTIF('شيكات مجيرة'!$H$4:$H$996,'شيكات قيد التحصيل'!H29),\"0\")","v":"0"}]
[null,null,null,null,null,null,null,null,null,null,null,{"$f":"IF(AND(H30<>\"\",H30<>\"رقم الشيك\"),COUNTIF('شيكات مجيرة'!$H$4:$H$996,'شيكات قيد التحصيل'!H30),\"0\")","v":"0"}]
[null,null,null,null,null,null,null,null,null,null,null,{"$f":"IF(AND(H31<>\"\",H31<>\"رقم الشيك\"),COUNTIF('شيكات مجيرة'!$H$4:$H$996,'شيكات قيد التحصيل'!H31),\"0\")","v":"0"}]
[null,null,null,null,null,null,null,null,null,null,null,{"$f":"IF(AND(H32<>\"\",H32<>\"رقم الشيك\"),COUNTIF('شيكات مجيرة'!$H$4:$H$996,'شيكات قيد التحصيل'!H32),\"0\")","v":"0"}]
[null,null,null,null,null,null,null,null,null,null,null,{"$f":"IF(AND(H33<>\"\",H33<>\"رقم الشيك\"),COUNTIF('شيكات مجيرة'!$H$4:$H$996,'شيكات قيد التحصيل'!H33),\"0\")","v":"0"}]
[null,null,null,null,null,null,null,null,null,null,null,{"$f":"IF(AND(H34<>\"\",H34<>\"رقم الشيك\"),COUNTIF('شيكات مجيرة'!$H$4:$H$996,'شيكات قيد التحصيل'!H34),\"0\")","v":"0"}]
[null,null,null,null,null,null,null,null,null,null,null,{"$f":"IF(AND(H35<>\"\",H35<>\"رقم الشيك\"),COUNTIF('شيكات مجيرة'!$H$4:$H$996,'شيكات قيد التحصيل'!H35),\"0\")","v":"0"}]
[null,null,null,null,null,null,null,null,null,null,null,{"$f":"IF(AND(H36<>\"\",H36<>\"رقم الشيك\"),COUNTIF('شيكات مجيرة'!$H$4:$H$996,'شيكات قيد التحصيل'!H36),\"0\")","v":"0"}]
[null,null,null,null,null,null,null,null,null,null,null,{"$f":"IF(AND(H37<>\"\",H37<>\"رقم الشيك\"),COUNTIF('شيكات مجيرة'!$H$4:$H$996,'شيكات قيد التحصيل'!H37),\"0\")","v":"0"}]
[null,null,null,null,null,null,null,null,null,null,null,{"$f":"IF(AND(H38<>\"\",H38<>\"رقم الشيك\"),COUNTIF('شيكات مجيرة'!$H$4:$H$996,'شيكات قيد التحصيل'!H38),\"0\")","v":"0"}]
[null,null,null,null,null,null,null,null,null,null,null,{"$f":"IF(AND(H39<>\"\",H39<>\"رقم الشيك\"),COUNTIF('شيكات مجيرة'!$H$4:$H$996,'شيكات قيد التحصيل'!H39),\"0\")","v":"0"}]
[null,null,null,null,null,null,null,null,null,null,null,{"$f":"IF(AND(H40<>\"\",H40<>\"رقم الشيك\"),COUNTIF('شيكات مجيرة'!$H$4:$H$996,'شيكات قيد التحصيل'!H40),\"0\")","v":"0"}]
[null,null,null,null,null,null,null,null,null,null,null,{"$f":"IF(AND(H41<>\"\",H41<>\"رقم الشيك\"),COUNTIF('شيكات مجيرة'!$H$4:$H$996,'شيكات قيد التحصيل'!H41),\"0\")","v":"0"}]
[null,null,null,null,null,null,null,null,null,null,null,{"$f":"IF(AND(H42<>\"\",H42<>\"رقم الشيك\"),COUNTIF('شيكات مجيرة'!$H$4:$H$996,'شيكات قيد التحصيل'!H42),\"0\")","v":"0"}]
[null,null,null,null,null,null,null,null,null,null,null,{"$f":"IF(AND(H43<>\"\",H43<>\"رقم الشيك\"),COUNTIF('شيكات مجيرة'!$H$4:$H$996,'شيكات قيد التحصيل'!H43),\"0\")","v":"0"}]
[null,null,null,null,null,null,null,null,null,null,null,{"$f":"IF(AND(H44<>\"\",H44<>\"رقم الشيك\"),COUNTIF('شيكات مجيرة'!$H$4:$H$996,'شيكات قيد التحصيل'!H44),\"0\")","v":"0"}]
[null,null,null,null,null,null,null,null,null,null,null,{"$f":"IF(AND(H45<>\"\",H45<>\"رقم الشيك\"),COUNTIF('شيكات مجيرة'!$H$4:$H$996,'شيكات قيد التحصيل'!H45),\"0\")","v":"0"}]
[null,null,null,null,null,null,null,null,null,null,null,{"$f":"IF(AND(H46<>\"\",H46<>\"رقم الشيك\"),COUNTIF('شيكات مجيرة'!$H$4:$H$996,'شيكات قيد التحصيل'!H46),\"0\")","v":"0"}]
[null,null,null,null,null,null,null,null,null,null,null,{"$f":"IF(AND(H47<>\"\",H47<>\"رقم الشيك\"),COUNTIF('شيكات مجيرة'!$H$4:$H$996,'شيكات قيد التحصيل'!H47),\"0\")","v":"0"}]
[null,null,null,null,null,null,null,null,null,null,null,{"$f":"IF(AND(H48<>\"\",H48<>\"رقم الشيك\"),COUNTIF('شيكات مجيرة'!$H$4:$H$996,'شيكات قيد التحصيل'!H48),\"0\")","v":"0"}]
[null,null,null,null,null,null,null,null,null,null,null,{"$f":"IF(AND(H49<>\"\",H49<>\"رقم الشيك\"),COUNTIF('شيكات مجيرة'!$H$4:$H$996,'شيكات قيد التحصيل'!H49),\"0\")","v":"0"}]
[null,null,null,null,null,null,null,null,null,null,null,{"$f":"IF(AND(H50<>\"\",H50<>\"رقم الشيك\"),COUNTIF('شيكات مجيرة'!$H$4:$H$996,'شيكات قيد التحصيل'!H50),\"0\")","v":"0"}]
[null,null,null,null,null,null,null,null,null,null,null,{"$f":"IF(AND(H51<>\"\",H51<>\"رقم الشيك\"),COUNTIF('شيكات مجيرة'!$H$4:$H$996,'شيكات قيد التحصيل'!H51),\"0\")","v":"0"}]
[null,null,null,null,null,null,null,null,null,null,null,{"$f":"IF(AND(H52<>\"\",H52<>\"رقم الشيك\"),COUNTIF('شيكات مجيرة'!$H$4:$H$996,'شيكات قيد التحصيل'!H52),\"0\")","v":"0"}]
[null,null,null,null,null,null,null,null,null,null,null,{"$f":"IF(AND(H53<>\"\",H53<>\"رقم الشيك\"),COUNTIF('شيكات مجيرة'!$H$4:$H$996,'شيكات قيد التحصيل'!H53),\"0\")","v":"0"}]
[null,null,null,null,null,null,null,null,null,null,null,{"$f":"IF(AND(H54<>\"\",H54<>\"رقم الشيك\"),COUNTIF('شيكات مجيرة'!$H$4:$H$996,'شيكات قيد التحصيل'!H54),\"0\")","v":"0"}]
[null,null,null,null,null,null,null,null,null,null,null,{"$f":"IF(AND(H55<>\"\",H55<>\"رقم الشيك\"),COUNTIF('شيكات مجيرة'!$H$4:$H$996,'شيكات قيد التحصيل'!H55),\"0\")","v":"0"}]
[null,null,null,null,null,null,null,null,null,null,null,{"$f":"IF(AND(H56<>\"\",H56<>\"رقم الشيك\"),COUNTIF('شيكات مجيرة'!$H$4:$H$996,'شيكات قيد التحصيل'!H56),\"0\")","v":"0"}]
[null,null,null,null,null,null,null,null,null,null,null,{"$f":"IF(AND(H57<>\"\",H57<>\"رقم الشيك\"),COUNTIF('شيكات مجيرة'!$H$4:$H$996,'شيكات قيد التحصيل'!H57),\"0\")","v":"0"}]
[null,null,null,null,null,null,null,null,null,null,null,{"$f":"IF(AND(H58<>\"\",H58<>\"رقم الشيك\"),COUNTIF('شيكات مجيرة'!$H$4:$H$996,'شيكات قيد التحصيل'!H58),\"0\")","v":"0"}]
[null,null,null,null,null,null,null,null,null,null,null,{"$f":"IF(AND(H59<>\"\",H59<>\"رقم الشيك\"),COUNTIF('شيكات مجيرة'!$H$4:$H$996,'شيكات قيد التحصيل'!H59),\"0\")","v":"0"}]
[null,null,null,null,null,null,null,null,null,null,null,{"$f":"IF(AND(H60<>\"\",H60<>\"رقم الشيك\"),COUNTIF('شيكات مجيرة'!$H$4:$H$996,'شيكات قيد التحصيل'!H60),\"0\")","v":"0"}]
[null,null,null,null,null,null,null,null,null,null,null,{"$f":"IF(AND(H61<>\"\",H61<>\"رقم الشيك\"),COUNTIF('شيكات مجيرة'!$H$4:$H$996,'شيكات قيد التحصيل'!H61),\"0\")","v":"0"}]
[null,null,null,null,null,null,null,null,null,null,null,{"$f":"IF(AND(H62<>\"\",H62<>\"رقم الشيك\"),COUNTIF('شيكات مجيرة'!$H$4:$H$996,'شيكات قيد التحصيل'!H62),\"0\")","v":"0"}]
[null,null,null,null,null,null,null,null,null,null,null,{"$f":"IF(AND(H63<>\"\",H63<>\"رقم الشيك\"),COUNTIF('شيكات مجيرة'!$H$4:$H$996,'شيكات قيد التحصيل'!H63),\"0\")","v":"0"}]
[null,null,null,null,null,null,null,null,null,null,null,{"$f":"IF(AND(H64<>\"\",H64<>\"رقم الشيك\"),COUNTIF('شيكات مجيرة'!$H$4:$H$996,'شيكات قيد التحصيل'!H64),\"0\")","v":"0"}]
[null,null,null,null,null,null,null,null,null,null,null,{"$f":"IF(AND(H65<>\"\",H65<>\"رقم الشيك\"),COUNTIF('شيكات مجيرة'!$H$4:$H$996,'شيكات قيد التحصيل'!H65),\"0\")","v":"0"}]
[null,null,null,null,null,null,null,null,null,null,null,{"$f":"IF(AND(H66<>\"\",H66<>\"رقم الشيك\"),COUNTIF('شيكات مجيرة'!$H$4:$H$996,'شيكات قيد التحصيل'!H66),\"0\")","v":"0"}]
[null,null,null,null,null,null,null,null,null,null,null,{"$f":"IF(AND(H67<>\"\",H67<>\"رقم الشيك\"),COUNTIF('شيكات مجيرة'!$H$4:$H$996,'شيكات قيد التحصيل'!H67),\"0\")","v":"0"}]
[null,null,null,null,null,null,null,null,null,null,null,{"$f":"IF(AND(H68<>\"\",H68<>\"رقم الشيك\"),COUNTIF('شيكات مجيرة'!$H$4:$H$996,'شيكات قيد التحصيل'!H68),\"0\")","v":"0"}]
[null,null,null,null,null,null,null,null,null,null,null,{"$f":"IF(AND(H69<>\"\",H69<>\"رقم الشيك\"),COUNTIF('شيكات مجيرة'!$H$4:$H$996,'شيكات قيد التحصيل'!H69),\"0\")","v":"0"}]
[null,null,null,null,null,null,null,null,null,null,null,{"$f":"IF(AND(H70<>\"\",H70<>\"رقم الشيك\"),COUNTIF('شيكات مجيرة'!$H$4:$H$996,'شيكات قيد التحصيل'!H70),\"0\")","v":"0"}]
[null,null,null,null,null,null,null,null,null,null,null,{"$f":"IF(AND(H71<>\"\",H71<>\"رقم الشيك\"),COUNTIF('شيكات مجيرة'!$H$4:$H$996,'شيكات قيد التحصيل'!H71),\"0\")","v":"0"}]
[null,null,null,null,null,null,null,null,null,null,null,{"$f":"IF(AND(H72<>\"\",H72<>\"رقم الشيك\"),COUNTIF('شيكات مجيرة'!$H$4:$H$996,'شيكات قيد التحصيل'!H72),\"0\")","v":"0"}]
[null,null,null,null,null,null,null,null,null,null,null,{"$f":"IF(AND(H73<>\"\",H73<>\"رقم الشيك\"),COUNTIF('شيكات مجيرة'!$H$4:$H$996,'شيكات قيد التحصيل'!H73),\"0\")","v":"0"}]
[null,null,null,null,null,null,null,null,null,null,null,{"$f":"IF(AND(H74<>\"\",H74<>\"رقم الشيك\"),COUNTIF('شيكات مجيرة'!$H$4:$H$996,'شيكات قيد التحصيل'!H74),\"0\")","v":"0"}]
[null,null,null,null,null,null,null,null,null,null,null,{"$f":"IF(AND(H75<>\"\",H75<>\"رقم الشيك\"),COUNTIF('شيكات مجيرة'!$H$4:$H$996,'شيكات قيد التحصيل'!H75),\"0\")","v":"0"}]
[null,null,null,null,null,null,null,null,null,null,null,{"$f":"IF(AND(H76<>\"\",H76<>\"رقم الشيك\"),COUNTIF('شيكات مجيرة'!$H$4:$H$996,'شيكات قيد التحصيل'!H76),\"0\")","v":"0"}]
[null,null,null,null,null,null,null,null,null,null,null,{"$f":"IF(AND(H77<>\"\",H77<>\"رقم الشيك\"),COUNTIF('شيكات مجيرة'!$H$4:$H$996,'شيكات قيد التحصيل'!H77),\"0\")","v":"0"}]
[null,null,null,null,null,null,null,null,null,null,null,{"$f":"IF(AND(H78<>\"\",H78<>\"رقم الشيك\"),COUNTIF('شيكات مجيرة'!$H$4:$H$996,'شيكات قيد التحصيل'!H78),\"0\")","v":"0"}]
[null,null,null,null,null,null,null,null,null,null,null,{"$f":"IF(AND(H79<>\"\",H79<>\"رقم الشيك\"),COUNTIF('شيكات مجيرة'!$H$4:$H$996,'شيكات قيد التحصيل'!H79),\"0\")","v":"0"}]
[null,null,null,null,null,null,null,null,null,null,null,{"$f":"IF(AND(H80<>\"\",H80<>\"رقم الشيك\"),COUNTIF('شيكات مجيرة'!$H$4:$H$996,'شيكات قيد التحصيل'!H80),\"0\")","v":"0"}]
[null,null,null,null,null,null,null,null,null,null,null,{"$f":"IF(AND(H81<>\"\",H81<>\"رقم الشيك\"),COUNTIF('شيكات مجيرة'!$H$4:$H$996,'شيكات قيد التحصيل'!H81),\"0\")","v":"0"}]
[null,null,null,null,null,null,null,null,null,null,null,{"$f":"IF(AND(H82<>\"\",H82<>\"رقم الشيك\"),COUNTIF('شيكات مجيرة'!$H$4:$H$996,'شيكات قيد التحصيل'!H82),\"0\")","v":"0"}]
[null,null,null,null,null,null,null,null,null,null,null,{"$f":"IF(AND(H83<>\"\",H83<>\"رقم الشيك\"),COUNTIF('شيكات مجيرة'!$H$4:$H$996,'شيكات قيد التحصيل'!H83),\"0\")","v":"0"}]
[null,null,null,null,null,null,null,null,null,null,null,{"$f":"IF(AND(H84<>\"\",H84<>\"رقم الشيك\"),COUNTIF('شيكات مجيرة'!$H$4:$H$996,'شيكات قيد التحصيل'!H84),\"0\")","v":"0"}]
[null,null,null,null,null,null,null,null,null,null,null,{"$f":"IF(AND(H85<>\"\",H85<>\"رقم الشيك\"),COUNTIF('شيكات مجيرة'!$H$4:$H$996,'شيكات قيد التحصيل'!H85),\"0\")","v":"0"}]
[null,null,null,null,null,null,null,null,null,null,null,{"$f":"IF(AND(H86<>\"\",H86<>\"رقم الشيك\"),COUNTIF('شيكات مجيرة'!$H$4:$H$996,'شيكات قيد التحصيل'!H86),\"0\")","v":"0"}]
[null,null,null,null,null,null,null,null,null,null,null,{"$f":"IF(AND(H87<>\"\",H87<>\"رقم الشيك\"),COUNTIF('شيكات مجيرة'!$H$4:$H$996,'شيكات قيد التحصيل'!H87),\"0\")","v":"0"}]
[null,null,null,null,null,null,null,null,null,null,null,{"$f":"IF(AND(H88<>\"\",H88<>\"رقم الشيك\"),COUNTIF('شيكات مجيرة'!$H$4:$H$996,'شيكات قيد التحصيل'!H88),\"0\")","v":"0"}]
[null,null,null,null,null,null,null,null,null,null,null,{"$f":"IF(AND(H89<>\"\",H89<>\"رقم الشيك\"),COUNTIF('شيكات مجيرة'!$H$4:$H$996,'شيكات قيد التحصيل'!H89),\"0\")","v":"0"}]
[null,null,null,null,null,null,null,null,null,null,null,{"$f":"IF(AND(H90<>\"\",H90<>\"رقم الشيك\"),COUNTIF('شيكات مجيرة'!$H$4:$H$996,'شيكات قيد التحصيل'!H90),\"0\")","v":"0"}]
[null,null,null,null,null,null,null,null,null,null,null,{"$f":"IF(AND(H91<>\"\",H91<>\"رقم الشيك\"),COUNTIF('شيكات مجيرة'!$H$4:$H$996,'شيكات قيد التحصيل'!H91),\"0\")","v":"0"}]
[null,null,null,null,null,null,null,null,null,null,null,{"$f":"IF(AND(H92<>\"\",H92<>\"رقم الشيك\"),COUNTIF('شيكات مجيرة'!$H$4:$H$996,'شيكات قيد التحصيل'!H92),\"0\")","v":"0"}]
[null,null,null,null,null,null,null,null,null,null,null,{"$f":"IF(AND(H93<>\"\",H93<>\"رقم الشيك\"),COUNTIF('شيكات مجيرة'!$H$4:$H$996,'شيكات قيد التحصيل'!H93),\"0\")","v":"0"}]
[null,null,null,null,null,null,null,null,null,null,null,{"$f":"IF(AND(H94<>\"\",H94<>\"رقم الشيك\"),COUNTIF('شيكات مجيرة'!$H$4:$H$996,'شيكات قيد التحصيل'!H94),\"0\")","v":"0"}]
[null,null,null,null,null,null,null,null,null,null,null,{"$f":"IF(AND(H95<>\"\",H95<>\"رقم الشيك\"),COUNTIF('شيكات مجيرة'!$H$4:$H$996,'شيكات قيد التحصيل'!H95),\"0\")","v":"0"}]
[null,null,null,null,null,null,null,null,null,null,null,{"$f":"IF(AND(H96<>\"\",H96<>\"رقم الشيك\"),COUNTIF('شيكات مجيرة'!$H$4:$H$996,'شيكات قيد التحصيل'!H96),\"0\")","v":"0"}]
[null,null,null,null,null,null,null,null,null,null,null,{"$f":"IF(AND(H97<>\"\",H97<>\"رقم الشيك\"),COUNTIF('شيكات مجيرة'!$H$4:$H$996,'شيكات قيد التحصيل'!H97),\"0\")","v":"0"}]
[null,null,null,null,null,null,null,null,null,null,null,{"$f":"IF(AND(H98<>\"\",H98<>\"رقم الشيك\"),COUNTIF('شيكات مجيرة'!$H$4:$H$996,'شيكات قيد التحصيل'!H98),\"0\")","v":"0"}]
[null,null,null,null,null,null,null,null,null,null,null,{"$f":"IF(AND(H99<>\"\",H99<>\"رقم الشيك\"),COUNTIF('شيكات مجيرة'!$H$4:$H$996,'شيكات قيد التحصيل'!H99),\"0\")","v":"0"}]
[null,null,null,null,null,null,null,null,null,null,null,{"$f":"IF(AND(H100<>\"\",H100<>\"رقم الشيك\"),COUNTIF('شيكات مجيرة'!$H$4:$H$996,'شيكات قيد التحصيل'!H100),\"0\")","v":"0"}]
[null,null,null,null,null,null,null,null,null,null,null,{"$f":"IF(AND(H101<>\"\",H101<>\"رقم الشيك\"),COUNTIF('شيكات مجيرة'!$H$4:$H$996,'شيكات قيد التحصيل'!H101),\"0\")","v":"0"}]
[null,null,null,null,null,null,null,null,null,null,null,{"$f":"IF(AND(H102<>\"\",H102<>\"رقم الشيك\"),COUNTIF('شيكات مجيرة'!$H$4:$H$996,'شيكات قيد التحصيل'!H102),\"0\")","v":"0"}]
[null,null,null,null,null,null,null,null,null,null,null,{"$f":"IF(AND(H103<>\"\",H103<>\"رقم الشيك\"),COUNTIF('شيكات مجيرة'!$H$4:$H$996,'شيكات قيد التحصيل'!H103),\"0\")","v":"0"}]
[null,null,null,null,null,null,null,null,null,null,null,{"$f":"IF(AND(H104<>\"\",H104<>\"رقم الشيك\"),COUNTIF('شيكات مجيرة'!$H$4:$H$996,'شيكات قيد التحصيل'!H104),\"0\")","v":"0"}]
[null,null,null,null,null,null,null,null,null,null,null,{"$f":"IF(AND(H105<>\"\",H105<>\"رقم الشيك\"),COUNTIF('شيكات مجيرة'!$H$4:$H$996,'شيكات قيد التحصيل'!H105),\"0\")","v":"0"}]
[null,null,null,null,null,null,null,null,null,null,null,{"$f":"IF(AND(H106<>\"\",H106<>\"رقم الشيك\"),COUNTIF('شيكات مجيرة'!$H$4:$H$996,'شيكات قيد التحصيل'!H106),\"0\")","v":"0"}]
[null,null,null,null,null,null,null,null,null,null,null,{"$f":"IF(AND(H107<>\"\",H107<>\"رقم الشيك\"),COUNTIF('شيكات مجيرة'!$H$4:$H$996,'شيكات قيد التحصيل'!H107),\"0\")","v":"0"}]
[null,null,null,null,null,null,null,null,null,null,null,{"$f":"IF(AND(H108<>\"\",H108<>\"رقم الشيك\"),COUNTIF('شيكات مجيرة'!$H$4:$H$996,'شيكات قيد التحصيل'!H108),\"0\")","v":"0"}]
[null,null,null,null,null,null,null,null,null,null,null,{"$f":"IF(AND(H109<>\"\",H109<>\"رقم الشيك\"),COUNTIF('شيكات مجيرة'!$H$4:$H$996,'شيكات قيد التحصيل'!H109),\"0\")","v":"0"}]
[null,null,null,null,null,null,null,null,null,null,null,{"$f":"IF(AND(H110<>\"\",H110<>\"رقم الشيك\"),COUNTIF('شيكات مجيرة'!$H$4:$H$996,'شيكات قيد التحصيل'!H110),\"0\")","v":"0"}]
[null,null,null,null,null,null,null,null,null,null,null,{"$f":"IF(AND(H111<>\"\",H111<>\"رقم الشيك\"),COUNTIF('شيكات مجيرة'!$H$4:$H$996,'شيكات قيد التحصيل'!H111),\"0\")","v":"0"}]
[null,null,null,null,null,null,null,null,null,null,null,{"$f":"IF(AND(H112<>\"\",H112<>\"رقم الشيك\"),COUNTIF('شيكات مجيرة'!$H$4:$H$996,'شيكات قيد التحصيل'!H112),\"0\")","v":"0"}]
[null,null,null,null,null,null,null,null,null,null,null,{"$f":"IF(AND(H113<>\"\",H113<>\"رقم الشيك\"),COUNTIF('شيكات مجيرة'!$H$4:$H$996,'شيكات قيد التحصيل'!H113),\"0\")","v":"0"}]
[null,null,null,null,null,null,null,null,null,null,null,{"$f":"IF(AND(H114<>\"\",H114<>\"رقم الشيك\"),COUNTIF('شيكات مجيرة'!$H$4:$H$996,'شيكات قيد التحصيل'!H114),\"0\")","v":"0"}]
[null,null,null,null,null,null,null,null,null,null,null,{"$f":"IF(AND(H115<>\"\",H115<>\"رقم الشيك\"),COUNTIF('شيكات مجيرة'!$H$4:$H$996,'شيكات قيد التحصيل'!H115),\"0\")","v":"0"}]
[null,null,null,null,null,null,null,null,null,null,null,{"$f":"IF(AND(H116<>\"\",H116<>\"رقم الشيك\"),COUNTIF('شيكات مجيرة'!$H$4:$H$996,'شيكات قيد التحصيل'!H116),\"0\")","v":"0"}]
[null,null,null,null,null,null,null,null,null,null,null,{"$f":"IF(AND(H117<>\"\",H117<>\"رقم الشيك\"),COUNTIF('شيكات مجيرة'!$H$4:$H$996,'شيكات قيد التحصيل'!H117),\"0\")","v":"0"}]
[null,null,null,null,null,null,null,null,null,null,null,{"$f":"IF(AND(H118<>\"\",H118<>\"رقم الشيك\"),COUNTIF('شيكات مجيرة'!$H$4:$H$996,'شيكات قيد التحصيل'!H118),\"0\")","v":"0"}]
[null,null,null,null,null,null,null,null,null,null,null,{"$f":"IF(AND(H119<>\"\",H119<>\"رقم الشيك\"),COUNTIF('شيكات مجيرة'!$H$4:$H$996,'شيكات قيد التحصيل'!H119),\"0\")","v":"0"}]
[null,null,null,null,null,null,null,null,null,null,null,{"$f":"IF(AND(H120<>\"\",H120<>\"رقم الشيك\"),COUNTIF('شيكات مجيرة'!$H$4:$H$996,'شيكات قيد التحصيل'!H120),\"0\")","v":"0"}]
[null,null,null,null,null,null,null,null,null,null,null,{"$f":"IF(AND(H121<>\"\",H121<>\"رقم الشيك\"),COUNTIF('شيكات مجيرة'!$H$4:$H$996,'شيكات قيد التحصيل'!H121),\"0\")","v":"0"}]
[null,null,null,null,null,null,null,null,null,null,null,{"$f":"IF(AND(H122<>\"\",H122<>\"رقم الشيك\"),COUNTIF('شيكات مجيرة'!$H$4:$H$996,'شيكات قيد التحصيل'!H122),\"0\")","v":"0"}]
[null,null,null,null,null,null,null,null,null,null,null,{"$f":"IF(AND(H123<>\"\",H123<>\"رقم الشيك\"),COUNTIF('شيكات مجيرة'!$H$4:$H$996,'شيكات قيد التحصيل'!H123),\"0\")","v":"0"}]
[null,null,null,null,null,null,null,null,null,null,null,{"$f":"IF(AND(H124<>\"\",H124<>\"رقم الشيك\"),COUNTIF('شيكات مجيرة'!$H$4:$H$996,'شيكات قيد التحصيل'!H124),\"0\")","v":"0"}]
[null,null,null,null,null,null,null,null,null,null,null,{"$f":"IF(AND(H125<>\"\",H125<>\"رقم الشيك\"),COUNTIF('شيكات مجيرة'!$H$4:$H$996,'شيكات قيد التحصيل'!H125),\"0\")","v":"0"}]
[null,null,null,null,null,null,null,null,null,null,null,{"$f":"IF(AND(H126<>\"\",H126<>\"رقم الشيك\"),COUNTIF('شيكات مجيرة'!$H$4:$H$996,'شيكات قيد التحصيل'!H126),\"0\")","v":"0"}]
[null,null,null,null,null,null,null,null,null,null,null,{"$f":"IF(AND(H127<>\"\",H127<>\"رقم الشيك\"),COUNTIF('شيكات مجيرة'!$H$4:$H$996,'شيكات قيد التحصيل'!H127),\"0\")","v":"0"}]
[null,null,null,null,null,null,null,null,null,null,null,{"$f":"IF(AND(H128<>\"\",H128<>\"رقم الشيك\"),COUNTIF('شيكات مجيرة'!$H$4:$H$996,'شيكات قيد التحصيل'!H128),\"0\")","v":"0"}]
[null,null,null,null,null,null,null,null,null,null,null,{"$f":"IF(AND(H129<>\"\",H129<>\"رقم الشيك\"),COUNTIF('شيكات مجيرة'!$H$4:$H$996,'شيكات قيد التحصيل'!H129),\"0\")","v":"0"}]
[null,null,null,null,null,null,null,null,null,null,null,{"$f":"IF(AND(H130<>\"\",H130<>\"رقم الشيك\"),COUNTIF('شيكات مجيرة'!$H$4:$H$996,'شيكات قيد التحصيل'!H130),\"0\")","v":"0"}]
[null,null,null,null,null,null,null,null,null,null,null,{"$f":"IF(AND(H131<>\"\",H131<>\"رقم الشيك\"),COUNTIF('شيكات مجيرة'!$H$4:$H$996,'شيكات قيد التحصيل'!H131),\"0\")","v":"0"}]
[null,null,null,null,null,null,null,null,null,null,null,{"$f":"IF(AND(H132<>\"\",H132<>\"رقم الشيك\"),COUNTIF('شيكات مجيرة'!$H$4:$H$996,'شيكات قيد التحصيل'!H132),\"0\")","v":"0"}]
[null,null,null,null,null,null,null,null,null,null,null,{"$f":"IF(AND(H133<>\"\",H133<>\"رقم الشيك\"),COUNTIF('شيكات مجيرة'!$H$4:$H$996,'شيكات قيد التحصيل'!H133),\"0\")","v":"0"}]
[null,null,null,null,null,null,null,null,null,null,null,{"$f":"IF(AND(H134<>\"\",H134<>\"رقم الشيك\"),COUNTIF('شيكات مجيرة'!$H$4:$H$996,'شيكات قيد التحصيل'!H134),\"0\")","v":"0"}]
[null,null,null,null,null,null,null,null,null,null,null,{"$f":"IF(AND(H135<>\"\",H135<>\"رقم الشيك\"),COUNTIF('شيكات مجيرة'!$H$4:$H$996,'شيكات قيد التحصيل'!H135),\"0\")","v":"0"}]
[null,null,null,null,null,null,null,null,null,null,null,{"$f":"IF(AND(H136<>\"\",H136<>\"رقم الشيك\"),COUNTIF('شيكات مجيرة'!$H$4:$H$996,'شيكات قيد التحصيل'!H136),\"0\")","v":"0"}]
[null,null,null,null,null,null,null,null,null,null,null,{"$f":"IF(AND(H137<>\"\",H137<>\"رقم الشيك\"),COUNTIF('شيكات مجيرة'!$H$4:$H$996,'شيكات قيد التحصيل'!H137),\"0\")","v":"0"}]
[null,null,null,null,null,null,null,null,null,null,null,{"$f":"IF(AND(H138<>\"\",H138<>\"رقم الشيك\"),COUNTIF('شيكات مجيرة'!$H$4:$H$996,'شيكات قيد التحصيل'!H138),\"0\")","v":"0"}]
[null,null,null,null,null,null,null,null,null,null,null,{"$f":"IF(AND(H139<>\"\",H139<>\"رقم الشيك\"),COUNTIF('شيكات مجيرة'!$H$4:$H$996,'شيكات قيد التحصيل'!H139),\"0\")","v":"0"}]
[null,null,null,null,null,null,null,null,null,null,null,{"$f":"IF(AND(H140<>\"\",H140<>\"رقم الشيك\"),COUNTIF('شيكات مجيرة'!$H$4:$H$996,'شيكات قيد التحصيل'!H140),\"0\")","v":"0"}]
[null,null,null,null,null,null,null,null,null,null,null,{"$f":"IF(AND(H141<>\"\",H141<>\"رقم الشيك\"),COUNTIF('شيكات مجيرة'!$H$4:$H$996,'شيكات قيد التحصيل'!H141),\"0\")","v":"0"}]
[null,null,null,null,null,null,null,null,null,null,null,{"$f":"IF(AND(H142<>\"\",H142<>\"رقم الشيك\"),COUNTIF('شيكات مجيرة'!$H$4:$H$996,'شيكات قيد التحصيل'!H142),\"0\")","v":"0"}]
[null,null,null,null,null,null,null,null,null,null,null,{"$f":"IF(AND(H143<>\"\",H143<>\"رقم الشيك\"),COUNTIF('شيكات مجيرة'!$H$4:$H$996,'شيكات قيد التحصيل'!H143),\"0\")","v":"0"}]
[null,null,null,null,null,null,null,null,null,null,null,{"$f":"IF(AND(H144<>\"\",H144<>\"رقم الشيك\"),COUNTIF('شيكات مجيرة'!$H$4:$H$996,'شيكات قيد التحصيل'!H144),\"0\")","v":"0"}]
[null,null,null,null,null,null,null,null,null,null,null,{"$f":"IF(AND(H145<>\"\",H145<>\"رقم الشيك\"),COUNTIF('شيكات مجيرة'!$H$4:$H$996,'شيكات قيد التحصيل'!H145),\"0\")","v":"0"}]
[null,null,null,null,null,null,null,null,null,null,null,{"$f":"IF(AND(H146<>\"\",H146<>\"رقم الشيك\"),COUNTIF('شيكات مجيرة'!$H$4:$H$996,'شيكات قيد التحصيل'!H146),\"0\")","v":"0"}]
[null,null,null,null,null,null,null,null,null,null,null,{"$f":"IF(AND(H147<>\"\",H147<>\"رقم الشيك\"),COUNTIF('شيكات مجيرة'!$H$4:$H$996,'شيكات قيد التحصيل'!H147),\"0\")","v":"0"}]
[null,null,null,null,null,null,null,null,null,null,null,{"$f":"IF(AND(H148<>\"\",H148<>\"رقم الشيك\"),COUNTIF('شيكات مجيرة'!$H$4:$H$996,'شيكات قيد التحصيل'!H148),\"0\")","v":"0"}]
[null,null,null,null,null,null,null,null,null,null,null,{"$f":"IF(AND(H149<>\"\",H149<>\"رقم الشيك\"),COUNTIF('شيكات مجيرة'!$H$4:$H$996,'شيكات قيد التحصيل'!H149),\"0\")","v":"0"}]
[null,null,null,null,null,null,null,null,null,null,null,{"$f":"IF(AND(H150<>\"\",H150<>\"رقم الشيك\"),COUNTIF('شيكات مجيرة'!$H$4:$H$996,'شيكات قيد التحصيل'!H150),\"0\")","v":"0"}]
[null,null,null,null,null,null,null,null,null,null,null,{"$f":"IF(AND(H151<>\"\",H151<>\"رقم الشيك\"),COUNTIF('شيكات مجيرة'!$H$4:$H$996,'شيكات قيد التحصيل'!H151),\"0\")","v":"0"}]
[null,null,null,null,null,null,null,null,null,null,null,{"$f":"IF(AND(H152<>\"\",H152<>\"رقم الشيك\"),COUNTIF('شيكات مجيرة'!$H$4:$H$996,'شيكات قيد التحصيل'!H152),\"0\")","v":"0"}]
[null,null,null,null,null,null,null,null,null,null,null,{"$f":"IF(AND(H153<>\"\",H153<>\"رقم الشيك\"),COUNTIF('شيكات مجيرة'!$H$4:$H$996,'شيكات قيد التحصيل'!H153),\"0\")","v":"0"}]
[null,null,null,null,null,null,null,null,null,null,null,{"$f":"IF(AND(H154<>\"\",H154<>\"رقم الشيك\"),COUNTIF('شيكات مجيرة'!$H$4:$H$996,'شيكات قيد التحصيل'!H154),\"0\")","v":"0"}]
[null,null,null,null,null,null,null,null,null,null,null,{"$f":"IF(AND(H155<>\"\",H155<>\"رقم الشيك\"),COUNTIF('شيكات مجيرة'!$H$4:$H$996,'شيكات قيد التحصيل'!H155),\"0\")","v":"0"}]
[null,null,null,null,null,null,null,null,null,null,null,{"$f":"IF(AND(H156<>\"\",H156<>\"رقم الشيك\"),COUNTIF('شيكات مجيرة'!$H$4:$H$996,'شيكات قيد التحصيل'!H156),\"0\")","v":"0"}]
[null,null,null,null,null,null,null,null,null,null,null,{"$f":"IF(AND(H157<>\"\",H157<>\"رقم الشيك\"),COUNTIF('شيكات مجيرة'!$H$4:$H$996,'شيكات قيد التحصيل'!H157),\"0\")","v":"0"}]
[null,null,null,null,null,null,null,null,null,null,null,{"$f":"IF(AND(H158<>\"\",H158<>\"رقم الشيك\"),COUNTIF('شيكات مجيرة'!$H$4:$H$996,'شيكات قيد التحصيل'!H158),\"0\")","v":"0"}]
[null,null,null,null,null,null,null,null,null,null,null,{"$f":"IF(AND(H159<>\"\",H159<>\"رقم الشيك\"),COUNTIF('شيكات مجيرة'!$H$4:$H$996,'شيكات قيد التحصيل'!H159),\"0\")","v":"0"}]
[null,null,null,null,null,null,null,null,null,null,null,{"$f":"IF(AND(H160<>\"\",H160<>\"رقم الشيك\"),COUNTIF('شيكات مجيرة'!$H$4:$H$996,'شيكات قيد التحصيل'!H160),\"0\")","v":"0"}]
[null,null,null,null,null,null,null,null,null,null,null,{"$f":"IF(AND(H161<>\"\",H161<>\"رقم الشيك\"),COUNTIF('شيكات مجيرة'!$H$4:$H$996,'شيكات قيد التحصيل'!H161),\"0\")","v":"0"}]
[null,null,null,null,null,null,null,null,null,null,null,{"$f":"IF(AND(H162<>\"\",H162<>\"رقم الشيك\"),COUNTIF('شيكات مجيرة'!$H$4:$H$996,'شيكات قيد التحصيل'!H162),\"0\")","v":"0"}]
[null,null,null,null,null,null,null,null,null,null,null,{"$f":"IF(AND(H163<>\"\",H163<>\"رقم الشيك\"),COUNTIF('شيكات مجيرة'!$H$4:$H$996,'شيكات قيد التحصيل'!H163),\"0\")","v":"0"}]
[null,null,null,null,null,null,null,null,null,null,null,{"$f":"IF(AND(H164<>\"\",H164<>\"رقم الشيك\"),COUNTIF('شيكات مجيرة'!$H$4:$H$996,'شيكات قيد التحصيل'!H164),\"0\")","v":"0"}]
[null,null,null,null,null,null,null,null,null,null,null,{"$f":"IF(AND(H165<>\"\",H165<>\"رقم الشيك\"),COUNTIF('شيكات مجيرة'!$H$4:$H$996,'شيكات قيد التحصيل'!H165),\"0\")","v":"0"}]
[null,null,null,null,null,null,null,null,null,null,null,{"$f":"IF(AND(H166<>\"\",H166<>\"رقم الشيك\"),COUNTIF('شيكات مجيرة'!$H$4:$H$996,'شيكات قيد التحصيل'!H166),\"0\")","v":"0"}]
[null,null,null,null,null,null,null,null,null,null,null,{"$f":"IF(AND(H167<>\"\",H167<>\"رقم الشيك\"),COUNTIF('شيكات مجيرة'!$H$4:$H$996,'شيكات قيد التحصيل'!H167),\"0\")","v":"0"}]
[null,null,null,null,null,null,null,null,null,null,null,{"$f":"IF(AND(H168<>\"\",H168<>\"رقم الشيك\"),COUNTIF('شيكات مجيرة'!$H$4:$H$996,'شيكات قيد التحصيل'!H168),\"0\")","v":"0"}]
[null,null,null,null,null,null,null,null,null,null,null,{"$f":"IF(AND(H169<>\"\",H169<>\"رقم الشيك\"),COUNTIF('شيكات مجيرة'!$H$4:$H$996,'شيكات قيد التحصيل'!H169),\"0\")","v":"0"}]
[null,null,null,null,null,null,null,null,null,null,null,{"$f":"IF(AND(H170<>\"\",H170<>\"رقم الشيك\"),COUNTIF('شيكات مجيرة'!$H$4:$H$996,'شيكات قيد التحصيل'!H170),\"0\")","v":"0"}]
[null,null,null,null,null,null,null,null,null,null,null,{"$f":"IF(AND(H171<>\"\",H171<>\"رقم الشيك\"),COUNTIF('شيكات مجيرة'!$H$4:$H$996,'شيكات قيد التحصيل'!H171),\"0\")","v":"0"}]
[null,null,null,null,null,null,null,null,null,null,null,{"$f":"IF(AND(H172<>\"\",H172<>\"رقم الشيك\"),COUNTIF('شيكات مجيرة'!$H$4:$H$996,'شيكات قيد التحصيل'!H172),\"0\")","v":"0"}]
[null,null,null,null,null,null,null,null,null,null,null,{"$f":"IF(AND(H173<>\"\",H173<>\"رقم الشيك\"),COUNTIF('شيكات مجيرة'!$H$4:$H$996,'شيكات قيد التحصيل'!H173),\"0\")","v":"0"}]
[null,null,null,null,null,null,null,null,null,null,null,{"$f":"IF(AND(H174<>\"\",H174<>\"رقم الشيك\"),COUNTIF('شيكات مجيرة'!$H$4:$H$996,'شيكات قيد التحصيل'!H174),\"0\")","v":"0"}]
[null,null,null,null,null,null,null,null,null,null,null,{"$f":"IF(AND(H175<>\"\",H175<>\"رقم الشيك\"),COUNTIF('شيكات مجيرة'!$H$4:$H$996,'شيكات قيد التحصيل'!H175),\"0\")","v":"0"}]
[null,null,null,null,null,null,null,null,null,null,null,{"$f":"IF(AND(H176<>\"\",H176<>\"رقم الشيك\"),COUNTIF('شيكات مجيرة'!$H$4:$H$996,'شيكات قيد التحصيل'!H176),\"0\")","v":"0"}]
[null,null,null,null,null,null,null,null,null,null,null,{"$f":"IF(AND(H177<>\"\",H177<>\"رقم الشيك\"),COUNTIF('شيكات مجيرة'!$H$4:$H$996,'شيكات قيد التحصيل'!H177),\"0\")","v":"0"}]
[null,null,null,null,null,null,null,null,null,null,null,{"$f":"IF(AND(H178<>\"\",H178<>\"رقم الشيك\"),COUNTIF('شيكات مجيرة'!$H$4:$H$996,'شيكات قيد التحصيل'!H178),\"0\")","v":"0"}]
[null,null,null,null,null,null,null,null,null,null,null,{"$f":"IF(AND(H179<>\"\",H179<>\"رقم الشيك\"),COUNTIF('شيكات مجيرة'!$H$4:$H$996,'شيكات قيد التحصيل'!H179),\"0\")","v":"0"}]
[null,null,null,null,null,null,null,null,null,null,null,{"$f":"IF(AND(H180<>\"\",H180<>\"رقم الشيك\"),COUNTIF('شيكات مجيرة'!$H$4:$H$996,'شيكات قيد التحصيل'!H180),\"0\")","v":"0"}]
[null,null,null,null,null,null,null,null,null,null,null,{"$f":"IF(AND(H181<>\"\",H181<>\"رقم الشيك\"),COUNTIF('شيكات مجيرة'!$H$4:$H$996,'شيكات قيد التحصيل'!H181),\"0\")","v":"0"}]
[null,null,null,null,null,null,null,null,null,null,null,{"$f":"IF(AND(H182<>\"\",H182<>\"رقم الشيك\"),COUNTIF('شيكات مجيرة'!$H$4:$H$996,'شيكات قيد التحصيل'!H182),\"0\")","v":"0"}]
[null,null,null,null,null,null,null,null,null,null,null,{"$f":"IF(AND(H183<>\"\",H183<>\"رقم الشيك\"),COUNTIF('شيكات مجيرة'!$H$4:$H$996,'شيكات قيد التحصيل'!H183),\"0\")","v":"0"}]
[null,null,null,null,null,null,null,null,null,null,null,{"$f":"IF(AND(H184<>\"\",H184<>\"رقم الشيك\"),COUNTIF('شيكات مجيرة'!$H$4:$H$996,'شيكات قيد التحصيل'!H184),\"0\")","v":"0"}]
[null,null,null,null,null,null,null,null,null,null,null,{"$f":"IF(AND(H185<>\"\",H185<>\"رقم الشيك\"),COUNTIF('شيكات مجيرة'!$H$4:$H$996,'شيكات قيد التحصيل'!H185),\"0\")","v":"0"}]
[null,null,null,null,null,null,null,null,null,null,null,{"$f":"IF(AND(H186<>\"\",H186<>\"رقم الشيك\"),COUNTIF('شيكات مجيرة'!$H$4:$H$996,'شيكات قيد التحصيل'!H186),\"0\")","v":"0"}]
[null,null,null,null,null,null,null,null,null,null,null,{"$f":"IF(AND(H187<>\"\",H187<>\"رقم الشيك\"),COUNTIF('شيكات مجيرة'!$H$4:$H$996,'شيكات قيد التحصيل'!H187),\"0\")","v":"0"}]
[null,null,null,null,null,null,null,null,null,null,null,{"$f":"IF(AND(H188<>\"\",H188<>\"رقم الشيك\"),COUNTIF('شيكات مجيرة'!$H$4:$H$996,'شيكات قيد التحصيل'!H188),\"0\")","v":"0"}]
[null,null,null,null,null,null,null,null,null,null,null,{"$f":"IF(AND(H189<>\"\",H189<>\"رقم الشيك\"),COUNTIF('شيكات مجيرة'!$H$4:$H$996,'شيكات قيد التحصيل'!H189),\"0\")","v":"0"}]
[null,null,null,null,null,null,null,null,null,null,null,{"$f":"IF(AND(H190<>\"\",H190<>\"رقم الشيك\"),COUNTIF('شيكات مجيرة'!$H$4:$H$996,'شيكات قيد التحصيل'!H190),\"0\")","v":"0"}]
[null,null,null,null,null,null,null,null,null,null,null,{"$f":"IF(AND(H191<>\"\",H191<>\"رقم الشيك\"),COUNTIF('شيكات مجيرة'!$H$4:$H$996,'شيكات قيد التحصيل'!H191),\"0\")","v":"0"}]
[null,null,null,null,null,null,null,null,null,null,null,{"$f":"IF(AND(H192<>\"\",H192<>\"رقم الشيك\"),COUNTIF('شيكات مجيرة'!$H$4:$H$996,'شيكات قيد التحصيل'!H192),\"0\")","v":"0"}]
[null,null,null,null,null,null,null,null,null,null,null,{"$f":"IF(AND(H193<>\"\",H193<>\"رقم الشيك\"),COUNTIF('شيكات مجيرة'!$H$4:$H$996,'شيكات قيد التحصيل'!H193),\"0\")","v":"0"}]
[null,null,null,null,null,null,null,null,null,null,null,{"$f":"IF(AND(H194<>\"\",H194<>\"رقم الشيك\"),COUNTIF('شيكات مجيرة'!$H$4:$H$996,'شيكات قيد التحصيل'!H194),\"0\")","v":"0"}]
[null,null,null,null,null,null,null,null,null,null,null,{"$f":"IF(AND(H195<>\"\",H195<>\"رقم الشيك\"),COUNTIF('شيكات مجيرة'!$H$4:$H$996,'شيكات قيد التحصيل'!H195),\"0\")","v":"0"}]
[null,null,null,null,null,null,null,null,null,null,null,{"$f":"IF(AND(H196<>\"\",H196<>\"رقم الشيك\"),COUNTIF('شيكات مجيرة'!$H$4:$H$996,'شيكات قيد التحصيل'!H196),\"0\")","v":"0"}]
[null,null,null,null,null,null,null,null,null,null,null,{"$f":"IF(AND(H197<>\"\",H197<>\"رقم الشيك\"),COUNTIF('شيكات مجيرة'!$H$4:$H$996,'شيكات قيد التحصيل'!H197),\"0\")","v":"0"}]
[null,null,null,null,null,null,null,null,null,null,null,{"$f":"IF(AND(H198<>\"\",H198<>\"رقم الشيك\"),COUNTIF('شيكات مجيرة'!$H$4:$H$996,'شيكات قيد التحصيل'!H198),\"0\")","v":"0"}]
[null,null,null,null,null,null,null,null,null,null,null,{"$f":"IF(AND(H199<>\"\",H199<>\"رقم الشيك\"),COUNTIF('شيكات مجيرة'!$H$4:$H$996,'شيكات قيد التحصيل'!H199),\"0\")","v":"0"}]
[null,null,null,null,null,null,null,null,null,null,null,{"$f":"IF(AND(H200<>\"\",H200<>\"رقم الشيك\"),COUNTIF('شيكات مجيرة'!$H$4:$H$996,'شيكات قيد التحصيل'!H200),\"0\")","v":"0"}]
[null,null,null,null,null,null,null,null,null,null,null,{"$f":"IF(AND(H201<>\"\",H201<>\"رقم الشيك\"),COUNTIF('شيكات مجيرة'!$H$4:$H$996,'شيكات قيد التحصيل'!H201),\"0\")","v":"0"}]
[null,null,null,null,null,null,null,null,null,null,null,{"$f":"IF(AND(H202<>\"\",H202<>\"رقم الشيك\"),COUNTIF('شيكات مجيرة'!$H$4:$H$996,'شيكات قيد التحصيل'!H202),\"0\")","v":"0"}]
[null,null,null,null,null,null,null,null,null,null,null,{"$f":"IF(AND(H203<>\"\",H203<>\"رقم الشيك\"),COUNTIF('شيكات مجيرة'!$H$4:$H$996,'شيكات قيد التحصيل'!H203),\"0\")","v":"0"}]
[null,null,null,null,null,null,null,null,null,null,null,{"$f":"IF(AND(H204<>\"\",H204<>\"رقم الشيك\"),COUNTIF('شيكات مجيرة'!$H$4:$H$996,'شيكات قيد التحصيل'!H204),\"0\")","v":"0"}]
[null,null,null,null,null,null,null,null,null,null,null,{"$f":"IF(AND(H205<>\"\",H205<>\"رقم الشيك\"),COUNTIF('شيكات مجيرة'!$H$4:$H$996,'شيكات قيد التحصيل'!H205),\"0\")","v":"0"}]
[null,null,null,null,null,null,null,null,null,null,null,{"$f":"IF(AND(H206<>\"\",H206<>\"رقم الشيك\"),COUNTIF('شيكات مجيرة'!$H$4:$H$996,'شيكات قيد التحصيل'!H206),\"0\")","v":"0"}]
[null,null,null,null,null,null,null,null,null,null,null,{"$f":"IF(AND(H207<>\"\",H207<>\"رقم الشيك\"),COUNTIF('شيكات مجيرة'!$H$4:$H$996,'شيكات قيد التحصيل'!H207),\"0\")","v":"0"}]
[null,null,null,null,null,null,null,null,null,null,null,{"$f":"IF(AND(H208<>\"\",H208<>\"رقم الشيك\"),COUNTIF('شيكات مجيرة'!$H$4:$H$996,'شيكات قيد التحصيل'!H208),\"0\")","v":"0"}]
[null,null,null,null,null,null,null,null,null,null,null,{"$f":"IF(AND(H209<>\"\",H209<>\"رقم الشيك\"),COUNTIF('شيكات مجيرة'!$H$4:$H$996,'شيكات قيد التحصيل'!H209),\"0\")","v":"0"}]
[null,null,null,null,null,null,null,null,null,null,null,{"$f":"IF(AND(H210<>\"\",H210<>\"رقم الشيك\"),COUNTIF('شيكات مجيرة'!$H$4:$H$996,'شيكات قيد التحصيل'!H210),\"0\")","v":"0"}]
[null,null,null,null,null,null,null,null,null,null,null,{"$f":"IF(AND(H211<>\"\",H211<>\"رقم الشيك\"),COUNTIF('شيكات مجيرة'!$H$4:$H$996,'شيكات قيد التحصيل'!H211),\"0\")","v":"0"}]
[null,null,null,null,null,null,null,null,null,null,null,{"$f":"IF(AND(H212<>\"\",H212<>\"رقم الشيك\"),COUNTIF('شيكات مجيرة'!$H$4:$H$996,'شيكات قيد التحصيل'!H212),\"0\")","v":"0"}]
[null,null,null,null,null,null,null,null,null,null,null,{"$f":"IF(AND(H213<>\"\",H213<>\"رقم الشيك\"),COUNTIF('شيكات مجيرة'!$H$4:$H$996,'شيكات قيد التحصيل'!H213),\"0\")","v":"0"}]
[null,null,null,null,null,null,null,null,null,null,null,{"$f":"IF(AND(H214<>\"\",H214<>\"رقم الشيك\"),COUNTIF('شيكات مجيرة'!$H$4:$H$996,'شيكات قيد التحصيل'!H214),\"0\")","v":"0"}]
[null,null,null,null,null,null,null,null,null,null,null,{"$f":"IF(AND(H215<>\"\",H215<>\"رقم الشيك\"),COUNTIF('شيكات مجيرة'!$H$4:$H$996,'شيكات قيد التحصيل'!H215),\"0\")","v":"0"}]
[null,null,null,null,null,null,null,null,null,null,null,{"$f":"IF(AND(H216<>\"\",H216<>\"رقم الشيك\"),COUNTIF('شيكات مجيرة'!$H$4:$H$996,'شيكات قيد التحصيل'!H216),\"0\")","v":"0"}]
[null,null,null,null,null,null,null,null,null,null,null,{"$f":"IF(AND(H217<>\"\",H217<>\"رقم الشيك\"),COUNTIF('شيكات مجيرة'!$H$4:$H$996,'شيكات قيد التحصيل'!H217),\"0\")","v":"0"}]
[null,null,null,null,null,null,null,null,null,null,null,{"$f":"IF(AND(H218<>\"\",H218<>\"رقم الشيك\"),COUNTIF('شيكات مجيرة'!$H$4:$H$996,'شيكات قيد التحصيل'!H218),\"0\")","v":"0"}]
[null,null,null,null,null,null,null,null,null,null,null,{"$f":"IF(AND(H219<>\"\",H219<>\"رقم الشيك\"),COUNTIF('شيكات مجيرة'!$H$4:$H$996,'شيكات قيد التحصيل'!H219),\"0\")","v":"0"}]
[null,null,null,null,null,null,null,null,null,null,null,{"$f":"IF(AND(H220<>\"\",H220<>\"رقم الشيك\"),COUNTIF('شيكات مجيرة'!$H$4:$H$996,'شيكات قيد التحصيل'!H220),\"0\")","v":"0"}]
[null,null,null,null,null,null,null,null,null,null,null,{"$f":"IF(AND(H221<>\"\",H221<>\"رقم الشيك\"),COUNTIF('شيكات مجيرة'!$H$4:$H$996,'شيكات قيد التحصيل'!H221),\"0\")","v":"0"}]
[null,null,null,null,null,null,null,null,null,null,null,{"$f":"IF(AND(H222<>\"\",H222<>\"رقم الشيك\"),COUNTIF('شيكات مجيرة'!$H$4:$H$996,'شيكات قيد التحصيل'!H222),\"0\")","v":"0"}]
[null,null,null,null,null,null,null,null,null,null,null,{"$f":"IF(AND(H223<>\"\",H223<>\"رقم الشيك\"),COUNTIF('شيكات مجيرة'!$H$4:$H$996,'شيكات قيد التحصيل'!H223),\"0\")","v":"0"}]
[null,null,null,null,null,null,null,null,null,null,null,{"$f":"IF(AND(H224<>\"\",H224<>\"رقم الشيك\"),COUNTIF('شيكات مجيرة'!$H$4:$H$996,'شيكات قيد التحصيل'!H224),\"0\")","v":"0"}]
[null,null,null,null,null,null,null,null,null,null,null,{"$f":"IF(AND(H225<>\"\",H225<>\"رقم الشيك\"),COUNTIF('شيكات مجيرة'!$H$4:$H$996,'شيكات قيد التحصيل'!H225),\"0\")","v":"0"}]
[null,null,null,null,null,null,null,null,null,null,null,{"$f":"IF(AND(H226<>\"\",H226<>\"رقم الشيك\"),COUNTIF('شيكات مجيرة'!$H$4:$H$996,'شيكات قيد التحصيل'!H226),\"0\")","v":"0"}]
[null,null,null,null,null,null,null,null,null,null,null,{"$f":"IF(AND(H227<>\"\",H227<>\"رقم الشيك\"),COUNTIF('شيكات مجيرة'!$H$4:$H$996,'شيكات قيد التحصيل'!H227),\"0\")","v":"0"}]
[null,null,null,null,null,null,null,null,null,null,null,{"$f":"IF(AND(H228<>\"\",H228<>\"رقم الشيك\"),COUNTIF('شيكات مجيرة'!$H$4:$H$996,'شيكات قيد التحصيل'!H228),\"0\")","v":"0"}]
[null,null,null,null,null,null,null,null,null,null,null,{"$f":"IF(AND(H229<>\"\",H229<>\"رقم الشيك\"),COUNTIF('شيكات مجيرة'!$H$4:$H$996,'شيكات قيد التحصيل'!H229),\"0\")","v":"0"}]
[null,null,null,null,null,null,null,null,null,null,null,{"$f":"IF(AND(H230<>\"\",H230<>\"رقم الشيك\"),COUNTIF('شيكات مجيرة'!$H$4:$H$996,'شيكات قيد التحصيل'!H230),\"0\")","v":"0"}]
[null,null,null,null,null,null,null,null,null,null,null,{"$f":"IF(AND(H231<>\"\",H231<>\"رقم الشيك\"),COUNTIF('شيكات مجيرة'!$H$4:$H$996,'شيكات قيد التحصيل'!H231),\"0\")","v":"0"}]
[null,null,null,null,null,null,null,null,null,null,null,{"$f":"IF(AND(H232<>\"\",H232<>\"رقم الشيك\"),COUNTIF('شيكات مجيرة'!$H$4:$H$996,'شيكات قيد التحصيل'!H232),\"0\")","v":"0"}]
[null,null,null,null,null,null,null,null,null,null,null,{"$f":"IF(AND(H233<>\"\",H233<>\"رقم الشيك\"),COUNTIF('شيكات مجيرة'!$H$4:$H$996,'شيكات قيد التحصيل'!H233),\"0\")","v":"0"}]
[null,null,null,null,null,null,null,null,null,null,null,{"$f":"IF(AND(H234<>\"\",H234<>\"رقم الشيك\"),COUNTIF('شيكات مجيرة'!$H$4:$H$996,'شيكات قيد التحصيل'!H234),\"0\")","v":"0"}]
[null,null,null,null,null,null,null,null,null,null,null,{"$f":"IF(AND(H235<>\"\",H235<>\"رقم الشيك\"),COUNTIF('شيكات مجيرة'!$H$4:$H$996,'شيكات قيد التحصيل'!H235),\"0\")","v":"0"}]
[null,null,null,null,null,null,null,null,null,null,null,{"$f":"IF(AND(H236<>\"\",H236<>\"رقم الشيك\"),COUNTIF('شيكات مجيرة'!$H$4:$H$996,'شيكات قيد التحصيل'!H236),\"0\")","v":"0"}]
[null,null,null,null,null,null,null,null,null,null,null,{"$f":"IF(AND(H237<>\"\",H237<>\"رقم الشيك\"),COUNTIF('شيكات مجيرة'!$H$4:$H$996,'شيكات قيد التحصيل'!H237),\"0\")","v":"0"}]
[null,null,null,null,null,null,null,null,null,null,null,{"$f":"IF(AND(H238<>\"\",H238<>\"رقم الشيك\"),COUNTIF('شيكات مجيرة'!$H$4:$H$996,'شيكات قيد التحصيل'!H238),\"0\")","v":"0"}]
[null,null,null,null,null,null,null,null,null,null,null,{"$f":"IF(AND(H239<>\"\",H239<>\"رقم الشيك\"),COUNTIF('شيكات مجيرة'!$H$4:$H$996,'شيكات قيد التحصيل'!H239),\"0\")","v":"0"}]
[null,null,null,null,null,null,null,null,null,null,null,{"$f":"IF(AND(H240<>\"\",H240<>\"رقم الشيك\"),COUNTIF('شيكات مجيرة'!$H$4:$H$996,'شيكات قيد التحصيل'!H240),\"0\")","v":"0"}]
[null,null,null,null,null,null,null,null,null,null,null,{"$f":"IF(AND(H241<>\"\",H241<>\"رقم الشيك\"),COUNTIF('شيكات مجيرة'!$H$4:$H$996,'شيكات قيد التحصيل'!H241),\"0\")","v":"0"}]
[null,null,null,null,null,null,null,null,null,null,null,{"$f":"IF(AND(H242<>\"\",H242<>\"رقم الشيك\"),COUNTIF('شيكات مجيرة'!$H$4:$H$996,'شيكات قيد التحصيل'!H242),\"0\")","v":"0"}]
[null,null,null,null,null,null,null,null,null,null,null,{"$f":"IF(AND(H243<>\"\",H243<>\"رقم الشيك\"),COUNTIF('شيكات مجيرة'!$H$4:$H$996,'شيكات قيد التحصيل'!H243),\"0\")","v":"0"}]
[null,null,null,null,null,null,null,null,null,null,null,{"$f":"IF(AND(H244<>\"\",H244<>\"رقم الشيك\"),COUNTIF('شيكات مجيرة'!$H$4:$H$996,'شيكات قيد التحصيل'!H244),\"0\")","v":"0"}]
[null,null,null,null,null,null,null,null,null,null,null,{"$f":"IF(AND(H245<>\"\",H245<>\"رقم الشيك\"),COUNTIF('شيكات مجيرة'!$H$4:$H$996,'شيكات قيد التحصيل'!H245),\"0\")","v":"0"}]
[null,null,null,null,null,null,null,null,null,null,null,{"$f":"IF(AND(H246<>\"\",H246<>\"رقم الشيك\"),COUNTIF('شيكات مجيرة'!$H$4:$H$996,'شيكات قيد التحصيل'!H246),\"0\")","v":"0"}]
[null,null,null,null,null,null,null,null,null,null,null,{"$f":"IF(AND(H247<>\"\",H247<>\"رقم الشيك\"),COUNTIF('شيكات مجيرة'!$H$4:$H$996,'شيكات قيد التحصيل'!H247),\"0\")","v":"0"}]
[null,null,null,null,null,null,null,null,null,null,null,{"$f":"IF(AND(H248<>\"\",H248<>\"رقم الشيك\"),COUNTIF('شيكات مجيرة'!$H$4:$H$996,'شيكات قيد التحصيل'!H248),\"0\")","v":"0"}]
[null,null,null,null,null,null,null,null,null,null,null,{"$f":"IF(AND(H249<>\"\",H249<>\"رقم الشيك\"),COUNTIF('شيكات مجيرة'!$H$4:$H$996,'شيكات قيد التحصيل'!H249),\"0\")","v":"0"}]
[null,null,null,null,null,null,null,null,null,null,null,{"$f":"IF(AND(H250<>\"\",H250<>\"رقم الشيك\"),COUNTIF('شيكات مجيرة'!$H$4:$H$996,'شيكات قيد التحصيل'!H250),\"0\")","v":"0"}]
[null,null,null,null,null,null,null,null,null,null,null,{"$f":"IF(AND(H251<>\"\",H251<>\"رقم الشيك\"),COUNTIF('شيكات مجيرة'!$H$4:$H$996,'شيكات قيد التحصيل'!H251),\"0\")","v":"0"}]
[null,null,null,null,null,null,null,null,null,null,null,{"$f":"IF(AND(H252<>\"\",H252<>\"رقم الشيك\"),COUNTIF('شيكات مجيرة'!$H$4:$H$996,'شيكات قيد التحصيل'!H252),\"0\")","v":"0"}]
[null,null,null,null,null,null,null,null,null,null,null,{"$f":"IF(AND(H253<>\"\",H253<>\"رقم الشيك\"),COUNTIF('شيكات مجيرة'!$H$4:$H$996,'شيكات قيد التحصيل'!H253),\"0\")","v":"0"}]
[null,null,null,null,null,null,null,null,null,null,null,{"$f":"IF(AND(H254<>\"\",H254<>\"رقم الشيك\"),COUNTIF('شيكات مجيرة'!$H$4:$H$996,'شيكات قيد التحصيل'!H254),\"0\")","v":"0"}]
[null,null,null,null,null,null,null,null,null,null,null,{"$f":"IF(AND(H255<>\"\",H255<>\"رقم الشيك\"),COUNTIF('شيكات مجيرة'!$H$4:$H$996,'شيكات قيد التحصيل'!H255),\"0\")","v":"0"}]
[null,null,null,null,null,null,null,null,null,null,null,{"$f":"IF(AND(H256<>\"\",H256<>\"رقم الشيك\"),COUNTIF('شيكات مجيرة'!$H$4:$H$996,'شيكات قيد التحصيل'!H256),\"0\")","v":"0"}]
[null,null,null,null,null,null,null,null,null,null,null,{"$f":"IF(AND(H257<>\"\",H257<>\"رقم الشيك\"),COUNTIF('شيكات مجيرة'!$H$4:$H$996,'شيكات قيد التحصيل'!H257),\"0\")","v":"0"}]
[null,null,null,null,null,null,null,null,null,null,null,{"$f":"IF(AND(H258<>\"\",H258<>\"رقم الشيك\"),COUNTIF('شيكات مجيرة'!$H$4:$H$996,'شيكات قيد التحصيل'!H258),\"0\")","v":"0"}]
[null,null,null,null,null,null,null,null,null,null,null,{"$f":"IF(AND(H259<>\"\",H259<>\"رقم الشيك\"),COUNTIF('شيكات مجيرة'!$H$4:$H$996,'شيكات قيد التحصيل'!H259),\"0\")","v":"0"}]
[null,null,null,null,null,null,null,null,null,null,null,{"$f":"IF(AND(H260<>\"\",H260<>\"رقم الشيك\"),COUNTIF('شيكات مجيرة'!$H$4:$H$996,'شيكات قيد التحصيل'!H260),\"0\")","v":"0"}]
[null,null,null,null,null,null,null,null,null,null,null,{"$f":"IF(AND(H261<>\"\",H261<>\"رقم الشيك\"),COUNTIF('شيكات مجيرة'!$H$4:$H$996,'شيكات قيد التحصيل'!H261),\"0\")","v":"0"}]
[null,null,null,null,null,null,null,null,null,null,null,{"$f":"IF(AND(H262<>\"\",H262<>\"رقم الشيك\"),COUNTIF('شيكات مجيرة'!$H$4:$H$996,'شيكات قيد التحصيل'!H262),\"0\")","v":"0"}]
[null,null,null,null,null,null,null,null,null,null,null,{"$f":"IF(AND(H263<>\"\",H263<>\"رقم الشيك\"),COUNTIF('شيكات مجيرة'!$H$4:$H$996,'شيكات قيد التحصيل'!H263),\"0\")","v":"0"}]
[null,null,null,null,null,null,null,null,null,null,null,{"$f":"IF(AND(H264<>\"\",H264<>\"رقم الشيك\"),COUNTIF('شيكات مجيرة'!$H$4:$H$996,'شيكات قيد التحصيل'!H264),\"0\")","v":"0"}]
[null,null,null,null,null,null,null,null,null,null,null,{"$f":"IF(AND(H265<>\"\",H265<>\"رقم الشيك\"),COUNTIF('شيكات مجيرة'!$H$4:$H$996,'شيكات قيد التحصيل'!H265),\"0\")","v":"0"}]
[null,null,null,null,null,null,null,null,null,null,null,{"$f":"IF(AND(H266<>\"\",H266<>\"رقم الشيك\"),COUNTIF('شيكات مجيرة'!$H$4:$H$996,'شيكات قيد التحصيل'!H266),\"0\")","v":"0"}]
[null,null,null,null,null,null,null,null,null,null,null,{"$f":"IF(AND(H267<>\"\",H267<>\"رقم الشيك\"),COUNTIF('شيكات مجيرة'!$H$4:$H$996,'شيكات قيد التحصيل'!H267),\"0\")","v":"0"}]
[null,null,null,null,null,null,null,null,null,null,null,{"$f":"IF(AND(H268<>\"\",H268<>\"رقم الشيك\"),COUNTIF('شيكات مجيرة'!$H$4:$H$996,'شيكات قيد التحصيل'!H268),\"0\")","v":"0"}]
[null,null,null,null,null,null,null,null,null,null,null,{"$f":"IF(AND(H269<>\"\",H269<>\"رقم الشيك\"),COUNTIF('شيكات مجيرة'!$H$4:$H$996,'شيكات قيد التحصيل'!H269),\"0\")","v":"0"}]
[null,null,null,null,null,null,null,null,null,null,null,{"$f":"IF(AND(H270<>\"\",H270<>\"رقم الشيك\"),COUNTIF('شيكات مجيرة'!$H$4:$H$996,'شيكات قيد التحصيل'!H270),\"0\")","v":"0"}]
[null,null,null,null,null,null,null,null,null,null,null,{"$f":"IF(AND(H271<>\"\",H271<>\"رقم الشيك\"),COUNTIF('شيكات مجيرة'!$H$4:$H$996,'شيكات قيد التحصيل'!H271),\"0\")","v":"0"}]
[null,null,null,null,null,null,null,null,null,null,null,{"$f":"IF(AND(H272<>\"\",H272<>\"رقم الشيك\"),COUNTIF('شيكات مجيرة'!$H$4:$H$996,'شيكات قيد التحصيل'!H272),\"0\")","v":"0"}]
[null,null,null,null,null,null,null,null,null,null,null,{"$f":"IF(AND(H273<>\"\",H273<>\"رقم الشيك\"),COUNTIF('شيكات مجيرة'!$H$4:$H$996,'شيكات قيد التحصيل'!H273),\"0\")","v":"0"}]
[null,null,null,null,null,null,null,null,null,null,null,{"$f":"IF(AND(H274<>\"\",H274<>\"رقم الشيك\"),COUNTIF('شيكات مجيرة'!$H$4:$H$996,'شيكات قيد التحصيل'!H274),\"0\")","v":"0"}]
[null,null,null,null,null,null,null,null,null,null,null,{"$f":"IF(AND(H275<>\"\",H275<>\"رقم الشيك\"),COUNTIF('شيكات مجيرة'!$H$4:$H$996,'شيكات قيد التحصيل'!H275),\"0\")","v":"0"}]
[null,null,null,null,null,null,null,null,null,null,null,{"$f":"IF(AND(H276<>\"\",H276<>\"رقم الشيك\"),COUNTIF('شيكات مجيرة'!$H$4:$H$996,'شيكات قيد التحصيل'!H276),\"0\")","v":"0"}]
[null,null,null,null,null,null,null,null,null,null,null,{"$f":"IF(AND(H277<>\"\",H277<>\"رقم الشيك\"),COUNTIF('شيكات مجيرة'!$H$4:$H$996,'شيكات قيد التحصيل'!H277),\"0\")","v":"0"}]
[null,null,null,null,null,null,null,null,null,null,null,{"$f":"IF(AND(H278<>\"\",H278<>\"رقم الشيك\"),COUNTIF('شيكات مجيرة'!$H$4:$H$996,'شيكات قيد التحصيل'!H278),\"0\")","v":"0"}]
[null,null,null,null,null,null,null,null,null,null,null,{"$f":"IF(AND(H279<>\"\",H279<>\"رقم الشيك\"),COUNTIF('شيكات مجيرة'!$H$4:$H$996,'شيكات قيد التحصيل'!H279),\"0\")","v":"0"}]
[null,null,null,null,null,null,null,null,null,null,null,{"$f":"IF(AND(H280<>\"\",H280<>\"رقم الشيك\"),COUNTIF('شيكات مجيرة'!$H$4:$H$996,'شيكات قيد التحصيل'!H280),\"0\")","v":"0"}]
[null,null,null,null,null,null,null,null,null,null,null,{"$f":"IF(AND(H281<>\"\",H281<>\"رقم الشيك\"),COUNTIF('شيكات مجيرة'!$H$4:$H$996,'شيكات قيد التحصيل'!H281),\"0\")","v":"0"}]
[null,null,null,null,null,null,null,null,null,null,null,{"$f":"IF(AND(H282<>\"\",H282<>\"رقم الشيك\"),COUNTIF('شيكات مجيرة'!$H$4:$H$996,'شيكات قيد التحصيل'!H282),\"0\")","v":"0"}]
[null,null,null,null,null,null,null,null,null,null,null,{"$f":"IF(AND(H283<>\"\",H283<>\"رقم الشيك\"),COUNTIF('شيكات مجيرة'!$H$4:$H$996,'شيكات قيد التحصيل'!H283),\"0\")","v":"0"}]
[null,null,null,null,null,null,null,null,null,null,null,{"$f":"IF(AND(H284<>\"\",H284<>\"رقم الشيك\"),COUNTIF('شيكات مجيرة'!$H$4:$H$996,'شيكات قيد التحصيل'!H284),\"0\")","v":"0"}]
[null,null,null,null,null,null,null,null,null,null,null,{"$f":"IF(AND(H285<>\"\",H285<>\"رقم الشيك\"),COUNTIF('شيكات مجيرة'!$H$4:$H$996,'شيكات قيد التحصيل'!H285),\"0\")","v":"0"}]
[null,null,null,null,null,null,null,null,null,null,null,{"$f":"IF(AND(H286<>\"\",H286<>\"رقم الشيك\"),COUNTIF('شيكات مجيرة'!$H$4:$H$996,'شيكات قيد التحصيل'!H286),\"0\")","v":"0"}]
[null,null,null,null,null,null,null,null,null,null,null,{"$f":"IF(AND(H287<>\"\",H287<>\"رقم الشيك\"),COUNTIF('شيكات مجيرة'!$H$4:$H$996,'شيكات قيد التحصيل'!H287),\"0\")","v":"0"}]
[null,null,null,null,null,null,null,null,null,null,null,{"$f":"IF(AND(H288<>\"\",H288<>\"رقم الشيك\"),COUNTIF('شيكات مجيرة'!$H$4:$H$996,'شيكات قيد التحصيل'!H288),\"0\")","v":"0"}]
[null,null,null,null,null,null,null,null,null,null,null,{"$f":"IF(AND(H289<>\"\",H289<>\"رقم الشيك\"),COUNTIF('شيكات مجيرة'!$H$4:$H$996,'شيكات قيد التحصيل'!H289),\"0\")","v":"0"}]
[null,null,null,null,null,null,null,null,null,null,null,{"$f":"IF(AND(H290<>\"\",H290<>\"رقم الشيك\"),COUNTIF('شيكات مجيرة'!$H$4:$H$996,'شيكات قيد التحصيل'!H290),\"0\")","v":"0"}]
[null,null,null,null,null,null,null,null,null,null,null,{"$f":"IF(AND(H291<>\"\",H291<>\"رقم الشيك\"),COUNTIF('شيكات مجيرة'!$H$4:$H$996,'شيكات قيد التحصيل'!H291),\"0\")","v":"0"}]
[null,null,null,null,null,null,null,null,null,null,null,{"$f":"IF(AND(H292<>\"\",H292<>\"رقم الشيك\"),COUNTIF('شيكات مجيرة'!$H$4:$H$996,'شيكات قيد التحصيل'!H292),\"0\")","v":"0"}]
[null,null,null,null,null,null,null,null,null,null,null,{"$f":"IF(AND(H293<>\"\",H293<>\"رقم الشيك\"),COUNTIF('شيكات مجيرة'!$H$4:$H$996,'شيكات قيد التحصيل'!H293),\"0\")","v":"0"}]
[null,null,null,null,null,null,null,null,null,null,null,{"$f":"IF(AND(H294<>\"\",H294<>\"رقم الشيك\"),COUNTIF('شيكات مجيرة'!$H$4:$H$996,'شيكات قيد التحصيل'!H294),\"0\")","v":"0"}]
[null,null,null,null,null,null,null,null,null,null,null,{"$f":"IF(AND(H295<>\"\",H295<>\"رقم الشيك\"),COUNTIF('شيكات مجيرة'!$H$4:$H$996,'شيكات قيد التحصيل'!H295),\"0\")","v":"0"}]
[null,null,null,null,null,null,null,null,null,null,null,{"$f":"IF(AND(H296<>\"\",H296<>\"رقم الشيك\"),COUNTIF('شيكات مجيرة'!$H$4:$H$996,'شيكات قيد التحصيل'!H296),\"0\")","v":"0"}]
[null,null,null,null,null,null,null,null,null,null,null,{"$f":"IF(AND(H297<>\"\",H297<>\"رقم الشيك\"),COUNTIF('شيكات مجيرة'!$H$4:$H$996,'شيكات قيد التحصيل'!H297),\"0\")","v":"0"}]
[null,null,null,null,null,null,null,null,null,null,null,{"$f":"IF(AND(H298<>\"\",H298<>\"رقم الشيك\"),COUNTIF('شيكات مجيرة'!$H$4:$H$996,'شيكات قيد التحصيل'!H298),\"0\")","v":"0"}]
[null,null,null,null,null,null,null,null,null,null,null,{"$f":"IF(AND(H299<>\"\",H299<>\"رقم الشيك\"),COUNTIF('شيكات مجيرة'!$H$4:$H$996,'شيكات قيد التحصيل'!H299),\"0\")","v":"0"}]
[null,null,null,null,null,null,null,null,null,null,null,{"$f":"IF(AND(H300<>\"\",H300<>\"رقم الشيك\"),COUNTIF('شيكات مجيرة'!$H$4:$H$996,'شيكات قيد التحصيل'!H300),\"0\")","v":"0"}]
[null,null,null,null,null,null,null,null,null,null,null,{"$f":"IF(AND(H301<>\"\",H301<>\"رقم الشيك\"),COUNTIF('شيكات مجيرة'!$H$4:$H$996,'شيكات قيد التحصيل'!H301),\"0\")","v":"0"}]
[null,null,null,null,null,null,null,null,null,null,null,{"$f":"IF(AND(H302<>\"\",H302<>\"رقم الشيك\"),COUNTIF('شيكات مجيرة'!$H$4:$H$996,'شيكات قيد التحصيل'!H302),\"0\")","v":"0"}]
[null,null,null,null,null,null,null,null,null,null,null,{"$f":"IF(AND(H303<>\"\",H303<>\"رقم الشيك\"),COUNTIF('شيكات مجيرة'!$H$4:$H$996,'شيكات قيد التحصيل'!H303),\"0\")","v":"0"}]
[null,null,null,null,null,null,null,null,null,null,null,{"$f":"IF(AND(H304<>\"\",H304<>\"رقم الشيك\"),COUNTIF('شيكات مجيرة'!$H$4:$H$996,'شيكات قيد التحصيل'!H304),\"0\")","v":"0"}]
[null,null,null,null,null,null,null,null,null,null,null,{"$f":"IF(AND(H305<>\"\",H305<>\"رقم الشيك\"),COUNTIF('شيكات مجيرة'!$H$4:$H$996,'شيكات قيد التحصيل'!H305),\"0\")","v":"0"}]
[null,null,null,null,null,null,null,null,null,null,null,{"$f":"IF(AND(H306<>\"\",H306<>\"رقم الشيك\"),COUNTIF('شيكات مجيرة'!$H$4:$H$996,'شيكات قيد التحصيل'!H306),\"0\")","v":"0"}]
[null,null,null,null,null,null,null,null,null,null,null,{"$f":"IF(AND(H307<>\"\",H307<>\"رقم الشيك\"),COUNTIF('شيكات مجيرة'!$H$4:$H$996,'شيكات قيد التحصيل'!H307),\"0\")","v":"0"}]
[null,null,null,null,null,null,null,null,null,null,null,{"$f":"IF(AND(H308<>\"\",H308<>\"رقم الشيك\"),COUNTIF('شيكات مجيرة'!$H$4:$H$996,'شيكات قيد التحصيل'!H308),\"0\")","v":"0"}]
[null,null,null,null,null,null,null,null,null,null,null,{"$f":"IF(AND(H309<>\"\",H309<>\"رقم الشيك\"),COUNTIF('شيكات مجيرة'!$H$4:$H$996,'شيكات قيد التحصيل'!H309),\"0\")","v":"0"}]
[null,null,null,null,null,null,null,null,null,null,null,{"$f":"IF(AND(H310<>\"\",H310<>\"رقم الشيك\"),COUNTIF('شيكات مجيرة'!$H$4:$H$996,'شيكات قيد التحصيل'!H310),\"0\")","v":"0"}]
[null,null,null,null,null,null,null,null,null,null,null,{"$f":"IF(AND(H311<>\"\",H311<>\"رقم الشيك\"),COUNTIF('شيكات مجيرة'!$H$4:$H$996,'شيكات قيد التحصيل'!H311),\"0\")","v":"0"}]
[null,null,null,null,null,null,null,null,null,null,null,{"$f":"IF(AND(H312<>\"\",H312<>\"رقم الشيك\"),COUNTIF('شيكات مجيرة'!$H$4:$H$996,'شيكات قيد التحصيل'!H312),\"0\")","v":"0"}]
[null,null,null,null,null,null,null,null,null,null,null,{"$f":"IF(AND(H313<>\"\",H313<>\"رقم الشيك\"),COUNTIF('شيكات مجيرة'!$H$4:$H$996,'شيكات قيد التحصيل'!H313),\"0\")","v":"0"}]
[null,null,null,null,null,null,null,null,null,null,null,{"$f":"IF(AND(H314<>\"\",H314<>\"رقم الشيك\"),COUNTIF('شيكات مجيرة'!$H$4:$H$996,'شيكات قيد التحصيل'!H314),\"0\")","v":"0"}]
[null,null,null,null,null,null,null,null,null,null,null,{"$f":"IF(AND(H315<>\"\",H315<>\"رقم الشيك\"),COUNTIF('شيكات مجيرة'!$H$4:$H$996,'شيكات قيد التحصيل'!H315),\"0\")","v":"0"}]
[null,null,null,null,null,null,null,null,null,null,null,{"$f":"IF(AND(H316<>\"\",H316<>\"رقم الشيك\"),COUNTIF('شيكات مجيرة'!$H$4:$H$996,'شيكات قيد التحصيل'!H316),\"0\")","v":"0"}]
[null,null,null,null,null,null,null,null,null,null,null,{"$f":"IF(AND(H317<>\"\",H317<>\"رقم الشيك\"),COUNTIF('شيكات مجيرة'!$H$4:$H$996,'شيكات قيد التحصيل'!H317),\"0\")","v":"0"}]
[null,null,null,null,null,null,null,null,null,null,null,{"$f":"IF(AND(H318<>\"\",H318<>\"رقم الشيك\"),COUNTIF('شيكات مجيرة'!$H$4:$H$996,'شيكات قيد التحصيل'!H318),\"0\")","v":"0"}]
[null,null,null,null,null,null,null,null,null,null,null,{"$f":"IF(AND(H319<>\"\",H319<>\"رقم الشيك\"),COUNTIF('شيكات مجيرة'!$H$4:$H$996,'شيكات قيد التحصيل'!H319),\"0\")","v":"0"}]
[null,null,null,null,null,null,null,null,null,null,null,{"$f":"IF(AND(H320<>\"\",H320<>\"رقم الشيك\"),COUNTIF('شيكات مجيرة'!$H$4:$H$996,'شيكات قيد التحصيل'!H320),\"0\")","v":"0"}]
[null,null,null,null,null,null,null,null,null,null,null,{"$f":"IF(AND(H321<>\"\",H321<>\"رقم الشيك\"),COUNTIF('شيكات مجيرة'!$H$4:$H$996,'شيكات قيد التحصيل'!H321),\"0\")","v":"0"}]
[null,null,null,null,null,null,null,null,null,null,null,{"$f":"IF(AND(H322<>\"\",H322<>\"رقم الشيك\"),COUNTIF('شيكات مجيرة'!$H$4:$H$996,'شيكات قيد التحصيل'!H322),\"0\")","v":"0"}]
[null,null,null,null,null,null,null,null,null,null,null,{"$f":"IF(AND(H323<>\"\",H323<>\"رقم الشيك\"),COUNTIF('شيكات مجيرة'!$H$4:$H$996,'شيكات قيد التحصيل'!H323),\"0\")","v":"0"}]
[null,null,null,null,null,null,null,null,null,null,null,{"$f":"IF(AND(H324<>\"\",H324<>\"رقم الشيك\"),COUNTIF('شيكات مجيرة'!$H$4:$H$996,'شيكات قيد التحصيل'!H324),\"0\")","v":"0"}]
[null,null,null,null,null,null,null,null,null,null,null,{"$f":"IF(AND(H325<>\"\",H325<>\"رقم الشيك\"),COUNTIF('شيكات مجيرة'!$H$4:$H$996,'شيكات قيد التحصيل'!H325),\"0\")","v":"0"}]
[null,null,null,null,null,null,null,null,null,null,null,{"$f":"IF(AND(H326<>\"\",H326<>\"رقم الشيك\"),COUNTIF('شيكات مجيرة'!$H$4:$H$996,'شيكات قيد التحصيل'!H326),\"0\")","v":"0"}]
[null,null,null,null,null,null,null,null,null,null,null,{"$f":"IF(AND(H327<>\"\",H327<>\"رقم الشيك\"),COUNTIF('شيكات مجيرة'!$H$4:$H$996,'شيكات قيد التحصيل'!H327),\"0\")","v":"0"}]
[null,null,null,null,null,null,null,null,null,null,null,{"$f":"IF(AND(H328<>\"\",H328<>\"رقم الشيك\"),COUNTIF('شيكات مجيرة'!$H$4:$H$996,'شيكات قيد التحصيل'!H328),\"0\")","v":"0"}]
[null,null,null,null,null,null,null,null,null,null,null,{"$f":"IF(AND(H329<>\"\",H329<>\"رقم الشيك\"),COUNTIF('شيكات مجيرة'!$H$4:$H$996,'شيكات قيد التحصيل'!H329),\"0\")","v":"0"}]
[null,null,null,null,null,null,null,null,null,null,null,{"$f":"IF(AND(H330<>\"\",H330<>\"رقم الشيك\"),COUNTIF('شيكات مجيرة'!$H$4:$H$996,'شيكات قيد التحصيل'!H330),\"0\")","v":"0"}]
[null,null,null,null,null,null,null,null,null,null,null,{"$f":"IF(AND(H331<>\"\",H331<>\"رقم الشيك\"),COUNTIF('شيكات مجيرة'!$H$4:$H$996,'شيكات قيد التحصيل'!H331),\"0\")","v":"0"}]
[null,null,null,null,null,null,null,null,null,null,null,{"$f":"IF(AND(H332<>\"\",H332<>\"رقم الشيك\"),COUNTIF('شيكات مجيرة'!$H$4:$H$996,'شيكات قيد التحصيل'!H332),\"0\")","v":"0"}]
[null,null,null,null,null,null,null,null,null,null,null,{"$f":"IF(AND(H333<>\"\",H333<>\"رقم الشيك\"),COUNTIF('شيكات مجيرة'!$H$4:$H$996,'شيكات قيد التحصيل'!H333),\"0\")","v":"0"}]
[null,null,null,null,null,null,null,null,null,null,null,{"$f":"IF(AND(H334<>\"\",H334<>\"رقم الشيك\"),COUNTIF('شيكات مجيرة'!$H$4:$H$996,'شيكات قيد التحصيل'!H334),\"0\")","v":"0"}]
[null,null,null,null,null,null,null,null,null,null,null,{"$f":"IF(AND(H335<>\"\",H335<>\"رقم الشيك\"),COUNTIF('شيكات مجيرة'!$H$4:$H$996,'شيكات قيد التحصيل'!H335),\"0\")","v":"0"}]
[null,null,null,null,null,null,null,null,null,null,null,{"$f":"IF(AND(H336<>\"\",H336<>\"رقم الشيك\"),COUNTIF('شيكات مجيرة'!$H$4:$H$996,'شيكات قيد التحصيل'!H336),\"0\")","v":"0"}]
[null,null,null,null,null,null,null,null,null,null,null,{"$f":"IF(AND(H337<>\"\",H337<>\"رقم الشيك\"),COUNTIF('شيكات مجيرة'!$H$4:$H$996,'شيكات قيد التحصيل'!H337),\"0\")","v":"0"}]
[null,null,null,null,null,null,null,null,null,null,null,{"$f":"IF(AND(H338<>\"\",H338<>\"رقم الشيك\"),COUNTIF('شيكات مجيرة'!$H$4:$H$996,'شيكات قيد التحصيل'!H338),\"0\")","v":"0"}]
[null,null,null,null,null,null,null,null,null,null,null,{"$f":"IF(AND(H339<>\"\",H339<>\"رقم الشيك\"),COUNTIF('شيكات مجيرة'!$H$4:$H$996,'شيكات قيد التحصيل'!H339),\"0\")","v":"0"}]
[null,null,null,null,null,null,null,null,null,null,null,{"$f":"IF(AND(H340<>\"\",H340<>\"رقم الشيك\"),COUNTIF('شيكات مجيرة'!$H$4:$H$996,'شيكات قيد التحصيل'!H340),\"0\")","v":"0"}]
[null,null,null,null,null,null,null,null,null,null,null,{"$f":"IF(AND(H341<>\"\",H341<>\"رقم الشيك\"),COUNTIF('شيكات مجيرة'!$H$4:$H$996,'شيكات قيد التحصيل'!H341),\"0\")","v":"0"}]
[null,null,null,null,null,null,null,null,null,null,null,{"$f":"IF(AND(H342<>\"\",H342<>\"رقم الشيك\"),COUNTIF('شيكات مجيرة'!$H$4:$H$996,'شيكات قيد التحصيل'!H342),\"0\")","v":"0"}]
[null,null,null,null,null,null,null,null,null,null,null,{"$f":"IF(AND(H343<>\"\",H343<>\"رقم الشيك\"),COUNTIF('شيكات مجيرة'!$H$4:$H$996,'شيكات قيد التحصيل'!H343),\"0\")","v":"0"}]
[null,null,null,null,null,null,null,null,null,null,null,{"$f":"IF(AND(H344<>\"\",H344<>\"رقم الشيك\"),COUNTIF('شيكات مجيرة'!$H$4:$H$996,'شيكات قيد التحصيل'!H344),\"0\")","v":"0"}]
[null,null,null,null,null,null,null,null,null,null,null,{"$f":"IF(AND(H345<>\"\",H345<>\"رقم الشيك\"),COUNTIF('شيكات مجيرة'!$H$4:$H$996,'شيكات قيد التحصيل'!H345),\"0\")","v":"0"}]
[null,null,null,null,null,null,null,null,null,null,null,{"$f":"IF(AND(H346<>\"\",H346<>\"رقم الشيك\"),COUNTIF('شيكات مجيرة'!$H$4:$H$996,'شيكات قيد التحصيل'!H346),\"0\")","v":"0"}]
[null,null,null,null,null,null,null,null,null,null,null,{"$f":"IF(AND(H347<>\"\",H347<>\"رقم الشيك\"),COUNTIF('شيكات مجيرة'!$H$4:$H$996,'شيكات قيد التحصيل'!H347),\"0\")","v":"0"}]
[null,null,null,null,null,null,null,null,null,null,null,{"$f":"IF(AND(H348<>\"\",H348<>\"رقم الشيك\"),COUNTIF('شيكات مجيرة'!$H$4:$H$996,'شيكات قيد التحصيل'!H348),\"0\")","v":"0"}]
[null,null,null,null,null,null,null,null,null,null,null,{"$f":"IF(AND(H349<>\"\",H349<>\"رقم الشيك\"),COUNTIF('شيكات مجيرة'!$H$4:$H$996,'شيكات قيد التحصيل'!H349),\"0\")","v":"0"}]
[null,null,null,null,null,null,null,null,null,null,null,{"$f":"IF(AND(H350<>\"\",H350<>\"رقم الشيك\"),COUNTIF('شيكات مجيرة'!$H$4:$H$996,'شيكات قيد التحصيل'!H350),\"0\")","v":"0"}]
[null,null,null,null,null,null,null,null,null,null,null,{"$f":"IF(AND(H351<>\"\",H351<>\"رقم الشيك\"),COUNTIF('شيكات مجيرة'!$H$4:$H$996,'شيكات قيد التحصيل'!H351),\"0\")","v":"0"}]
[null,null,null,null,null,null,null,null,null,null,null,{"$f":"IF(AND(H352<>\"\",H352<>\"رقم الشيك\"),COUNTIF('شيكات مجيرة'!$H$4:$H$996,'شيكات قيد التحصيل'!H352),\"0\")","v":"0"}]
[null,null,null,null,null,null,null,null,null,null,null,{"$f":"IF(AND(H353<>\"\",H353<>\"رقم الشيك\"),COUNTIF('شيكات مجيرة'!$H$4:$H$996,'شيكات قيد التحصيل'!H353),\"0\")","v":"0"}]
[null,null,null,null,null,null,null,null,null,null,null,{"$f":"IF(AND(H354<>\"\",H354<>\"رقم الشيك\"),COUNTIF('شيكات مجيرة'!$H$4:$H$996,'شيكات قيد التحصيل'!H354),\"0\")","v":"0"}]
[null,null,null,null,null,null,null,null,null,null,null,{"$f":"IF(AND(H355<>\"\",H355<>\"رقم الشيك\"),COUNTIF('شيكات مجيرة'!$H$4:$H$996,'شيكات قيد التحصيل'!H355),\"0\")","v":"0"}]
[null,null,null,null,null,null,null,null,null,null,null,{"$f":"IF(AND(H356<>\"\",H356<>\"رقم الشيك\"),COUNTIF('شيكات مجيرة'!$H$4:$H$996,'شيكات قيد التحصيل'!H356),\"0\")","v":"0"}]
[null,null,null,null,null,null,null,null,null,null,null,{"$f":"IF(AND(H357<>\"\",H357<>\"رقم الشيك\"),COUNTIF('شيكات مجيرة'!$H$4:$H$996,'شيكات قيد التحصيل'!H357),\"0\")","v":"0"}]
[null,null,null,null,null,null,null,null,null,null,null,{"$f":"IF(AND(H358<>\"\",H358<>\"رقم الشيك\"),COUNTIF('شيكات مجيرة'!$H$4:$H$996,'شيكات قيد التحصيل'!H358),\"0\")","v":"0"}]
[null,null,null,null,null,null,null,null,null,null,null,{"$f":"IF(AND(H359<>\"\",H359<>\"رقم الشيك\"),COUNTIF('شيكات مجيرة'!$H$4:$H$996,'شيكات قيد التحصيل'!H359),\"0\")","v":"0"}]
[null,null,null,null,null,null,null,null,null,null,null,{"$f":"IF(AND(H360<>\"\",H360<>\"رقم الشيك\"),COUNTIF('شيكات مجيرة'!$H$4:$H$996,'شيكات قيد التحصيل'!H360),\"0\")","v":"0"}]
[null,null,null,null,null,null,null,null,null,null,null,{"$f":"IF(AND(H361<>\"\",H361<>\"رقم الشيك\"),COUNTIF('شيكات مجيرة'!$H$4:$H$996,'شيكات قيد التحصيل'!H361),\"0\")","v":"0"}]
[null,null,null,null,null,null,null,null,null,null,null,{"$f":"IF(AND(H362<>\"\",H362<>\"رقم الشيك\"),COUNTIF('شيكات مجيرة'!$H$4:$H$996,'شيكات قيد التحصيل'!H362),\"0\")","v":"0"}]
[null,null,null,null,null,null,null,null,null,null,null,{"$f":"IF(AND(H363<>\"\",H363<>\"رقم الشيك\"),COUNTIF('شيكات مجيرة'!$H$4:$H$996,'شيكات قيد التحصيل'!H363),\"0\")","v":"0"}]
[null,null,null,null,null,null,null,null,null,null,null,{"$f":"IF(AND(H364<>\"\",H364<>\"رقم الشيك\"),COUNTIF('شيكات مجيرة'!$H$4:$H$996,'شيكات قيد التحصيل'!H364),\"0\")","v":"0"}]
[null,null,null,null,null,null,null,null,null,null,null,{"$f":"IF(AND(H365<>\"\",H365<>\"رقم الشيك\"),COUNTIF('شيكات مجيرة'!$H$4:$H$996,'شيكات قيد التحصيل'!H365),\"0\")","v":"0"}]
[null,null,null,null,null,null,null,null,null,null,null,{"$f":"IF(AND(H366<>\"\",H366<>\"رقم الشيك\"),COUNTIF('شيكات مجيرة'!$H$4:$H$996,'شيكات قيد التحصيل'!H366),\"0\")","v":"0"}]
[null,null,null,null,null,null,null,null,null,null,null,{"$f":"IF(AND(H367<>\"\",H367<>\"رقم الشيك\"),COUNTIF('شيكات مجيرة'!$H$4:$H$996,'شيكات قيد التحصيل'!H367),\"0\")","v":"0"}]
[null,null,null,null,null,null,null,null,null,null,null,{"$f":"IF(AND(H368<>\"\",H368<>\"رقم الشيك\"),COUNTIF('شيكات مجيرة'!$H$4:$H$996,'شيكات قيد التحصيل'!H368),\"0\")","v":"0"}]
[null,null,null,null,null,null,null,null,null,null,null,{"$f":"IF(AND(H369<>\"\",H369<>\"رقم الشيك\"),COUNTIF('شيكات مجيرة'!$H$4:$H$996,'شيكات قيد التحصيل'!H369),\"0\")","v":"0"}]
[null,null,null,null,null,null,null,null,null,null,null,{"$f":"IF(AND(H370<>\"\",H370<>\"رقم الشيك\"),COUNTIF('شيكات مجيرة'!$H$4:$H$996,'شيكات قيد التحصيل'!H370),\"0\")","v":"0"}]
[null,null,null,null,null,null,null,null,null,null,null,{"$f":"IF(AND(H371<>\"\",H371<>\"رقم الشيك\"),COUNTIF('شيكات مجيرة'!$H$4:$H$996,'شيكات قيد التحصيل'!H371),\"0\")","v":"0"}]
[null,null,null,null,null,null,null,null,null,null,null,{"$f":"IF(AND(H372<>\"\",H372<>\"رقم الشيك\"),COUNTIF('شيكات مجيرة'!$H$4:$H$996,'شيكات قيد التحصيل'!H372),\"0\")","v":"0"}]
[null,null,null,null,null,null,null,null,null,null,null,{"$f":"IF(AND(H373<>\"\",H373<>\"رقم الشيك\"),COUNTIF('شيكات مجيرة'!$H$4:$H$996,'شيكات قيد التحصيل'!H373),\"0\")","v":"0"}]
[null,null,null,null,null,null,null,null,null,null,null,{"$f":"IF(AND(H374<>\"\",H374<>\"رقم الشيك\"),COUNTIF('شيكات مجيرة'!$H$4:$H$996,'شيكات قيد التحصيل'!H374),\"0\")","v":"0"}]
[null,null,null,null,null,null,null,null,null,null,null,{"$f":"IF(AND(H375<>\"\",H375<>\"رقم الشيك\"),COUNTIF('شيكات مجيرة'!$H$4:$H$996,'شيكات قيد التحصيل'!H375),\"0\")","v":"0"}]
[null,null,null,null,null,null,null,null,null,null,null,{"$f":"IF(AND(H376<>\"\",H376<>\"رقم الشيك\"),COUNTIF('شيكات مجيرة'!$H$4:$H$996,'شيكات قيد التحصيل'!H376),\"0\")","v":"0"}]
[null,null,null,null,null,null,null,null,null,null,null,{"$f":"IF(AND(H377<>\"\",H377<>\"رقم الشيك\"),COUNTIF('شيكات مجيرة'!$H$4:$H$996,'شيكات قيد التحصيل'!H377),\"0\")","v":"0"}]
[null,null,null,null,null,null,null,null,null,null,null,{"$f":"IF(AND(H378<>\"\",H378<>\"رقم الشيك\"),COUNTIF('شيكات مجيرة'!$H$4:$H$996,'شيكات قيد التحصيل'!H378),\"0\")","v":"0"}]
[null,null,null,null,null,null,null,null,null,null,null,{"$f":"IF(AND(H379<>\"\",H379<>\"رقم الشيك\"),COUNTIF('شيكات مجيرة'!$H$4:$H$996,'شيكات قيد التحصيل'!H379),\"0\")","v":"0"}]
[null,null,null,null,null,null,null,null,null,null,null,{"$f":"IF(AND(H380<>\"\",H380<>\"رقم الشيك\"),COUNTIF('شيكات مجيرة'!$H$4:$H$996,'شيكات قيد التحصيل'!H380),\"0\")","v":"0"}]
[null,null,null,null,null,null,null,null,null,null,null,{"$f":"IF(AND(H381<>\"\",H381<>\"رقم الشيك\"),COUNTIF('شيكات مجيرة'!$H$4:$H$996,'شيكات قيد التحصيل'!H381),\"0\")","v":"0"}]
[null,null,null,null,null,null,null,null,null,null,null,{"$f":"IF(AND(H382<>\"\",H382<>\"رقم الشيك\"),COUNTIF('شيكات مجيرة'!$H$4:$H$996,'شيكات قيد التحصيل'!H382),\"0\")","v":"0"}]
[null,null,null,null,null,null,null,null,null,null,null,{"$f":"IF(AND(H383<>\"\",H383<>\"رقم الشيك\"),COUNTIF('شيكات مجيرة'!$H$4:$H$996,'شيكات قيد التحصيل'!H383),\"0\")","v":"0"}]
[null,null,null,null,null,null,null,null,null,null,null,{"$f":"IF(AND(H384<>\"\",H384<>\"رقم الشيك\"),COUNTIF('شيكات مجيرة'!$H$4:$H$996,'شيكات قيد التحصيل'!H384),\"0\")","v":"0"}]
[null,null,null,null,null,null,null,null,null,null,null,{"$f":"IF(AND(H385<>\"\",H385<>\"رقم الشيك\"),COUNTIF('شيكات مجيرة'!$H$4:$H$996,'شيكات قيد التحصيل'!H385),\"0\")","v":"0"}]
[null,null,null,null,null,null,null,null,null,null,null,{"$f":"IF(AND(H386<>\"\",H386<>\"رقم الشيك\"),COUNTIF('شيكات مجيرة'!$H$4:$H$996,'شيكات قيد التحصيل'!H386),\"0\")","v":"0"}]
[null,null,null,null,null,null,null,null,null,null,null,{"$f":"IF(AND(H387<>\"\",H387<>\"رقم الشيك\"),COUNTIF('شيكات مجيرة'!$H$4:$H$996,'شيكات قيد التحصيل'!H387),\"0\")","v":"0"}]
[null,null,null,null,null,null,null,null,null,null,null,{"$f":"IF(AND(H388<>\"\",H388<>\"رقم الشيك\"),COUNTIF('شيكات مجيرة'!$H$4:$H$996,'شيكات قيد التحصيل'!H388),\"0\")","v":"0"}]
[null,null,null,null,null,null,null,null,null,null,null,{"$f":"IF(AND(H389<>\"\",H389<>\"رقم الشيك\"),COUNTIF('شيكات مجيرة'!$H$4:$H$996,'شيكات قيد التحصيل'!H389),\"0\")","v":"0"}]
[null,null,null,null,null,null,null,null,null,null,null,{"$f":"IF(AND(H390<>\"\",H390<>\"رقم الشيك\"),COUNTIF('شيكات مجيرة'!$H$4:$H$996,'شيكات قيد التحصيل'!H390),\"0\")","v":"0"}]
[null,null,null,null,null,null,null,null,null,null,null,{"$f":"IF(AND(H391<>\"\",H391<>\"رقم الشيك\"),COUNTIF('شيكات مجيرة'!$H$4:$H$996,'شيكات قيد التحصيل'!H391),\"0\")","v":"0"}]
[null,null,null,null,null,null,null,null,null,null,null,{"$f":"IF(AND(H392<>\"\",H392<>\"رقم الشيك\"),COUNTIF('شيكات مجيرة'!$H$4:$H$996,'شيكات قيد التحصيل'!H392),\"0\")","v":"0"}]
[null,null,null,null,null,null,null,null,null,null,null,{"$f":"IF(AND(H393<>\"\",H393<>\"رقم الشيك\"),COUNTIF('شيكات مجيرة'!$H$4:$H$996,'شيكات قيد التحصيل'!H393),\"0\")","v":"0"}]
[null,null,null,null,null,null,null,null,null,null,null,{"$f":"IF(AND(H394<>\"\",H394<>\"رقم الشيك\"),COUNTIF('شيكات مجيرة'!$H$4:$H$996,'شيكات قيد التحصيل'!H394),\"0\")","v":"0"}]
[null,null,null,null,null,null,null,null,null,null,null,{"$f":"IF(AND(H395<>\"\",H395<>\"رقم الشيك\"),COUNTIF('شيكات مجيرة'!$H$4:$H$996,'شيكات قيد التحصيل'!H395),\"0\")","v":"0"}]
[null,null,null,null,null,null,null,null,null,null,null,{"$f":"IF(AND(H396<>\"\",H396<>\"رقم الشيك\"),COUNTIF('شيكات مجيرة'!$H$4:$H$996,'شيكات قيد التحصيل'!H396),\"0\")","v":"0"}]
[null,null,null,null,null,null,null,null,null,null,null,{"$f":"IF(AND(H397<>\"\",H397<>\"رقم الشيك\"),COUNTIF('شيكات مجيرة'!$H$4:$H$996,'شيكات قيد التحصيل'!H397),\"0\")","v":"0"}]
[null,null,null,null,null,null,null,null,null,null,null,{"$f":"IF(AND(H398<>\"\",H398<>\"رقم الشيك\"),COUNTIF('شيكات مجيرة'!$H$4:$H$996,'شيكات قيد التحصيل'!H398),\"0\")","v":"0"}]
[null,null,null,null,null,null,null,null,null,null,null,{"$f":"IF(AND(H399<>\"\",H399<>\"رقم الشيك\"),COUNTIF('شيكات مجيرة'!$H$4:$H$996,'شيكات قيد التحصيل'!H399),\"0\")","v":"0"}]
[null,null,null,null,null,null,null,null,null,null,null,{"$f":"IF(AND(H400<>\"\",H400<>\"رقم الشيك\"),COUNTIF('شيكات مجيرة'!$H$4:$H$996,'شيكات قيد التحصيل'!H400),\"0\")","v":"0"}]
[null,null,null,null,null,null,null,null,null,null,null,{"$f":"IF(AND(H401<>\"\",H401<>\"رقم الشيك\"),COUNTIF('شيكات مجيرة'!$H$4:$H$996,'شيكات قيد التحصيل'!H401),\"0\")","v":"0"}]
[null,null,null,null,null,null,null,null,null,null,null,{"$f":"IF(AND(H402<>\"\",H402<>\"رقم الشيك\"),COUNTIF('شيكات مجيرة'!$H$4:$H$996,'شيكات قيد التحصيل'!H402),\"0\")","v":"0"}]
[null,null,null,null,null,null,null,null,null,null,null,{"$f":"IF(AND(H403<>\"\",H403<>\"رقم الشيك\"),COUNTIF('شيكات مجيرة'!$H$4:$H$996,'شيكات قيد التحصيل'!H403),\"0\")","v":"0"}]
[null,null,null,null,null,null,null,null,null,null,null,{"$f":"IF(AND(H404<>\"\",H404<>\"رقم الشيك\"),COUNTIF('شيكات مجيرة'!$H$4:$H$996,'شيكات قيد التحصيل'!H404),\"0\")","v":"0"}]
[null,null,null,null,null,null,null,null,null,null,null,{"$f":"IF(AND(H405<>\"\",H405<>\"رقم الشيك\"),COUNTIF('شيكات مجيرة'!$H$4:$H$996,'شيكات قيد التحصيل'!H405),\"0\")","v":"0"}]
[null,null,null,null,null,null,null,null,null,null,null,{"$f":"IF(AND(H406<>\"\",H406<>\"رقم الشيك\"),COUNTIF('شيكات مجيرة'!$H$4:$H$996,'شيكات قيد التحصيل'!H406),\"0\")","v":"0"}]
[null,null,null,null,null,null,null,null,null,null,null,{"$f":"IF(AND(H407<>\"\",H407<>\"رقم الشيك\"),COUNTIF('شيكات مجيرة'!$H$4:$H$996,'شيكات قيد التحصيل'!H407),\"0\")","v":"0"}]
[null,null,null,null,null,null,null,null,null,null,null,{"$f":"IF(AND(H408<>\"\",H408<>\"رقم الشيك\"),COUNTIF('شيكات مجيرة'!$H$4:$H$996,'شيكات قيد التحصيل'!H408),\"0\")","v":"0"}]
[null,null,null,null,null,null,null,null,null,null,null,{"$f":"IF(AND(H409<>\"\",H409<>\"رقم الشيك\"),COUNTIF('شيكات مجيرة'!$H$4:$H$996,'شيكات قيد التحصيل'!H409),\"0\")","v":"0"}]
[null,null,null,null,null,null,null,null,null,null,null,{"$f":"IF(AND(H410<>\"\",H410<>\"رقم الشيك\"),COUNTIF('شيكات مجيرة'!$H$4:$H$996,'شيكات قيد التحصيل'!H410),\"0\")","v":"0"}]
[null,null,null,null,null,null,null,null,null,null,null,{"$f":"IF(AND(H411<>\"\",H411<>\"رقم الشيك\"),COUNTIF('شيكات مجيرة'!$H$4:$H$996,'شيكات قيد التحصيل'!H411),\"0\")","v":"0"}]
[null,null,null,null,null,null,null,null,null,null,null,{"$f":"IF(AND(H412<>\"\",H412<>\"رقم الشيك\"),COUNTIF('شيكات مجيرة'!$H$4:$H$996,'شيكات قيد التحصيل'!H412),\"0\")","v":"0"}]
[null,null,null,null,null,null,null,null,null,null,null,{"$f":"IF(AND(H413<>\"\",H413<>\"رقم الشيك\"),COUNTIF('شيكات مجيرة'!$H$4:$H$996,'شيكات قيد التحصيل'!H413),\"0\")","v":"0"}]
[null,null,null,null,null,null,null,null,null,null,null,{"$f":"IF(AND(H414<>\"\",H414<>\"رقم الشيك\"),COUNTIF('شيكات مجيرة'!$H$4:$H$996,'شيكات قيد التحصيل'!H414),\"0\")","v":"0"}]
[null,null,null,null,null,null,null,null,null,null,null,{"$f":"IF(AND(H415<>\"\",H415<>\"رقم الشيك\"),COUNTIF('شيكات مجيرة'!$H$4:$H$996,'شيكات قيد التحصيل'!H415),\"0\")","v":"0"}]
[null,null,null,null,null,null,null,null,null,null,null,{"$f":"IF(AND(H416<>\"\",H416<>\"رقم الشيك\"),COUNTIF('شيكات مجيرة'!$H$4:$H$996,'شيكات قيد التحصيل'!H416),\"0\")","v":"0"}]
[null,null,null,null,null,null,null,null,null,null,null,{"$f":"IF(AND(H417<>\"\",H417<>\"رقم الشيك\"),COUNTIF('شيكات مجيرة'!$H$4:$H$996,'شيكات قيد التحصيل'!H417),\"0\")","v":"0"}]
[null,null,null,null,null,null,null,null,null,null,null,{"$f":"IF(AND(H418<>\"\",H418<>\"رقم الشيك\"),COUNTIF('شيكات مجيرة'!$H$4:$H$996,'شيكات قيد التحصيل'!H418),\"0\")","v":"0"}]
[null,null,null,null,null,null,null,null,null,null,null,{"$f":"IF(AND(H419<>\"\",H419<>\"رقم الشيك\"),COUNTIF('شيكات مجيرة'!$H$4:$H$996,'شيكات قيد التحصيل'!H419),\"0\")","v":"0"}]
[null,null,null,null,null,null,null,null,null,null,null,{"$f":"IF(AND(H420<>\"\",H420<>\"رقم الشيك\"),COUNTIF('شيكات مجيرة'!$H$4:$H$996,'شيكات قيد التحصيل'!H420),\"0\")","v":"0"}]
[null,null,null,null,null,null,null,null,null,null,null,{"$f":"IF(AND(H421<>\"\",H421<>\"رقم الشيك\"),COUNTIF('شيكات مجيرة'!$H$4:$H$996,'شيكات قيد التحصيل'!H421),\"0\")","v":"0"}]
[null,null,null,null,null,null,null,null,null,null,null,{"$f":"IF(AND(H422<>\"\",H422<>\"رقم الشيك\"),COUNTIF('شيكات مجيرة'!$H$4:$H$996,'شيكات قيد التحصيل'!H422),\"0\")","v":"0"}]
[null,null,null,null,null,null,null,null,null,null,null,{"$f":"IF(AND(H423<>\"\",H423<>\"رقم الشيك\"),COUNTIF('شيكات مجيرة'!$H$4:$H$996,'شيكات قيد التحصيل'!H423),\"0\")","v":"0"}]
[null,null,null,null,null,null,null,null,null,null,null,{"$f":"IF(AND(H424<>\"\",H424<>\"رقم الشيك\"),COUNTIF('شيكات مجيرة'!$H$4:$H$996,'شيكات قيد التحصيل'!H424),\"0\")","v":"0"}]
[null,null,null,null,null,null,null,null,null,null,null,{"$f":"IF(AND(H425<>\"\",H425<>\"رقم الشيك\"),COUNTIF('شيكات مجيرة'!$H$4:$H$996,'شيكات قيد التحصيل'!H425),\"0\")","v":"0"}]
[null,null,null,null,null,null,null,null,null,null,null,{"$f":"IF(AND(H426<>\"\",H426<>\"رقم الشيك\"),COUNTIF('شيكات مجيرة'!$H$4:$H$996,'شيكات قيد التحصيل'!H426),\"0\")","v":"0"}]
[null,null,null,null,null,null,null,null,null,null,null,{"$f":"IF(AND(H427<>\"\",H427<>\"رقم الشيك\"),COUNTIF('شيكات مجيرة'!$H$4:$H$996,'شيكات قيد التحصيل'!H427),\"0\")","v":"0"}]
[null,null,null,null,null,null,null,null,null,null,null,{"$f":"IF(AND(H428<>\"\",H428<>\"رقم الشيك\"),COUNTIF('شيكات مجيرة'!$H$4:$H$996,'شيكات قيد التحصيل'!H428),\"0\")","v":"0"}]
[null,null,null,null,null,null,null,null,null,null,null,{"$f":"IF(AND(H429<>\"\",H429<>\"رقم الشيك\"),COUNTIF('شيكات مجيرة'!$H$4:$H$996,'شيكات قيد التحصيل'!H429),\"0\")","v":"0"}]
[null,null,null,null,null,null,null,null,null,null,null,{"$f":"IF(AND(H430<>\"\",H430<>\"رقم الشيك\"),COUNTIF('شيكات مجيرة'!$H$4:$H$996,'شيكات قيد التحصيل'!H430),\"0\")","v":"0"}]
[null,null,null,null,null,null,null,null,null,null,null,{"$f":"IF(AND(H431<>\"\",H431<>\"رقم الشيك\"),COUNTIF('شيكات مجيرة'!$H$4:$H$996,'شيكات قيد التحصيل'!H431),\"0\")","v":"0"}]
[null,null,null,null,null,null,null,null,null,null,null,{"$f":"IF(AND(H432<>\"\",H432<>\"رقم الشيك\"),COUNTIF('شيكات مجيرة'!$H$4:$H$996,'شيكات قيد التحصيل'!H432),\"0\")","v":"0"}]
[null,null,null,null,null,null,null,null,null,null,null,{"$f":"IF(AND(H433<>\"\",H433<>\"رقم الشيك\"),COUNTIF('شيكات مجيرة'!$H$4:$H$996,'شيكات قيد التحصيل'!H433),\"0\")","v":"0"}]
[null,null,null,null,null,null,null,null,null,null,null,{"$f":"IF(AND(H434<>\"\",H434<>\"رقم الشيك\"),COUNTIF('شيكات مجيرة'!$H$4:$H$996,'شيكات قيد التحصيل'!H434),\"0\")","v":"0"}]
[null,null,null,null,null,null,null,null,null,null,null,{"$f":"IF(AND(H435<>\"\",H435<>\"رقم الشيك\"),COUNTIF('شيكات مجيرة'!$H$4:$H$996,'شيكات قيد التحصيل'!H435),\"0\")","v":"0"}]
[null,null,null,null,null,null,null,null,null,null,null,{"$f":"IF(AND(H436<>\"\",H436<>\"رقم الشيك\"),COUNTIF('شيكات مجيرة'!$H$4:$H$996,'شيكات قيد التحصيل'!H436),\"0\")","v":"0"}]
[null,null,null,null,null,null,null,null,null,null,null,{"$f":"IF(AND(H437<>\"\",H437<>\"رقم الشيك\"),COUNTIF('شيكات مجيرة'!$H$4:$H$996,'شيكات قيد التحصيل'!H437),\"0\")","v":"0"}]
[null,null,null,null,null,null,null,null,null,null,null,{"$f":"IF(AND(H438<>\"\",H438<>\"رقم الشيك\"),COUNTIF('شيكات مجيرة'!$H$4:$H$996,'شيكات قيد التحصيل'!H438),\"0\")","v":"0"}]
[null,null,null,null,null,null,null,null,null,null,null,{"$f":"IF(AND(H439<>\"\",H439<>\"رقم الشيك\"),COUNTIF('شيكات مجيرة'!$H$4:$H$996,'شيكات قيد التحصيل'!H439),\"0\")","v":"0"}]
[null,null,null,null,null,null,null,null,null,null,null,{"$f":"IF(AND(H440<>\"\",H440<>\"رقم الشيك\"),COUNTIF('شيكات مجيرة'!$H$4:$H$996,'شيكات قيد التحصيل'!H440),\"0\")","v":"0"}]
[null,null,null,null,null,null,null,null,null,null,null,{"$f":"IF(AND(H441<>\"\",H441<>\"رقم الشيك\"),COUNTIF('شيكات مجيرة'!$H$4:$H$996,'شيكات قيد التحصيل'!H441),\"0\")","v":"0"}]
[null,null,null,null,null,null,null,null,null,null,null,{"$f":"IF(AND(H442<>\"\",H442<>\"رقم الشيك\"),COUNTIF('شيكات مجيرة'!$H$4:$H$996,'شيكات قيد التحصيل'!H442),\"0\")","v":"0"}]
[null,null,null,null,null,null,null,null,null,null,null,{"$f":"IF(AND(H443<>\"\",H443<>\"رقم الشيك\"),COUNTIF('شيكات مجيرة'!$H$4:$H$996,'شيكات قيد التحصيل'!H443),\"0\")","v":"0"}]
[null,null,null,null,null,null,null,null,null,null,null,{"$f":"IF(AND(H444<>\"\",H444<>\"رقم الشيك\"),COUNTIF('شيكات مجيرة'!$H$4:$H$996,'شيكات قيد التحصيل'!H444),\"0\")","v":"0"}]
[null,null,null,null,null,null,null,null,null,null,null,{"$f":"IF(AND(H445<>\"\",H445<>\"رقم الشيك\"),COUNTIF('شيكات مجيرة'!$H$4:$H$996,'شيكات قيد التحصيل'!H445),\"0\")","v":"0"}]
[null,null,null,null,null,null,null,null,null,null,null,{"$f":"IF(AND(H446<>\"\",H446<>\"رقم الشيك\"),COUNTIF('شيكات مجيرة'!$H$4:$H$996,'شيكات قيد التحصيل'!H446),\"0\")","v":"0"}]
[null,null,null,null,null,null,null,null,null,null,null,{"$f":"IF(AND(H447<>\"\",H447<>\"رقم الشيك\"),COUNTIF('شيكات مجيرة'!$H$4:$H$996,'شيكات قيد التحصيل'!H447),\"0\")","v":"0"}]
[null,null,null,null,null,null,null,null,null,null,null,{"$f":"IF(AND(H448<>\"\",H448<>\"رقم الشيك\"),COUNTIF('شيكات مجيرة'!$H$4:$H$996,'شيكات قيد التحصيل'!H448),\"0\")","v":"0"}]
[null,null,null,null,null,null,null,null,null,null,null,{"$f":"IF(AND(H449<>\"\",H449<>\"رقم الشيك\"),COUNTIF('شيكات مجيرة'!$H$4:$H$996,'شيكات قيد التحصيل'!H449),\"0\")","v":"0"}]
[null,null,null,null,null,null,null,null,null,null,null,{"$f":"IF(AND(H450<>\"\",H450<>\"رقم الشيك\"),COUNTIF('شيكات مجيرة'!$H$4:$H$996,'شيكات قيد التحصيل'!H450),\"0\")","v":"0"}]
[null,null,null,null,null,null,null,null,null,null,null,{"$f":"IF(AND(H451<>\"\",H451<>\"رقم الشيك\"),COUNTIF('شيكات مجيرة'!$H$4:$H$996,'شيكات قيد التحصيل'!H451),\"0\")","v":"0"}]
[null,null,null,null,null,null,null,null,null,null,null,{"$f":"IF(AND(H452<>\"\",H452<>\"رقم الشيك\"),COUNTIF('شيكات مجيرة'!$H$4:$H$996,'شيكات قيد التحصيل'!H452),\"0\")","v":"0"}]
[null,null,null,null,null,null,null,null,null,null,null,{"$f":"IF(AND(H453<>\"\",H453<>\"رقم الشيك\"),COUNTIF('شيكات مجيرة'!$H$4:$H$996,'شيكات قيد التحصيل'!H453),\"0\")","v":"0"}]
[null,null,null,null,null,null,null,null,null,null,null,{"$f":"IF(AND(H454<>\"\",H454<>\"رقم الشيك\"),COUNTIF('شيكات مجيرة'!$H$4:$H$996,'شيكات قيد التحصيل'!H454),\"0\")","v":"0"}]
[null,null,null,null,null,null,null,null,null,null,null,{"$f":"IF(AND(H455<>\"\",H455<>\"رقم الشيك\"),COUNTIF('شيكات مجيرة'!$H$4:$H$996,'شيكات قيد التحصيل'!H455),\"0\")","v":"0"}]
[null,null,null,null,null,null,null,null,null,null,null,{"$f":"IF(AND(H456<>\"\",H456<>\"رقم الشيك\"),COUNTIF('شيكات مجيرة'!$H$4:$H$996,'شيكات قيد التحصيل'!H456),\"0\")","v":"0"}]
[null,null,null,null,null,null,null,null,null,null,null,{"$f":"IF(AND(H457<>\"\",H457<>\"رقم الشيك\"),COUNTIF('شيكات مجيرة'!$H$4:$H$996,'شيكات قيد التحصيل'!H457),\"0\")","v":"0"}]
[null,null,null,null,null,null,null,null,null,null,null,{"$f":"IF(AND(H458<>\"\",H458<>\"رقم الشيك\"),COUNTIF('شيكات مجيرة'!$H$4:$H$996,'شيكات قيد التحصيل'!H458),\"0\")","v":"0"}]
[null,null,null,null,null,null,null,null,null,null,null,{"$f":"IF(AND(H459<>\"\",H459<>\"رقم الشيك\"),COUNTIF('شيكات مجيرة'!$H$4:$H$996,'شيكات قيد التحصيل'!H459),\"0\")","v":"0"}]
[null,null,null,null,null,null,null,null,null,null,null,{"$f":"IF(AND(H460<>\"\",H460<>\"رقم الشيك\"),COUNTIF('شيكات مجيرة'!$H$4:$H$996,'شيكات قيد التحصيل'!H460),\"0\")","v":"0"}]
[null,null,null,null,null,null,null,null,null,null,null,{"$f":"IF(AND(H461<>\"\",H461<>\"رقم الشيك\"),COUNTIF('شيكات مجيرة'!$H$4:$H$996,'شيكات قيد التحصيل'!H461),\"0\")","v":"0"}]
[null,null,null,null,null,null,null,null,null,null,null,{"$f":"IF(AND(H462<>\"\",H462<>\"رقم الشيك\"),COUNTIF('شيكات مجيرة'!$H$4:$H$996,'شيكات قيد التحصيل'!H462),\"0\")","v":"0"}]
[null,null,null,null,null,null,null,null,null,null,null,{"$f":"IF(AND(H463<>\"\",H463<>\"رقم الشيك\"),COUNTIF('شيكات مجيرة'!$H$4:$H$996,'شيكات قيد التحصيل'!H463),\"0\")","v":"0"}]
[null,null,null,null,null,null,null,null,null,null,null,{"$f":"IF(AND(H464<>\"\",H464<>\"رقم الشيك\"),COUNTIF('شيكات مجيرة'!$H$4:$H$996,'شيكات قيد التحصيل'!H464),\"0\")","v":"0"}]
[null,null,null,null,null,null,null,null,null,null,null,{"$f":"IF(AND(H465<>\"\",H465<>\"رقم الشيك\"),COUNTIF('شيكات مجيرة'!$H$4:$H$996,'شيكات قيد التحصيل'!H465),\"0\")","v":"0"}]
[null,null,null,null,null,null,null,null,null,null,null,{"$f":"IF(AND(H466<>\"\",H466<>\"رقم الشيك\"),COUNTIF('شيكات مجيرة'!$H$4:$H$996,'شيكات قيد التحصيل'!H466),\"0\")","v":"0"}]
[null,null,null,null,null,null,null,null,null,null,null,{"$f":"IF(AND(H467<>\"\",H467<>\"رقم الشيك\"),COUNTIF('شيكات مجيرة'!$H$4:$H$996,'شيكات قيد التحصيل'!H467),\"0\")","v":"0"}]
[null,null,null,null,null,null,null,null,null,null,null,{"$f":"IF(AND(H468<>\"\",H468<>\"رقم الشيك\"),COUNTIF('شيكات مجيرة'!$H$4:$H$996,'شيكات قيد التحصيل'!H468),\"0\")","v":"0"}]
[null,null,null,null,null,null,null,null,null,null,null,{"$f":"IF(AND(H469<>\"\",H469<>\"رقم الشيك\"),COUNTIF('شيكات مجيرة'!$H$4:$H$996,'شيكات قيد التحصيل'!H469),\"0\")","v":"0"}]
[null,null,null,null,null,null,null,null,null,null,null,{"$f":"IF(AND(H470<>\"\",H470<>\"رقم الشيك\"),COUNTIF('شيكات مجيرة'!$H$4:$H$996,'شيكات قيد التحصيل'!H470),\"0\")","v":"0"}]
[null,null,null,null,null,null,null,null,null,null,null,{"$f":"IF(AND(H471<>\"\",H471<>\"رقم الشيك\"),COUNTIF('شيكات مجيرة'!$H$4:$H$996,'شيكات قيد التحصيل'!H471),\"0\")","v":"0"}]
[null,null,null,null,null,null,null,null,null,null,null,{"$f":"IF(AND(H472<>\"\",H472<>\"رقم الشيك\"),COUNTIF('شيكات مجيرة'!$H$4:$H$996,'شيكات قيد التحصيل'!H472),\"0\")","v":"0"}]
[null,null,null,null,null,null,null,null,null,null,null,{"$f":"IF(AND(H473<>\"\",H473<>\"رقم الشيك\"),COUNTIF('شيكات مجيرة'!$H$4:$H$996,'شيكات قيد التحصيل'!H473),\"0\")","v":"0"}]
[null,null,null,null,null,null,null,null,null,null,null,{"$f":"IF(AND(H474<>\"\",H474<>\"رقم الشيك\"),COUNTIF('شيكات مجيرة'!$H$4:$H$996,'شيكات قيد التحصيل'!H474),\"0\")","v":"0"}]
[null,null,null,null,null,null,null,null,null,null,null,{"$f":"IF(AND(H475<>\"\",H475<>\"رقم الشيك\"),COUNTIF('شيكات مجيرة'!$H$4:$H$996,'شيكات قيد التحصيل'!H475),\"0\")","v":"0"}]
[null,null,null,null,null,null,null,null,null,null,null,{"$f":"IF(AND(H476<>\"\",H476<>\"رقم الشيك\"),COUNTIF('شيكات مجيرة'!$H$4:$H$996,'شيكات قيد التحصيل'!H476),\"0\")","v":"0"}]
[null,null,null,null,null,null,null,null,null,null,null,{"$f":"IF(AND(H477<>\"\",H477<>\"رقم الشيك\"),COUNTIF('شيكات مجيرة'!$H$4:$H$996,'شيكات قيد التحصيل'!H477),\"0\")","v":"0"}]
[null,null,null,null,null,null,null,null,null,null,null,{"$f":"IF(AND(H478<>\"\",H478<>\"رقم الشيك\"),COUNTIF('شيكات مجيرة'!$H$4:$H$996,'شيكات قيد التحصيل'!H478),\"0\")","v":"0"}]
[null,null,null,null,null,null,null,null,null,null,null,{"$f":"IF(AND(H479<>\"\",H479<>\"رقم الشيك\"),COUNTIF('شيكات مجيرة'!$H$4:$H$996,'شيكات قيد التحصيل'!H479),\"0\")","v":"0"}]
[null,null,null,null,null,null,null,null,null,null,null,{"$f":"IF(AND(H480<>\"\",H480<>\"رقم الشيك\"),COUNTIF('شيكات مجيرة'!$H$4:$H$996,'شيكات قيد التحصيل'!H480),\"0\")","v":"0"}]
[null,null,null,null,null,null,null,null,null,null,null,{"$f":"IF(AND(H481<>\"\",H481<>\"رقم الشيك\"),COUNTIF('شيكات مجيرة'!$H$4:$H$996,'شيكات قيد التحصيل'!H481),\"0\")","v":"0"}]
[null,null,null,null,null,null,null,null,null,null,null,{"$f":"IF(AND(H482<>\"\",H482<>\"رقم الشيك\"),COUNTIF('شيكات مجيرة'!$H$4:$H$996,'شيكات قيد التحصيل'!H482),\"0\")","v":"0"}]
[null,null,null,null,null,null,null,null,null,null,null,{"$f":"IF(AND(H483<>\"\",H483<>\"رقم الشيك\"),COUNTIF('شيكات مجيرة'!$H$4:$H$996,'شيكات قيد التحصيل'!H483),\"0\")","v":"0"}]
[null,null,null,null,null,null,null,null,null,null,null,{"$f":"IF(AND(H484<>\"\",H484<>\"رقم الشيك\"),COUNTIF('شيكات مجيرة'!$H$4:$H$996,'شيكات قيد التحصيل'!H484),\"0\")","v":"0"}]
[null,null,null,null,null,null,null,null,null,null,null,{"$f":"IF(AND(H485<>\"\",H485<>\"رقم الشيك\"),COUNTIF('شيكات مجيرة'!$H$4:$H$996,'شيكات قيد التحصيل'!H485),\"0\")","v":"0"}]
[null,null,null,null,null,null,null,null,null,null,null,{"$f":"IF(AND(H486<>\"\",H486<>\"رقم الشيك\"),COUNTIF('شيكات مجيرة'!$H$4:$H$996,'شيكات قيد التحصيل'!H486),\"0\")","v":"0"}]
[null,null,null,null,null,null,null,null,null,null,null,{"$f":"IF(AND(H487<>\"\",H487<>\"رقم الشيك\"),COUNTIF('شيكات مجيرة'!$H$4:$H$996,'شيكات قيد التحصيل'!H487),\"0\")","v":"0"}]
[null,null,null,null,null,null,null,null,null,null,null,{"$f":"IF(AND(H488<>\"\",H488<>\"رقم الشيك\"),COUNTIF('شيكات مجيرة'!$H$4:$H$996,'شيكات قيد التحصيل'!H488),\"0\")","v":"0"}]
[null,null,null,null,null,null,null,null,null,null,null,{"$f":"IF(AND(H489<>\"\",H489<>\"رقم الشيك\"),COUNTIF('شيكات مجيرة'!$H$4:$H$996,'شيكات قيد التحصيل'!H489),\"0\")","v":"0"}]
[null,null,null,null,null,null,null,null,null,null,null,{"$f":"IF(AND(H490<>\"\",H490<>\"رقم الشيك\"),COUNTIF('شيكات مجيرة'!$H$4:$H$996,'شيكات قيد التحصيل'!H490),\"0\")","v":"0"}]
[null,null,null,null,null,null,null,null,null,null,null,{"$f":"IF(AND(H491<>\"\",H491<>\"رقم الشيك\"),COUNTIF('شيكات مجيرة'!$H$4:$H$996,'شيكات قيد التحصيل'!H491),\"0\")","v":"0"}]
[null,null,null,null,null,null,null,null,null,null,null,{"$f":"IF(AND(H492<>\"\",H492<>\"رقم الشيك\"),COUNTIF('شيكات مجيرة'!$H$4:$H$996,'شيكات قيد التحصيل'!H492),\"0\")","v":"0"}]
[null,null,null,null,null,null,null,null,null,null,null,{"$f":"IF(AND(H493<>\"\",H493<>\"رقم الشيك\"),COUNTIF('شيكات مجيرة'!$H$4:$H$996,'شيكات قيد التحصيل'!H493),\"0\")","v":"0"}]
[null,null,null,null,null,null,null,null,null,null,null,{"$f":"IF(AND(H494<>\"\",H494<>\"رقم الشيك\"),COUNTIF('شيكات مجيرة'!$H$4:$H$996,'شيكات قيد التحصيل'!H494),\"0\")","v":"0"}]
[null,null,null,null,null,null,null,null,null,null,null,{"$f":"IF(AND(H495<>\"\",H495<>\"رقم الشيك\"),COUNTIF('شيكات مجيرة'!$H$4:$H$996,'شيكات قيد التحصيل'!H495),\"0\")","v":"0"}]
[null,null,null,null,null,null,null,null,null,null,null,{"$f":"IF(AND(H496<>\"\",H496<>\"رقم الشيك\"),COUNTIF('شيكات مجيرة'!$H$4:$H$996,'شيكات قيد التحصيل'!H496),\"0\")","v":"0"}]
[null,null,null,null,null,null,null,null,null,null,null,{"$f":"IF(AND(H497<>\"\",H497<>\"رقم الشيك\"),COUNTIF('شيكات مجيرة'!$H$4:$H$996,'شيكات قيد التحصيل'!H497),\"0\")","v":"0"}]
[null,null,null,null,null,null,null,null,null,null,null,{"$f":"IF(AND(H498<>\"\",H498<>\"رقم الشيك\"),COUNTIF('شيكات مجيرة'!$H$4:$H$996,'شيكات قيد التحصيل'!H498),\"0\")","v":"0"}]
[null,null,null,null,null,null,null,null,null,null,null,{"$f":"IF(AND(H499<>\"\",H499<>\"رقم الشيك\"),COUNTIF('شيكات مجيرة'!$H$4:$H$996,'شيكات قيد التحصيل'!H499),\"0\")","v":"0"}]
[null,null,null,null,null,null,null,null,null,null,null,{"$f":"IF(AND(H500<>\"\",H500<>\"رقم الشيك\"),COUNTIF('شيكات مجيرة'!$H$4:$H$996,'شيكات قيد التحصيل'!H500),\"0\")","v":"0"}]
[null,null,null,null,null,null,null,null,null,null,null,{"$f":"IF(AND(H501<>\"\",H501<>\"رقم الشيك\"),COUNTIF('شيكات مجيرة'!$H$4:$H$996,'شيكات قيد التحصيل'!H501),\"0\")","v":"0"}]
[null,null,null,null,null,null,null,null,null,null,null,{"$f":"IF(AND(H502<>\"\",H502<>\"رقم الشيك\"),COUNTIF('شيكات مجيرة'!$H$4:$H$996,'شيكات قيد التحصيل'!H502),\"0\")","v":"0"}]
[null,null,null,null,null,null,null,null,null,null,null,{"$f":"IF(AND(H503<>\"\",H503<>\"رقم الشيك\"),COUNTIF('شيكات مجيرة'!$H$4:$H$996,'شيكات قيد التحصيل'!H503),\"0\")","v":"0"}]
[null,null,null,null,null,null,null,null,null,null,null,{"$f":"IF(AND(H504<>\"\",H504<>\"رقم الشيك\"),COUNTIF('شيكات مجيرة'!$H$4:$H$996,'شيكات قيد التحصيل'!H504),\"0\")","v":"0"}]
[null,null,null,null,null,null,null,null,null,null,null,{"$f":"IF(AND(H505<>\"\",H505<>\"رقم الشيك\"),COUNTIF('شيكات مجيرة'!$H$4:$H$996,'شيكات قيد التحصيل'!H505),\"0\")","v":"0"}]
[null,null,null,null,null,null,null,null,null,null,null,{"$f":"IF(AND(H506<>\"\",H506<>\"رقم الشيك\"),COUNTIF('شيكات مجيرة'!$H$4:$H$996,'شيكات قيد التحصيل'!H506),\"0\")","v":"0"}]
[null,null,null,null,null,null,null,null,null,null,null,{"$f":"IF(AND(H507<>\"\",H507<>\"رقم الشيك\"),COUNTIF('شيكات مجيرة'!$H$4:$H$996,'شيكات قيد التحصيل'!H507),\"0\")","v":"0"}]
[null,null,null,null,null,null,null,null,null,null,null,{"$f":"IF(AND(H508<>\"\",H508<>\"رقم الشيك\"),COUNTIF('شيكات مجيرة'!$H$4:$H$996,'شيكات قيد التحصيل'!H508),\"0\")","v":"0"}]
[null,null,null,null,null,null,null,null,null,null,null,{"$f":"IF(AND(H509<>\"\",H509<>\"رقم الشيك\"),COUNTIF('شيكات مجيرة'!$H$4:$H$996,'شيكات قيد التحصيل'!H509),\"0\")","v":"0"}]
[null,null,null,null,null,null,null,null,null,null,null,{"$f":"IF(AND(H510<>\"\",H510<>\"رقم الشيك\"),COUNTIF('شيكات مجيرة'!$H$4:$H$996,'شيكات قيد التحصيل'!H510),\"0\")","v":"0"}]
[null,null,null,null,null,null,null,null,null,null,null,{"$f":"IF(AND(H511<>\"\",H511<>\"رقم الشيك\"),COUNTIF('شيكات مجيرة'!$H$4:$H$996,'شيكات قيد التحصيل'!H511),\"0\")","v":"0"}]
[null,null,null,null,null,null,null,null,null,null,null,{"$f":"IF(AND(H512<>\"\",H512<>\"رقم الشيك\"),COUNTIF('شيكات مجيرة'!$H$4:$H$996,'شيكات قيد التحصيل'!H512),\"0\")","v":"0"}]
[null,null,null,null,null,null,null,null,null,null,null,{"$f":"IF(AND(H513<>\"\",H513<>\"رقم الشيك\"),COUNTIF('شيكات مجيرة'!$H$4:$H$996,'شيكات قيد التحصيل'!H513),\"0\")","v":"0"}]
[null,null,null,null,null,null,null,null,null,null,null,{"$f":"IF(AND(H514<>\"\",H514<>\"رقم الشيك\"),COUNTIF('شيكات مجيرة'!$H$4:$H$996,'شيكات قيد التحصيل'!H514),\"0\")","v":"0"}]
[null,null,null,null,null,null,null,null,null,null,null,{"$f":"IF(AND(H515<>\"\",H515<>\"رقم الشيك\"),COUNTIF('شيكات مجيرة'!$H$4:$H$996,'شيكات قيد التحصيل'!H515),\"0\")","v":"0"}]
[null,null,null,null,null,null,null,null,null,null,null,{"$f":"IF(AND(H516<>\"\",H516<>\"رقم الشيك\"),COUNTIF('شيكات مجيرة'!$H$4:$H$996,'شيكات قيد التحصيل'!H516),\"0\")","v":"0"}]
[null,null,null,null,null,null,null,null,null,null,null,{"$f":"IF(AND(H517<>\"\",H517<>\"رقم الشيك\"),COUNTIF('شيكات مجيرة'!$H$4:$H$996,'شيكات قيد التحصيل'!H517),\"0\")","v":"0"}]
[null,null,null,null,null,null,null,null,null,null,null,{"$f":"IF(AND(H518<>\"\",H518<>\"رقم الشيك\"),COUNTIF('شيكات مجيرة'!$H$4:$H$996,'شيكات قيد التحصيل'!H518),\"0\")","v":"0"}]
[null,null,null,null,null,null,null,null,null,null,null,{"$f":"IF(AND(H519<>\"\",H519<>\"رقم الشيك\"),COUNTIF('شيكات مجيرة'!$H$4:$H$996,'شيكات قيد التحصيل'!H519),\"0\")","v":"0"}]
[null,null,null,null,null,null,null,null,null,null,null,{"$f":"IF(AND(H520<>\"\",H520<>\"رقم الشيك\"),COUNTIF('شيكات مجيرة'!$H$4:$H$996,'شيكات قيد التحصيل'!H520),\"0\")","v":"0"}]
[null,null,null,null,null,null,null,null,null,null,null,{"$f":"IF(AND(H521<>\"\",H521<>\"رقم الشيك\"),COUNTIF('شيكات مجيرة'!$H$4:$H$996,'شيكات قيد التحصيل'!H521),\"0\")","v":"0"}]
[null,null,null,null,null,null,null,null,null,null,null,{"$f":"IF(AND(H522<>\"\",H522<>\"رقم الشيك\"),COUNTIF('شيكات مجيرة'!$H$4:$H$996,'شيكات قيد التحصيل'!H522),\"0\")","v":"0"}]
[null,null,null,null,null,null,null,null,null,null,null,{"$f":"IF(AND(H523<>\"\",H523<>\"رقم الشيك\"),COUNTIF('شيكات مجيرة'!$H$4:$H$996,'شيكات قيد التحصيل'!H523),\"0\")","v":"0"}]
[null,null,null,null,null,null,null,null,null,null,null,{"$f":"IF(AND(H524<>\"\",H524<>\"رقم الشيك\"),COUNTIF('شيكات مجيرة'!$H$4:$H$996,'شيكات قيد التحصيل'!H524),\"0\")","v":"0"}]
[null,null,null,null,null,null,null,null,null,null,null,{"$f":"IF(AND(H525<>\"\",H525<>\"رقم الشيك\"),COUNTIF('شيكات مجيرة'!$H$4:$H$996,'شيكات قيد التحصيل'!H525),\"0\")","v":"0"}]
[null,null,null,null,null,null,null,null,null,null,null,{"$f":"IF(AND(H526<>\"\",H526<>\"رقم الشيك\"),COUNTIF('شيكات مجيرة'!$H$4:$H$996,'شيكات قيد التحصيل'!H526),\"0\")","v":"0"}]
[null,null,null,null,null,null,null,null,null,null,null,{"$f":"IF(AND(H527<>\"\",H527<>\"رقم الشيك\"),COUNTIF('شيكات مجيرة'!$H$4:$H$996,'شيكات قيد التحصيل'!H527),\"0\")","v":"0"}]
[null,null,null,null,null,null,null,null,null,null,null,{"$f":"IF(AND(H528<>\"\",H528<>\"رقم الشيك\"),COUNTIF('شيكات مجيرة'!$H$4:$H$996,'شيكات قيد التحصيل'!H528),\"0\")","v":"0"}]
[null,null,null,null,null,null,null,null,null,null,null,{"$f":"IF(AND(H529<>\"\",H529<>\"رقم الشيك\"),COUNTIF('شيكات مجيرة'!$H$4:$H$996,'شيكات قيد التحصيل'!H529),\"0\")","v":"0"}]
[null,null,null,null,null,null,null,null,null,null,null,{"$f":"IF(AND(H530<>\"\",H530<>\"رقم الشيك\"),COUNTIF('شيكات مجيرة'!$H$4:$H$996,'شيكات قيد التحصيل'!H530),\"0\")","v":"0"}]
[null,null,null,null,null,null,null,null,null,null,null,{"$f":"IF(AND(H531<>\"\",H531<>\"رقم الشيك\"),COUNTIF('شيكات مجيرة'!$H$4:$H$996,'شيكات قيد التحصيل'!H531),\"0\")","v":"0"}]
[null,null,null,null,null,null,null,null,null,null,null,{"$f":"IF(AND(H532<>\"\",H532<>\"رقم الشيك\"),COUNTIF('شيكات مجيرة'!$H$4:$H$996,'شيكات قيد التحصيل'!H532),\"0\")","v":"0"}]
[null,null,null,null,null,null,null,null,null,null,null,{"$f":"IF(AND(H533<>\"\",H533<>\"رقم الشيك\"),COUNTIF('شيكات مجيرة'!$H$4:$H$996,'شيكات قيد التحصيل'!H533),\"0\")","v":"0"}]
[null,null,null,null,null,null,null,null,null,null,null,{"$f":"IF(AND(H534<>\"\",H534<>\"رقم الشيك\"),COUNTIF('شيكات مجيرة'!$H$4:$H$996,'شيكات قيد التحصيل'!H534),\"0\")","v":"0"}]
[null,null,null,null,null,null,null,null,null,null,null,{"$f":"IF(AND(H535<>\"\",H535<>\"رقم الشيك\"),COUNTIF('شيكات مجيرة'!$H$4:$H$996,'شيكات قيد التحصيل'!H535),\"0\")","v":"0"}]
[null,null,null,null,null,null,null,null,null,null,null,{"$f":"IF(AND(H536<>\"\",H536<>\"رقم الشيك\"),COUNTIF('شيكات مجيرة'!$H$4:$H$996,'شيكات قيد التحصيل'!H536),\"0\")","v":"0"}]
[null,null,null,null,null,null,null,null,null,null,null,{"$f":"IF(AND(H537<>\"\",H537<>\"رقم الشيك\"),COUNTIF('شيكات مجيرة'!$H$4:$H$996,'شيكات قيد التحصيل'!H537),\"0\")","v":"0"}]
[null,null,null,null,null,null,null,null,null,null,null,{"$f":"IF(AND(H538<>\"\",H538<>\"رقم الشيك\"),COUNTIF('شيكات مجيرة'!$H$4:$H$996,'شيكات قيد التحصيل'!H538),\"0\")","v":"0"}]
[null,null,null,null,null,null,null,null,null,null,null,{"$f":"IF(AND(H539<>\"\",H539<>\"رقم الشيك\"),COUNTIF('شيكات مجيرة'!$H$4:$H$996,'شيكات قيد التحصيل'!H539),\"0\")","v":"0"}]
[null,null,null,null,null,null,null,null,null,null,null,{"$f":"IF(AND(H540<>\"\",H540<>\"رقم الشيك\"),COUNTIF('شيكات مجيرة'!$H$4:$H$996,'شيكات قيد التحصيل'!H540),\"0\")","v":"0"}]
[null,null,null,null,null,null,null,null,null,null,null,{"$f":"IF(AND(H541<>\"\",H541<>\"رقم الشيك\"),COUNTIF('شيكات مجيرة'!$H$4:$H$996,'شيكات قيد التحصيل'!H541),\"0\")","v":"0"}]
[null,null,null,null,null,null,null,null,null,null,null,{"$f":"IF(AND(H542<>\"\",H542<>\"رقم الشيك\"),COUNTIF('شيكات مجيرة'!$H$4:$H$996,'شيكات قيد التحصيل'!H542),\"0\")","v":"0"}]
[null,null,null,null,null,null,null,null,null,null,null,{"$f":"IF(AND(H543<>\"\",H543<>\"رقم الشيك\"),COUNTIF('شيكات مجيرة'!$H$4:$H$996,'شيكات قيد التحصيل'!H543),\"0\")","v":"0"}]
[null,null,null,null,null,null,null,null,null,null,null,{"$f":"IF(AND(H544<>\"\",H544<>\"رقم الشيك\"),COUNTIF('شيكات مجيرة'!$H$4:$H$996,'شيكات قيد التحصيل'!H544),\"0\")","v":"0"}]
[null,null,null,null,null,null,null,null,null,null,null,{"$f":"IF(AND(H545<>\"\",H545<>\"رقم الشيك\"),COUNTIF('شيكات مجيرة'!$H$4:$H$996,'شيكات قيد التحصيل'!H545),\"0\")","v":"0"}]
[null,null,null,null,null,null,null,null,null,null,null,{"$f":"IF(AND(H546<>\"\",H546<>\"رقم الشيك\"),COUNTIF('شيكات مجيرة'!$H$4:$H$996,'شيكات قيد التحصيل'!H546),\"0\")","v":"0"}]
[null,null,null,null,null,null,null,null,null,null,null,{"$f":"IF(AND(H547<>\"\",H547<>\"رقم الشيك\"),COUNTIF('شيكات مجيرة'!$H$4:$H$996,'شيكات قيد التحصيل'!H547),\"0\")","v":"0"}]
[null,null,null,null,null,null,null,null,null,null,null,{"$f":"IF(AND(H548<>\"\",H548<>\"رقم الشيك\"),COUNTIF('شيكات مجيرة'!$H$4:$H$996,'شيكات قيد التحصيل'!H548),\"0\")","v":"0"}]
[null,null,null,null,null,null,null,null,null,null,null,{"$f":"IF(AND(H549<>\"\",H549<>\"رقم الشيك\"),COUNTIF('شيكات مجيرة'!$H$4:$H$996,'شيكات قيد التحصيل'!H549),\"0\")","v":"0"}]
[null,null,null,null,null,null,null,null,null,null,null,{"$f":"IF(AND(H550<>\"\",H550<>\"رقم الشيك\"),COUNTIF('شيكات مجيرة'!$H$4:$H$996,'شيكات قيد التحصيل'!H550),\"0\")","v":"0"}]
[null,null,null,null,null,null,null,null,null,null,null,{"$f":"IF(AND(H551<>\"\",H551<>\"رقم الشيك\"),COUNTIF('شيكات مجيرة'!$H$4:$H$996,'شيكات قيد التحصيل'!H551),\"0\")","v":"0"}]
[null,null,null,null,null,null,null,null,null,null,null,{"$f":"IF(AND(H552<>\"\",H552<>\"رقم الشيك\"),COUNTIF('شيكات مجيرة'!$H$4:$H$996,'شيكات قيد التحصيل'!H552),\"0\")","v":"0"}]
[null,null,null,null,null,null,null,null,null,null,null,{"$f":"IF(AND(H553<>\"\",H553<>\"رقم الشيك\"),COUNTIF('شيكات مجيرة'!$H$4:$H$996,'شيكات قيد التحصيل'!H553),\"0\")","v":"0"}]
[null,null,null,null,null,null,null,null,null,null,null,{"$f":"IF(AND(H554<>\"\",H554<>\"رقم الشيك\"),COUNTIF('شيكات مجيرة'!$H$4:$H$996,'شيكات قيد التحصيل'!H554),\"0\")","v":"0"}]
[null,null,null,null,null,null,null,null,null,null,null,{"$f":"IF(AND(H555<>\"\",H555<>\"رقم الشيك\"),COUNTIF('شيكات مجيرة'!$H$4:$H$996,'شيكات قيد التحصيل'!H555),\"0\")","v":"0"}]
[null,null,null,null,null,null,null,null,null,null,null,{"$f":"IF(AND(H556<>\"\",H556<>\"رقم الشيك\"),COUNTIF('شيكات مجيرة'!$H$4:$H$996,'شيكات قيد التحصيل'!H556),\"0\")","v":"0"}]
[null,null,null,null,null,null,null,null,null,null,null,{"$f":"IF(AND(H557<>\"\",H557<>\"رقم الشيك\"),COUNTIF('شيكات مجيرة'!$H$4:$H$996,'شيكات قيد التحصيل'!H557),\"0\")","v":"0"}]
[null,null,null,null,null,null,null,null,null,null,null,{"$f":"IF(AND(H558<>\"\",H558<>\"رقم الشيك\"),COUNTIF('شيكات مجيرة'!$H$4:$H$996,'شيكات قيد التحصيل'!H558),\"0\")","v":"0"}]
[null,null,null,null,null,null,null,null,null,null,null,{"$f":"IF(AND(H559<>\"\",H559<>\"رقم الشيك\"),COUNTIF('شيكات مجيرة'!$H$4:$H$996,'شيكات قيد التحصيل'!H559),\"0\")","v":"0"}]
[null,null,null,null,null,null,null,null,null,null,null,{"$f":"IF(AND(H560<>\"\",H560<>\"رقم الشيك\"),COUNTIF('شيكات مجيرة'!$H$4:$H$996,'شيكات قيد التحصيل'!H560),\"0\")","v":"0"}]
[null,null,null,null,null,null,null,null,null,null,null,{"$f":"IF(AND(H561<>\"\",H561<>\"رقم الشيك\"),COUNTIF('شيكات مجيرة'!$H$4:$H$996,'شيكات قيد التحصيل'!H561),\"0\")","v":"0"}]
[null,null,null,null,null,null,null,null,null,null,null,{"$f":"IF(AND(H562<>\"\",H562<>\"رقم الشيك\"),COUNTIF('شيكات مجيرة'!$H$4:$H$996,'شيكات قيد التحصيل'!H562),\"0\")","v":"0"}]
[null,null,null,null,null,null,null,null,null,null,null,{"$f":"IF(AND(H563<>\"\",H563<>\"رقم الشيك\"),COUNTIF('شيكات مجيرة'!$H$4:$H$996,'شيكات قيد التحصيل'!H563),\"0\")","v":"0"}]
[null,null,null,null,null,null,null,null,null,null,null,{"$f":"IF(AND(H564<>\"\",H564<>\"رقم الشيك\"),COUNTIF('شيكات مجيرة'!$H$4:$H$996,'شيكات قيد التحصيل'!H564),\"0\")","v":"0"}]
[null,null,null,null,null,null,null,null,null,null,null,{"$f":"IF(AND(H565<>\"\",H565<>\"رقم الشيك\"),COUNTIF('شيكات مجيرة'!$H$4:$H$996,'شيكات قيد التحصيل'!H565),\"0\")","v":"0"}]
[null,null,null,null,null,null,null,null,null,null,null,{"$f":"IF(AND(H566<>\"\",H566<>\"رقم الشيك\"),COUNTIF('شيكات مجيرة'!$H$4:$H$996,'شيكات قيد التحصيل'!H566),\"0\")","v":"0"}]
[null,null,null,null,null,null,null,null,null,null,null,{"$f":"IF(AND(H567<>\"\",H567<>\"رقم الشيك\"),COUNTIF('شيكات مجيرة'!$H$4:$H$996,'شيكات قيد التحصيل'!H567),\"0\")","v":"0"}]
[null,null,null,null,null,null,null,null,null,null,null,{"$f":"IF(AND(H568<>\"\",H568<>\"رقم الشيك\"),COUNTIF('شيكات مجيرة'!$H$4:$H$996,'شيكات قيد التحصيل'!H568),\"0\")","v":"0"}]
[null,null,null,null,null,null,null,null,null,null,null,{"$f":"IF(AND(H569<>\"\",H569<>\"رقم الشيك\"),COUNTIF('شيكات مجيرة'!$H$4:$H$996,'شيكات قيد التحصيل'!H569),\"0\")","v":"0"}]
[null,null,null,null,null,null,null,null,null,null,null,{"$f":"IF(AND(H570<>\"\",H570<>\"رقم الشيك\"),COUNTIF('شيكات مجيرة'!$H$4:$H$996,'شيكات قيد التحصيل'!H570),\"0\")","v":"0"}]
[null,null,null,null,null,null,null,null,null,null,null,{"$f":"IF(AND(H571<>\"\",H571<>\"رقم الشيك\"),COUNTIF('شيكات مجيرة'!$H$4:$H$996,'شيكات قيد التحصيل'!H571),\"0\")","v":"0"}]
[null,null,null,null,null,null,null,null,null,null,null,{"$f":"IF(AND(H572<>\"\",H572<>\"رقم الشيك\"),COUNTIF('شيكات مجيرة'!$H$4:$H$996,'شيكات قيد التحصيل'!H572),\"0\")","v":"0"}]
[null,null,null,null,null,null,null,null,null,null,null,{"$f":"IF(AND(H573<>\"\",H573<>\"رقم الشيك\"),COUNTIF('شيكات مجيرة'!$H$4:$H$996,'شيكات قيد التحصيل'!H573),\"0\")","v":"0"}]
[null,null,null,null,null,null,null,null,null,null,null,{"$f":"IF(AND(H574<>\"\",H574<>\"رقم الشيك\"),COUNTIF('شيكات مجيرة'!$H$4:$H$996,'شيكات قيد التحصيل'!H574),\"0\")","v":"0"}]
[null,null,null,null,null,null,null,null,null,null,null,{"$f":"IF(AND(H575<>\"\",H575<>\"رقم الشيك\"),COUNTIF('شيكات مجيرة'!$H$4:$H$996,'شيكات قيد التحصيل'!H575),\"0\")","v":"0"}]
[null,null,null,null,null,null,null,null,null,null,null,{"$f":"IF(AND(H576<>\"\",H576<>\"رقم الشيك\"),COUNTIF('شيكات مجيرة'!$H$4:$H$996,'شيكات قيد التحصيل'!H576),\"0\")","v":"0"}]
[null,null,null,null,null,null,null,null,null,null,null,{"$f":"IF(AND(H577<>\"\",H577<>\"رقم الشيك\"),COUNTIF('شيكات مجيرة'!$H$4:$H$996,'شيكات قيد التحصيل'!H577),\"0\")","v":"0"}]
[null,null,null,null,null,null,null,null,null,null,null,{"$f":"IF(AND(H578<>\"\",H578<>\"رقم الشيك\"),COUNTIF('شيكات مجيرة'!$H$4:$H$996,'شيكات قيد التحصيل'!H578),\"0\")","v":"0"}]
[null,null,null,null,null,null,null,null,null,null,null,{"$f":"IF(AND(H579<>\"\",H579<>\"رقم الشيك\"),COUNTIF('شيكات مجيرة'!$H$4:$H$996,'شيكات قيد التحصيل'!H579),\"0\")","v":"0"}]
[null,null,null,null,null,null,null,null,null,null,null,{"$f":"IF(AND(H580<>\"\",H580<>\"رقم الشيك\"),COUNTIF('شيكات مجيرة'!$H$4:$H$996,'شيكات قيد التحصيل'!H580),\"0\")","v":"0"}]
[null,null,null,null,null,null,null,null,null,null,null,{"$f":"IF(AND(H581<>\"\",H581<>\"رقم الشيك\"),COUNTIF('شيكات مجيرة'!$H$4:$H$996,'شيكات قيد التحصيل'!H581),\"0\")","v":"0"}]
[null,null,null,null,null,null,null,null,null,null,null,{"$f":"IF(AND(H582<>\"\",H582<>\"رقم الشيك\"),COUNTIF('شيكات مجيرة'!$H$4:$H$996,'شيكات قيد التحصيل'!H582),\"0\")","v":"0"}]
[null,null,null,null,null,null,null,null,null,null,null,{"$f":"IF(AND(H583<>\"\",H583<>\"رقم الشيك\"),COUNTIF('شيكات مجيرة'!$H$4:$H$996,'شيكات قيد التحصيل'!H583),\"0\")","v":"0"}]
[null,null,null,null,null,null,null,null,null,null,null,{"$f":"IF(AND(H584<>\"\",H584<>\"رقم الشيك\"),COUNTIF('شيكات مجيرة'!$H$4:$H$996,'شيكات قيد التحصيل'!H584),\"0\")","v":"0"}]
[null,null,null,null,null,null,null,null,null,null,null,{"$f":"IF(AND(H585<>\"\",H585<>\"رقم الشيك\"),COUNTIF('شيكات مجيرة'!$H$4:$H$996,'شيكات قيد التحصيل'!H585),\"0\")","v":"0"}]
[null,null,null,null,null,null,null,null,null,null,null,{"$f":"IF(AND(H586<>\"\",H586<>\"رقم الشيك\"),COUNTIF('شيكات مجيرة'!$H$4:$H$996,'شيكات قيد التحصيل'!H586),\"0\")","v":"0"}]
[null,null,null,null,null,null,null,null,null,null,null,{"$f":"IF(AND(H587<>\"\",H587<>\"رقم الشيك\"),COUNTIF('شيكات مجيرة'!$H$4:$H$996,'شيكات قيد التحصيل'!H587),\"0\")","v":"0"}]
[null,null,null,null,null,null,null,null,null,null,null,{"$f":"IF(AND(H588<>\"\",H588<>\"رقم الشيك\"),COUNTIF('شيكات مجيرة'!$H$4:$H$996,'شيكات قيد التحصيل'!H588),\"0\")","v":"0"}]
[null,null,null,null,null,null,null,null,null,null,null,{"$f":"IF(AND(H589<>\"\",H589<>\"رقم الشيك\"),COUNTIF('شيكات مجيرة'!$H$4:$H$996,'شيكات قيد التحصيل'!H589),\"0\")","v":"0"}]
[null,null,null,null,null,null,null,null,null,null,null,{"$f":"IF(AND(H590<>\"\",H590<>\"رقم الشيك\"),COUNTIF('شيكات مجيرة'!$H$4:$H$996,'شيكات قيد التحصيل'!H590),\"0\")","v":"0"}]
[null,null,null,null,null,null,null,null,null,null,null,{"$f":"IF(AND(H591<>\"\",H591<>\"رقم الشيك\"),COUNTIF('شيكات مجيرة'!$H$4:$H$996,'شيكات قيد التحصيل'!H591),\"0\")","v":"0"}]
[null,null,null,null,null,null,null,null,null,null,null,{"$f":"IF(AND(H592<>\"\",H592<>\"رقم الشيك\"),COUNTIF('شيكات مجيرة'!$H$4:$H$996,'شيكات قيد التحصيل'!H592),\"0\")","v":"0"}]
[null,null,null,null,null,null,null,null,null,null,null,{"$f":"IF(AND(H593<>\"\",H593<>\"رقم الشيك\"),COUNTIF('شيكات مجيرة'!$H$4:$H$996,'شيكات قيد التحصيل'!H593),\"0\")","v":"0"}]
[null,null,null,null,null,null,null,null,null,null,null,{"$f":"IF(AND(H594<>\"\",H594<>\"رقم الشيك\"),COUNTIF('شيكات مجيرة'!$H$4:$H$996,'شيكات قيد التحصيل'!H594),\"0\")","v":"0"}]
[null,null,null,null,null,null,null,null,null,null,null,{"$f":"IF(AND(H595<>\"\",H595<>\"رقم الشيك\"),COUNTIF('شيكات مجيرة'!$H$4:$H$996,'شيكات قيد التحصيل'!H595),\"0\")","v":"0"}]
[null,null,null,null,null,null,null,null,null,null,null,{"$f":"IF(AND(H596<>\"\",H596<>\"رقم الشيك\"),COUNTIF('شيكات مجيرة'!$H$4:$H$996,'شيكات قيد التحصيل'!H596),\"0\")","v":"0"}]
[null,null,null,null,null,null,null,null,null,null,null,{"$f":"IF(AND(H597<>\"\",H597<>\"رقم الشيك\"),COUNTIF('شيكات مجيرة'!$H$4:$H$996,'شيكات قيد التحصيل'!H597),\"0\")","v":"0"}]
[null,null,null,null,null,null,null,null,null,null,null,{"$f":"IF(AND(H598<>\"\",H598<>\"رقم الشيك\"),COUNTIF('شيكات مجيرة'!$H$4:$H$996,'شيكات قيد التحصيل'!H598),\"0\")","v":"0"}]
[null,null,null,null,null,null,null,null,null,null,null,{"$f":"IF(AND(H599<>\"\",H599<>\"رقم الشيك\"),COUNTIF('شيكات مجيرة'!$H$4:$H$996,'شيكات قيد التحصيل'!H599),\"0\")","v":"0"}]
[null,null,null,null,null,null,null,null,null,null,null,{"$f":"IF(AND(H600<>\"\",H600<>\"رقم الشيك\"),COUNTIF('شيكات مجيرة'!$H$4:$H$996,'شيكات قيد التحصيل'!H600),\"0\")","v":"0"}]
[null,null,null,null,null,null,null,null,null,null,null,{"$f":"IF(AND(H601<>\"\",H601<>\"رقم الشيك\"),COUNTIF('شيكات مجيرة'!$H$4:$H$996,'شيكات قيد التحصيل'!H601),\"0\")","v":"0"}]
[null,null,null,null,null,null,null,null,null,null,null,{"$f":"IF(AND(H602<>\"\",H602<>\"رقم الشيك\"),COUNTIF('شيكات مجيرة'!$H$4:$H$996,'شيكات قيد التحصيل'!H602),\"0\")","v":"0"}]
[null,null,null,null,null,null,null,null,null,null,null,{"$f":"IF(AND(H603<>\"\",H603<>\"رقم الشيك\"),COUNTIF('شيكات مجيرة'!$H$4:$H$996,'شيكات قيد التحصيل'!H603),\"0\")","v":"0"}]
[null,null,null,null,null,null,null,null,null,null,null,{"$f":"IF(AND(H604<>\"\",H604<>\"رقم الشيك\"),COUNTIF('شيكات مجيرة'!$H$4:$H$996,'شيكات قيد التحصيل'!H604),\"0\")","v":"0"}]
[null,null,null,null,null,null,null,null,null,null,null,{"$f":"IF(AND(H605<>\"\",H605<>\"رقم الشيك\"),COUNTIF('شيكات مجيرة'!$H$4:$H$996,'شيكات قيد التحصيل'!H605),\"0\")","v":"0"}]
[null,null,null,null,null,null,null,null,null,null,null,{"$f":"IF(AND(H606<>\"\",H606<>\"رقم الشيك\"),COUNTIF('شيكات مجيرة'!$H$4:$H$996,'شيكات قيد التحصيل'!H606),\"0\")","v":"0"}]
[null,null,null,null,null,null,null,null,null,null,null,{"$f":"IF(AND(H607<>\"\",H607<>\"رقم الشيك\"),COUNTIF('شيكات مجيرة'!$H$4:$H$996,'شيكات قيد التحصيل'!H607),\"0\")","v":"0"}]
[null,null,null,null,null,null,null,null,null,null,null,{"$f":"IF(AND(H608<>\"\",H608<>\"رقم الشيك\"),COUNTIF('شيكات مجيرة'!$H$4:$H$996,'شيكات قيد التحصيل'!H608),\"0\")","v":"0"}]
[null,null,null,null,null,null,null,null,null,null,null,{"$f":"IF(AND(H609<>\"\",H609<>\"رقم الشيك\"),COUNTIF('شيكات مجيرة'!$H$4:$H$996,'شيكات قيد التحصيل'!H609),\"0\")","v":"0"}]
[null,null,null,null,null,null,null,null,null,null,null,{"$f":"IF(AND(H610<>\"\",H610<>\"رقم الشيك\"),COUNTIF('شيكات مجيرة'!$H$4:$H$996,'شيكات قيد التحصيل'!H610),\"0\")","v":"0"}]
[null,null,null,null,null,null,null,null,null,null,null,{"$f":"IF(AND(H611<>\"\",H611<>\"رقم الشيك\"),COUNTIF('شيكات مجيرة'!$H$4:$H$996,'شيكات قيد التحصيل'!H611),\"0\")","v":"0"}]
[null,null,null,null,null,null,null,null,null,null,null,{"$f":"IF(AND(H612<>\"\",H612<>\"رقم الشيك\"),COUNTIF('شيكات مجيرة'!$H$4:$H$996,'شيكات قيد التحصيل'!H612),\"0\")","v":"0"}]
[null,null,null,null,null,null,null,null,null,null,null,{"$f":"IF(AND(H613<>\"\",H613<>\"رقم الشيك\"),COUNTIF('شيكات مجيرة'!$H$4:$H$996,'شيكات قيد التحصيل'!H613),\"0\")","v":"0"}]
[null,null,null,null,null,null,null,null,null,null,null,{"$f":"IF(AND(H614<>\"\",H614<>\"رقم الشيك\"),COUNTIF('شيكات مجيرة'!$H$4:$H$996,'شيكات قيد التحصيل'!H614),\"0\")","v":"0"}]
[null,null,null,null,null,null,null,null,null,null,null,{"$f":"IF(AND(H615<>\"\",H615<>\"رقم الشيك\"),COUNTIF('شيكات مجيرة'!$H$4:$H$996,'شيكات قيد التحصيل'!H615),\"0\")","v":"0"}]
[null,null,null,null,null,null,null,null,null,null,null,{"$f":"IF(AND(H616<>\"\",H616<>\"رقم الشيك\"),COUNTIF('شيكات مجيرة'!$H$4:$H$996,'شيكات قيد التحصيل'!H616),\"0\")","v":"0"}]
[null,null,null,null,null,null,null,null,null,null,null,{"$f":"IF(AND(H617<>\"\",H617<>\"رقم الشيك\"),COUNTIF('شيكات مجيرة'!$H$4:$H$996,'شيكات قيد التحصيل'!H617),\"0\")","v":"0"}]
[null,null,null,null,null,null,null,null,null,null,null,{"$f":"IF(AND(H618<>\"\",H618<>\"رقم الشيك\"),COUNTIF('شيكات مجيرة'!$H$4:$H$996,'شيكات قيد التحصيل'!H618),\"0\")","v":"0"}]
[null,null,null,null,null,null,null,null,null,null,null,{"$f":"IF(AND(H619<>\"\",H619<>\"رقم الشيك\"),COUNTIF('شيكات مجيرة'!$H$4:$H$996,'شيكات قيد التحصيل'!H619),\"0\")","v":"0"}]
[null,null,null,null,null,null,null,null,null,null,null,{"$f":"IF(AND(H620<>\"\",H620<>\"رقم الشيك\"),COUNTIF('شيكات مجيرة'!$H$4:$H$996,'شيكات قيد التحصيل'!H620),\"0\")","v":"0"}]
[null,null,null,null,null,null,null,null,null,null,null,{"$f":"IF(AND(H621<>\"\",H621<>\"رقم الشيك\"),COUNTIF('شيكات مجيرة'!$H$4:$H$996,'شيكات قيد التحصيل'!H621),\"0\")","v":"0"}]
[null,null,null,null,null,null,null,null,null,null,null,{"$f":"IF(AND(H622<>\"\",H622<>\"رقم الشيك\"),COUNTIF('شيكات مجيرة'!$H$4:$H$996,'شيكات قيد التحصيل'!H622),\"0\")","v":"0"}]
[null,null,null,null,null,null,null,null,null,null,null,{"$f":"IF(AND(H623<>\"\",H623<>\"رقم الشيك\"),COUNTIF('شيكات مجيرة'!$H$4:$H$996,'شيكات قيد التحصيل'!H623),\"0\")","v":"0"}]
[null,null,null,null,null,null,null,null,null,null,null,{"$f":"IF(AND(H624<>\"\",H624<>\"رقم الشيك\"),COUNTIF('شيكات مجيرة'!$H$4:$H$996,'شيكات قيد التحصيل'!H624),\"0\")","v":"0"}]
[null,null,null,null,null,null,null,null,null,null,null,{"$f":"IF(AND(H625<>\"\",H625<>\"رقم الشيك\"),COUNTIF('شيكات مجيرة'!$H$4:$H$996,'شيكات قيد التحصيل'!H625),\"0\")","v":"0"}]
[null,null,null,null,null,null,null,null,null,null,null,{"$f":"IF(AND(H626<>\"\",H626<>\"رقم الشيك\"),COUNTIF('شيكات مجيرة'!$H$4:$H$996,'شيكات قيد التحصيل'!H626),\"0\")","v":"0"}]
[null,null,null,null,null,null,null,null,null,null,null,{"$f":"IF(AND(H627<>\"\",H627<>\"رقم الشيك\"),COUNTIF('شيكات مجيرة'!$H$4:$H$996,'شيكات قيد التحصيل'!H627),\"0\")","v":"0"}]
[null,null,null,null,null,null,null,null,null,null,null,{"$f":"IF(AND(H628<>\"\",H628<>\"رقم الشيك\"),COUNTIF('شيكات مجيرة'!$H$4:$H$996,'شيكات قيد التحصيل'!H628),\"0\")","v":"0"}]
[null,null,null,null,null,null,null,null,null,null,null,{"$f":"IF(AND(H629<>\"\",H629<>\"رقم الشيك\"),COUNTIF('شيكات مجيرة'!$H$4:$H$996,'شيكات قيد التحصيل'!H629),\"0\")","v":"0"}]
[null,null,null,null,null,null,null,null,null,null,null,{"$f":"IF(AND(H630<>\"\",H630<>\"رقم الشيك\"),COUNTIF('شيكات مجيرة'!$H$4:$H$996,'شيكات قيد التحصيل'!H630),\"0\")","v":"0"}]
[null,null,null,null,null,null,null,null,null,null,null,{"$f":"IF(AND(H631<>\"\",H631<>\"رقم الشيك\"),COUNTIF('شيكات مجيرة'!$H$4:$H$996,'شيكات قيد التحصيل'!H631),\"0\")","v":"0"}]
[null,null,null,null,null,null,null,null,null,null,null,{"$f":"IF(AND(H632<>\"\",H632<>\"رقم الشيك\"),COUNTIF('شيكات مجيرة'!$H$4:$H$996,'شيكات قيد التحصيل'!H632),\"0\")","v":"0"}]
[null,null,null,null,null,null,null,null,null,null,null,{"$f":"IF(AND(H633<>\"\",H633<>\"رقم الشيك\"),COUNTIF('شيكات مجيرة'!$H$4:$H$996,'شيكات قيد التحصيل'!H633),\"0\")","v":"0"}]
[null,null,null,null,null,null,null,null,null,null,null,{"$f":"IF(AND(H634<>\"\",H634<>\"رقم الشيك\"),COUNTIF('شيكات مجيرة'!$H$4:$H$996,'شيكات قيد التحصيل'!H634),\"0\")","v":"0"}]
[null,null,null,null,null,null,null,null,null,null,null,{"$f":"IF(AND(H635<>\"\",H635<>\"رقم الشيك\"),COUNTIF('شيكات مجيرة'!$H$4:$H$996,'شيكات قيد التحصيل'!H635),\"0\")","v":"0"}]
[null,null,null,null,null,null,null,null,null,null,null,{"$f":"IF(AND(H636<>\"\",H636<>\"رقم الشيك\"),COUNTIF('شيكات مجيرة'!$H$4:$H$996,'شيكات قيد التحصيل'!H636),\"0\")","v":"0"}]
[null,null,null,null,null,null,null,null,null,null,null,{"$f":"IF(AND(H637<>\"\",H637<>\"رقم الشيك\"),COUNTIF('شيكات مجيرة'!$H$4:$H$996,'شيكات قيد التحصيل'!H637),\"0\")","v":"0"}]
[null,null,null,null,null,null,null,null,null,null,null,{"$f":"IF(AND(H638<>\"\",H638<>\"رقم الشيك\"),COUNTIF('شيكات مجيرة'!$H$4:$H$996,'شيكات قيد التحصيل'!H638),\"0\")","v":"0"}]
[null,null,null,null,null,null,null,null,null,null,null,{"$f":"IF(AND(H639<>\"\",H639<>\"رقم الشيك\"),COUNTIF('شيكات مجيرة'!$H$4:$H$996,'شيكات قيد التحصيل'!H639),\"0\")","v":"0"}]
[null,null,null,null,null,null,null,null,null,null,null,{"$f":"IF(AND(H640<>\"\",H640<>\"رقم الشيك\"),COUNTIF('شيكات مجيرة'!$H$4:$H$996,'شيكات قيد التحصيل'!H640),\"0\")","v":"0"}]
[null,null,null,null,null,null,null,null,null,null,null,{"$f":"IF(AND(H641<>\"\",H641<>\"رقم الشيك\"),COUNTIF('شيكات مجيرة'!$H$4:$H$996,'شيكات قيد التحصيل'!H641),\"0\")","v":"0"}]
[null,null,null,null,null,null,null,null,null,null,null,{"$f":"IF(AND(H642<>\"\",H642<>\"رقم الشيك\"),COUNTIF('شيكات مجيرة'!$H$4:$H$996,'شيكات قيد التحصيل'!H642),\"0\")","v":"0"}]
[null,null,null,null,null,null,null,null,null,null,null,{"$f":"IF(AND(H643<>\"\",H643<>\"رقم الشيك\"),COUNTIF('شيكات مجيرة'!$H$4:$H$996,'شيكات قيد التحصيل'!H643),\"0\")","v":"0"}]
[null,null,null,null,null,null,null,null,null,null,null,{"$f":"IF(AND(H644<>\"\",H644<>\"رقم الشيك\"),COUNTIF('شيكات مجيرة'!$H$4:$H$996,'شيكات قيد التحصيل'!H644),\"0\")","v":"0"}]
[null,null,null,null,null,null,null,null,null,null,null,{"$f":"IF(AND(H645<>\"\",H645<>\"رقم الشيك\"),COUNTIF('شيكات مجيرة'!$H$4:$H$996,'شيكات قيد التحصيل'!H645),\"0\")","v":"0"}]
[null,null,null,null,null,null,null,null,null,null,null,{"$f":"IF(AND(H646<>\"\",H646<>\"رقم الشيك\"),COUNTIF('شيكات مجيرة'!$H$4:$H$996,'شيكات قيد التحصيل'!H646),\"0\")","v":"0"}]
[null,null,null,null,null,null,null,null,null,null,null,{"$f":"IF(AND(H647<>\"\",H647<>\"رقم الشيك\"),COUNTIF('شيكات مجيرة'!$H$4:$H$996,'شيكات قيد التحصيل'!H647),\"0\")","v":"0"}]
[null,null,null,null,null,null,null,null,null,null,null,{"$f":"IF(AND(H648<>\"\",H648<>\"رقم الشيك\"),COUNTIF('شيكات مجيرة'!$H$4:$H$996,'شيكات قيد التحصيل'!H648),\"0\")","v":"0"}]
[null,null,null,null,null,null,null,null,null,null,null,{"$f":"IF(AND(H649<>\"\",H649<>\"رقم الشيك\"),COUNTIF('شيكات مجيرة'!$H$4:$H$996,'شيكات قيد التحصيل'!H649),\"0\")","v":"0"}]
[null,null,null,null,null,null,null,null,null,null,null,{"$f":"IF(AND(H650<>\"\",H650<>\"رقم الشيك\"),COUNTIF('شيكات مجيرة'!$H$4:$H$996,'شيكات قيد التحصيل'!H650),\"0\")","v":"0"}]
[null,null,null,null,null,null,null,null,null,null,null,{"$f":"IF(AND(H651<>\"\",H651<>\"رقم الشيك\"),COUNTIF('شيكات مجيرة'!$H$4:$H$996,'شيكات قيد التحصيل'!H651),\"0\")","v":"0"}]
[null,null,null,null,null,null,null,null,null,null,null,{"$f":"IF(AND(H652<>\"\",H652<>\"رقم الشيك\"),COUNTIF('شيكات مجيرة'!$H$4:$H$996,'شيكات قيد التحصيل'!H652),\"0\")","v":"0"}]
[null,null,null,null,null,null,null,null,null,null,null,{"$f":"IF(AND(H653<>\"\",H653<>\"رقم الشيك\"),COUNTIF('شيكات مجيرة'!$H$4:$H$996,'شيكات قيد التحصيل'!H653),\"0\")","v":"0"}]
[null,null,null,null,null,null,null,null,null,null,null,{"$f":"IF(AND(H654<>\"\",H654<>\"رقم الشيك\"),COUNTIF('شيكات مجيرة'!$H$4:$H$996,'شيكات قيد التحصيل'!H654),\"0\")","v":"0"}]
[null,null,null,null,null,null,null,null,null,null,null,{"$f":"IF(AND(H655<>\"\",H655<>\"رقم الشيك\"),COUNTIF('شيكات مجيرة'!$H$4:$H$996,'شيكات قيد التحصيل'!H655),\"0\")","v":"0"}]
[null,null,null,null,null,null,null,null,null,null,null,{"$f":"IF(AND(H656<>\"\",H656<>\"رقم الشيك\"),COUNTIF('شيكات مجيرة'!$H$4:$H$996,'شيكات قيد التحصيل'!H656),\"0\")","v":"0"}]
[null,null,null,null,null,null,null,null,null,null,null,{"$f":"IF(AND(H657<>\"\",H657<>\"رقم الشيك\"),COUNTIF('شيكات مجيرة'!$H$4:$H$996,'شيكات قيد التحصيل'!H657),\"0\")","v":"0"}]
[null,null,null,null,null,null,null,null,null,null,null,{"$f":"IF(AND(H658<>\"\",H658<>\"رقم الشيك\"),COUNTIF('شيكات مجيرة'!$H$4:$H$996,'شيكات قيد التحصيل'!H658),\"0\")","v":"0"}]
[null,null,null,null,null,null,null,null,null,null,null,{"$f":"IF(AND(H659<>\"\",H659<>\"رقم الشيك\"),COUNTIF('شيكات مجيرة'!$H$4:$H$996,'شيكات قيد التحصيل'!H659),\"0\")","v":"0"}]
[null,null,null,null,null,null,null,null,null,null,null,{"$f":"IF(AND(H660<>\"\",H660<>\"رقم الشيك\"),COUNTIF('شيكات مجيرة'!$H$4:$H$996,'شيكات قيد التحصيل'!H660),\"0\")","v":"0"}]
[null,null,null,null,null,null,null,null,null,null,null,{"$f":"IF(AND(H661<>\"\",H661<>\"رقم الشيك\"),COUNTIF('شيكات مجيرة'!$H$4:$H$996,'شيكات قيد التحصيل'!H661),\"0\")","v":"0"}]
[null,null,null,null,null,null,null,null,null,null,null,{"$f":"IF(AND(H662<>\"\",H662<>\"رقم الشيك\"),COUNTIF('شيكات مجيرة'!$H$4:$H$996,'شيكات قيد التحصيل'!H662),\"0\")","v":"0"}]
[null,null,null,null,null,null,null,null,null,null,null,{"$f":"IF(AND(H663<>\"\",H663<>\"رقم الشيك\"),COUNTIF('شيكات مجيرة'!$H$4:$H$996,'شيكات قيد التحصيل'!H663),\"0\")","v":"0"}]
[null,null,null,null,null,null,null,null,null,null,null,{"$f":"IF(AND(H664<>\"\",H664<>\"رقم الشيك\"),COUNTIF('شيكات مجيرة'!$H$4:$H$996,'شيكات قيد التحصيل'!H664),\"0\")","v":"0"}]
[null,null,null,null,null,null,null,null,null,null,null,{"$f":"IF(AND(H665<>\"\",H665<>\"رقم الشيك\"),COUNTIF('شيكات مجيرة'!$H$4:$H$996,'شيكات قيد التحصيل'!H665),\"0\")","v":"0"}]
[null,null,null,null,null,null,null,null,null,null,null,{"$f":"IF(AND(H666<>\"\",H666<>\"رقم الشيك\"),COUNTIF('شيكات مجيرة'!$H$4:$H$996,'شيكات قيد التحصيل'!H666),\"0\")","v":"0"}]
[null,null,null,null,null,null,null,null,null,null,null,{"$f":"IF(AND(H667<>\"\",H667<>\"رقم الشيك\"),COUNTIF('شيكات مجيرة'!$H$4:$H$996,'شيكات قيد التحصيل'!H667),\"0\")","v":"0"}]
[null,null,null,null,null,null,null,null,null,null,null,{"$f":"IF(AND(H668<>\"\",H668<>\"رقم الشيك\"),COUNTIF('شيكات مجيرة'!$H$4:$H$996,'شيكات قيد التحصيل'!H668),\"0\")","v":"0"}]
[null,null,null,null,null,null,null,null,null,null,null,{"$f":"IF(AND(H669<>\"\",H669<>\"رقم الشيك\"),COUNTIF('شيكات مجيرة'!$H$4:$H$996,'شيكات قيد التحصيل'!H669),\"0\")","v":"0"}]
[null,null,null,null,null,null,null,null,null,null,null,{"$f":"IF(AND(H670<>\"\",H670<>\"رقم الشيك\"),COUNTIF('شيكات مجيرة'!$H$4:$H$996,'شيكات قيد التحصيل'!H670),\"0\")","v":"0"}]
[null,null,null,null,null,null,null,null,null,null,null,{"$f":"IF(AND(H671<>\"\",H671<>\"رقم الشيك\"),COUNTIF('شيكات مجيرة'!$H$4:$H$996,'شيكات قيد التحصيل'!H671),\"0\")","v":"0"}]
[null,null,null,null,null,null,null,null,null,null,null,{"$f":"IF(AND(H672<>\"\",H672<>\"رقم الشيك\"),COUNTIF('شيكات مجيرة'!$H$4:$H$996,'شيكات قيد التحصيل'!H672),\"0\")","v":"0"}]
[null,null,null,null,null,null,null,null,null,null,null,{"$f":"IF(AND(H673<>\"\",H673<>\"رقم الشيك\"),COUNTIF('شيكات مجيرة'!$H$4:$H$996,'شيكات قيد التحصيل'!H673),\"0\")","v":"0"}]
[null,null,null,null,null,null,null,null,null,null,null,{"$f":"IF(AND(H674<>\"\",H674<>\"رقم الشيك\"),COUNTIF('شيكات مجيرة'!$H$4:$H$996,'شيكات قيد التحصيل'!H674),\"0\")","v":"0"}]
[null,null,null,null,null,null,null,null,null,null,null,{"$f":"IF(AND(H675<>\"\",H675<>\"رقم الشيك\"),COUNTIF('شيكات مجيرة'!$H$4:$H$996,'شيكات قيد التحصيل'!H675),\"0\")","v":"0"}]
[null,null,null,null,null,null,null,null,null,null,null,{"$f":"IF(AND(H676<>\"\",H676<>\"رقم الشيك\"),COUNTIF('شيكات مجيرة'!$H$4:$H$996,'شيكات قيد التحصيل'!H676),\"0\")","v":"0"}]
[null,null,null,null,null,null,null,null,null,null,null,{"$f":"IF(AND(H677<>\"\",H677<>\"رقم الشيك\"),COUNTIF('شيكات مجيرة'!$H$4:$H$996,'شيكات قيد التحصيل'!H677),\"0\")","v":"0"}]
[null,null,null,null,null,null,null,null,null,null,null,{"$f":"IF(AND(H678<>\"\",H678<>\"رقم الشيك\"),COUNTIF('شيكات مجيرة'!$H$4:$H$996,'شيكات قيد التحصيل'!H678),\"0\")","v":"0"}]
[null,null,null,null,null,null,null,null,null,null,null,{"$f":"IF(AND(H679<>\"\",H679<>\"رقم الشيك\"),COUNTIF('شيكات مجيرة'!$H$4:$H$996,'شيكات قيد التحصيل'!H679),\"0\")","v":"0"}]
[null,null,null,null,null,null,null,null,null,null,null,{"$f":"IF(AND(H680<>\"\",H680<>\"رقم الشيك\"),COUNTIF('شيكات مجيرة'!$H$4:$H$996,'شيكات قيد التحصيل'!H680),\"0\")","v":"0"}]
[null,null,null,null,null,null,null,null,null,null,null,{"$f":"IF(AND(H681<>\"\",H681<>\"رقم الشيك\"),COUNTIF('شيكات مجيرة'!$H$4:$H$996,'شيكات قيد التحصيل'!H681),\"0\")","v":"0"}]
[null,null,null,null,null,null,null,null,null,null,null,{"$f":"IF(AND(H682<>\"\",H682<>\"رقم الشيك\"),COUNTIF('شيكات مجيرة'!$H$4:$H$996,'شيكات قيد التحصيل'!H682),\"0\")","v":"0"}]
[null,null,null,null,null,null,null,null,null,null,null,{"$f":"IF(AND(H683<>\"\",H683<>\"رقم الشيك\"),COUNTIF('شيكات مجيرة'!$H$4:$H$996,'شيكات قيد التحصيل'!H683),\"0\")","v":"0"}]
[null,null,null,null,null,null,null,null,null,null,null,{"$f":"IF(AND(H684<>\"\",H684<>\"رقم الشيك\"),COUNTIF('شيكات مجيرة'!$H$4:$H$996,'شيكات قيد التحصيل'!H684),\"0\")","v":"0"}]
[null,null,null,null,null,null,null,null,null,null,null,{"$f":"IF(AND(H685<>\"\",H685<>\"رقم الشيك\"),COUNTIF('شيكات مجيرة'!$H$4:$H$996,'شيكات قيد التحصيل'!H685),\"0\")","v":"0"}]
[null,null,null,null,null,null,null,null,null,null,null,{"$f":"IF(AND(H686<>\"\",H686<>\"رقم الشيك\"),COUNTIF('شيكات مجيرة'!$H$4:$H$996,'شيكات قيد التحصيل'!H686),\"0\")","v":"0"}]
[null,null,null,null,null,null,null,null,null,null,null,{"$f":"IF(AND(H687<>\"\",H687<>\"رقم الشيك\"),COUNTIF('شيكات مجيرة'!$H$4:$H$996,'شيكات قيد التحصيل'!H687),\"0\")","v":"0"}]
[null,null,null,null,null,null,null,null,null,null,null,{"$f":"IF(AND(H688<>\"\",H688<>\"رقم الشيك\"),COUNTIF('شيكات مجيرة'!$H$4:$H$996,'شيكات قيد التحصيل'!H688),\"0\")","v":"0"}]
[null,null,null,null,null,null,null,null,null,null,null,{"$f":"IF(AND(H689<>\"\",H689<>\"رقم الشيك\"),COUNTIF('شيكات مجيرة'!$H$4:$H$996,'شيكات قيد التحصيل'!H689),\"0\")","v":"0"}]
[null,null,null,null,null,null,null,null,null,null,null,{"$f":"IF(AND(H690<>\"\",H690<>\"رقم الشيك\"),COUNTIF('شيكات مجيرة'!$H$4:$H$996,'شيكات قيد التحصيل'!H690),\"0\")","v":"0"}]
[null,null,null,null,null,null,null,null,null,null,null,{"$f":"IF(AND(H691<>\"\",H691<>\"رقم الشيك\"),COUNTIF('شيكات مجيرة'!$H$4:$H$996,'شيكات قيد التحصيل'!H691),\"0\")","v":"0"}]
[null,null,null,null,null,null,null,null,null,null,null,{"$f":"IF(AND(H692<>\"\",H692<>\"رقم الشيك\"),COUNTIF('شيكات مجيرة'!$H$4:$H$996,'شيكات قيد التحصيل'!H692),\"0\")","v":"0"}]
[null,null,null,null,null,null,null,null,null,null,null,{"$f":"IF(AND(H693<>\"\",H693<>\"رقم الشيك\"),COUNTIF('شيكات مجيرة'!$H$4:$H$996,'شيكات قيد التحصيل'!H693),\"0\")","v":"0"}]
[null,null,null,null,null,null,null,null,null,null,null,{"$f":"IF(AND(H694<>\"\",H694<>\"رقم الشيك\"),COUNTIF('شيكات مجيرة'!$H$4:$H$996,'شيكات قيد التحصيل'!H694),\"0\")","v":"0"}]
[null,null,null,null,null,null,null,null,null,null,null,{"$f":"IF(AND(H695<>\"\",H695<>\"رقم الشيك\"),COUNTIF('شيكات مجيرة'!$H$4:$H$996,'شيكات قيد التحصيل'!H695),\"0\")","v":"0"}]
[null,null,null,null,null,null,null,null,null,null,null,{"$f":"IF(AND(H696<>\"\",H696<>\"رقم الشيك\"),COUNTIF('شيكات مجيرة'!$H$4:$H$996,'شيكات قيد التحصيل'!H696),\"0\")","v":"0"}]
[null,null,null,null,null,null,null,null,null,null,null,{"$f":"IF(AND(H697<>\"\",H697<>\"رقم الشيك\"),COUNTIF('شيكات مجيرة'!$H$4:$H$996,'شيكات قيد التحصيل'!H697),\"0\")","v":"0"}]
[null,null,null,null,null,null,null,null,null,null,null,{"$f":"IF(AND(H698<>\"\",H698<>\"رقم الشيك\"),COUNTIF('شيكات مجيرة'!$H$4:$H$996,'شيكات قيد التحصيل'!H698),\"0\")","v":"0"}]
[null,null,null,null,null,null,null,null,null,null,null,{"$f":"IF(AND(H699<>\"\",H699<>\"رقم الشيك\"),COUNTIF('شيكات مجيرة'!$H$4:$H$996,'شيكات قيد التحصيل'!H699),\"0\")","v":"0"}]
[null,null,null,null,null,null,null,null,null,null,null,{"$f":"IF(AND(H700<>\"\",H700<>\"رقم الشيك\"),COUNTIF('شيكات مجيرة'!$H$4:$H$996,'شيكات قيد التحصيل'!H700),\"0\")","v":"0"}]
[null,null,null,null,null,null,null,null,null,null,null,{"$f":"IF(AND(H701<>\"\",H701<>\"رقم الشيك\"),COUNTIF('شيكات مجيرة'!$H$4:$H$996,'شيكات قيد التحصيل'!H701),\"0\")","v":"0"}]
[null,null,null,null,null,null,null,null,null,null,null,{"$f":"IF(AND(H702<>\"\",H702<>\"رقم الشيك\"),COUNTIF('شيكات مجيرة'!$H$4:$H$996,'شيكات قيد التحصيل'!H702),\"0\")","v":"0"}]
[null,null,null,null,null,null,null,null,null,null,null,{"$f":"IF(AND(H703<>\"\",H703<>\"رقم الشيك\"),COUNTIF('شيكات مجيرة'!$H$4:$H$996,'شيكات قيد التحصيل'!H703),\"0\")","v":"0"}]
[null,null,null,null,null,null,null,null,null,null,null,{"$f":"IF(AND(H704<>\"\",H704<>\"رقم الشيك\"),COUNTIF('شيكات مجيرة'!$H$4:$H$996,'شيكات قيد التحصيل'!H704),\"0\")","v":"0"}]
[null,null,null,null,null,null,null,null,null,null,null,{"$f":"IF(AND(H705<>\"\",H705<>\"رقم الشيك\"),COUNTIF('شيكات مجيرة'!$H$4:$H$996,'شيكات قيد التحصيل'!H705),\"0\")","v":"0"}]
[null,null,null,null,null,null,null,null,null,null,null,{"$f":"IF(AND(H706<>\"\",H706<>\"رقم الشيك\"),COUNTIF('شيكات مجيرة'!$H$4:$H$996,'شيكات قيد التحصيل'!H706),\"0\")","v":"0"}]
[null,null,null,null,null,null,null,null,null,null,null,{"$f":"IF(AND(H707<>\"\",H707<>\"رقم الشيك\"),COUNTIF('شيكات مجيرة'!$H$4:$H$996,'شيكات قيد التحصيل'!H707),\"0\")","v":"0"}]
[null,null,null,null,null,null,null,null,null,null,null,{"$f":"IF(AND(H708<>\"\",H708<>\"رقم الشيك\"),COUNTIF('شيكات مجيرة'!$H$4:$H$996,'شيكات قيد التحصيل'!H708),\"0\")","v":"0"}]
[null,null,null,null,null,null,null,null,null,null,null,{"$f":"IF(AND(H709<>\"\",H709<>\"رقم الشيك\"),COUNTIF('شيكات مجيرة'!$H$4:$H$996,'شيكات قيد التحصيل'!H709),\"0\")","v":"0"}]
[null,null,null,null,null,null,null,null,null,null,null,{"$f":"IF(AND(H710<>\"\",H710<>\"رقم الشيك\"),COUNTIF('شيكات مجيرة'!$H$4:$H$996,'شيكات قيد التحصيل'!H710),\"0\")","v":"0"}]
[null,null,null,null,null,null,null,null,null,null,null,{"$f":"IF(AND(H711<>\"\",H711<>\"رقم الشيك\"),COUNTIF('شيكات مجيرة'!$H$4:$H$996,'شيكات قيد التحصيل'!H711),\"0\")","v":"0"}]
[null,null,null,null,null,null,null,null,null,null,null,{"$f":"IF(AND(H712<>\"\",H712<>\"رقم الشيك\"),COUNTIF('شيكات مجيرة'!$H$4:$H$996,'شيكات قيد التحصيل'!H712),\"0\")","v":"0"}]
[null,null,null,null,null,null,null,null,null,null,null,{"$f":"IF(AND(H713<>\"\",H713<>\"رقم الشيك\"),COUNTIF('شيكات مجيرة'!$H$4:$H$996,'شيكات قيد التحصيل'!H713),\"0\")","v":"0"}]
[null,null,null,null,null,null,null,null,null,null,null,{"$f":"IF(AND(H714<>\"\",H714<>\"رقم الشيك\"),COUNTIF('شيكات مجيرة'!$H$4:$H$996,'شيكات قيد التحصيل'!H714),\"0\")","v":"0"}]
[null,null,null,null,null,null,null,null,null,null,null,{"$f":"IF(AND(H715<>\"\",H715<>\"رقم الشيك\"),COUNTIF('شيكات مجيرة'!$H$4:$H$996,'شيكات قيد التحصيل'!H715),\"0\")","v":"0"}]
[null,null,null,null,null,null,null,null,null,null,null,{"$f":"IF(AND(H716<>\"\",H716<>\"رقم الشيك\"),COUNTIF('شيكات مجيرة'!$H$4:$H$996,'شيكات قيد التحصيل'!H716),\"0\")","v":"0"}]
[null,null,null,null,null,null,null,null,null,null,null,{"$f":"IF(AND(H717<>\"\",H717<>\"رقم الشيك\"),COUNTIF('شيكات مجيرة'!$H$4:$H$996,'شيكات قيد التحصيل'!H717),\"0\")","v":"0"}]
[null,null,null,null,null,null,null,null,null,null,null,{"$f":"IF(AND(H718<>\"\",H718<>\"رقم الشيك\"),COUNTIF('شيكات مجيرة'!$H$4:$H$996,'شيكات قيد التحصيل'!H718),\"0\")","v":"0"}]
[null,null,null,null,null,null,null,null,null,null,null,{"$f":"IF(AND(H719<>\"\",H719<>\"رقم الشيك\"),COUNTIF('شيكات مجيرة'!$H$4:$H$996,'شيكات قيد التحصيل'!H719),\"0\")","v":"0"}]
[null,null,null,null,null,null,null,null,null,null,null,{"$f":"IF(AND(H720<>\"\",H720<>\"رقم الشيك\"),COUNTIF('شيكات مجيرة'!$H$4:$H$996,'شيكات قيد التحصيل'!H720),\"0\")","v":"0"}]
[null,null,null,null,null,null,null,null,null,null,null,{"$f":"IF(AND(H721<>\"\",H721<>\"رقم الشيك\"),COUNTIF('شيكات مجيرة'!$H$4:$H$996,'شيكات قيد التحصيل'!H721),\"0\")","v":"0"}]
[null,null,null,null,null,null,null,null,null,null,null,{"$f":"IF(AND(H722<>\"\",H722<>\"رقم الشيك\"),COUNTIF('شيكات مجيرة'!$H$4:$H$996,'شيكات قيد التحصيل'!H722),\"0\")","v":"0"}]
[null,null,null,null,null,null,null,null,null,null,null,{"$f":"IF(AND(H723<>\"\",H723<>\"رقم الشيك\"),COUNTIF('شيكات مجيرة'!$H$4:$H$996,'شيكات قيد التحصيل'!H723),\"0\")","v":"0"}]
[null,null,null,null,null,null,null,null,null,null,null,{"$f":"IF(AND(H724<>\"\",H724<>\"رقم الشيك\"),COUNTIF('شيكات مجيرة'!$H$4:$H$996,'شيكات قيد التحصيل'!H724),\"0\")","v":"0"}]
[null,null,null,null,null,null,null,null,null,null,null,{"$f":"IF(AND(H725<>\"\",H725<>\"رقم الشيك\"),COUNTIF('شيكات مجيرة'!$H$4:$H$996,'شيكات قيد التحصيل'!H725),\"0\")","v":"0"}]
[null,null,null,null,null,null,null,null,null,null,null,{"$f":"IF(AND(H726<>\"\",H726<>\"رقم الشيك\"),COUNTIF('شيكات مجيرة'!$H$4:$H$996,'شيكات قيد التحصيل'!H726),\"0\")","v":"0"}]
[null,null,null,null,null,null,null,null,null,null,null,{"$f":"IF(AND(H727<>\"\",H727<>\"رقم الشيك\"),COUNTIF('شيكات مجيرة'!$H$4:$H$996,'شيكات قيد التحصيل'!H727),\"0\")","v":"0"}]
[null,null,null,null,null,null,null,null,null,null,null,{"$f":"IF(AND(H728<>\"\",H728<>\"رقم الشيك\"),COUNTIF('شيكات مجيرة'!$H$4:$H$996,'شيكات قيد التحصيل'!H728),\"0\")","v":"0"}]
[null,null,null,null,null,null,null,null,null,null,null,{"$f":"IF(AND(H729<>\"\",H729<>\"رقم الشيك\"),COUNTIF('شيكات مجيرة'!$H$4:$H$996,'شيكات قيد التحصيل'!H729),\"0\")","v":"0"}]
[null,null,null,null,null,null,null,null,null,null,null,{"$f":"IF(AND(H730<>\"\",H730<>\"رقم الشيك\"),COUNTIF('شيكات مجيرة'!$H$4:$H$996,'شيكات قيد التحصيل'!H730),\"0\")","v":"0"}]
[null,null,null,null,null,null,null,null,null,null,null,{"$f":"IF(AND(H731<>\"\",H731<>\"رقم الشيك\"),COUNTIF('شيكات مجيرة'!$H$4:$H$996,'شيكات قيد التحصيل'!H731),\"0\")","v":"0"}]
[null,null,null,null,null,null,null,null,null,null,null,{"$f":"IF(AND(H732<>\"\",H732<>\"رقم الشيك\"),COUNTIF('شيكات مجيرة'!$H$4:$H$996,'شيكات قيد التحصيل'!H732),\"0\")","v":"0"}]
[null,null,null,null,null,null,null,null,null,null,null,{"$f":"IF(AND(H733<>\"\",H733<>\"رقم الشيك\"),COUNTIF('شيكات مجيرة'!$H$4:$H$996,'شيكات قيد التحصيل'!H733),\"0\")","v":"0"}]
[null,null,null,null,null,null,null,null,null,null,null,{"$f":"IF(AND(H734<>\"\",H734<>\"رقم الشيك\"),COUNTIF('شيكات مجيرة'!$H$4:$H$996,'شيكات قيد التحصيل'!H734),\"0\")","v":"0"}]
[null,null,null,null,null,null,null,null,null,null,null,{"$f":"IF(AND(H735<>\"\",H735<>\"رقم الشيك\"),COUNTIF('شيكات مجيرة'!$H$4:$H$996,'شيكات قيد التحصيل'!H735),\"0\")","v":"0"}]
[null,null,null,null,null,null,null,null,null,null,null,{"$f":"IF(AND(H736<>\"\",H736<>\"رقم الشيك\"),COUNTIF('شيكات مجيرة'!$H$4:$H$996,'شيكات قيد التحصيل'!H736),\"0\")","v":"0"}]
[null,null,null,null,null,null,null,null,null,null,null,{"$f":"IF(AND(H737<>\"\",H737<>\"رقم الشيك\"),COUNTIF('شيكات مجيرة'!$H$4:$H$996,'شيكات قيد التحصيل'!H737),\"0\")","v":"0"}]
[null,null,null,null,null,null,null,null,null,null,null,{"$f":"IF(AND(H738<>\"\",H738<>\"رقم الشيك\"),COUNTIF('شيكات مجيرة'!$H$4:$H$996,'شيكات قيد التحصيل'!H738),\"0\")","v":"0"}]
[null,null,null,null,null,null,null,null,null,null,null,{"$f":"IF(AND(H739<>\"\",H739<>\"رقم الشيك\"),COUNTIF('شيكات مجيرة'!$H$4:$H$996,'شيكات قيد التحصيل'!H739),\"0\")","v":"0"}]
[null,null,null,null,null,null,null,null,null,null,null,{"$f":"IF(AND(H740<>\"\",H740<>\"رقم الشيك\"),COUNTIF('شيكات مجيرة'!$H$4:$H$996,'شيكات قيد التحصيل'!H740),\"0\")","v":"0"}]
[null,null,null,null,null,null,null,null,null,null,null,{"$f":"IF(AND(H741<>\"\",H741<>\"رقم الشيك\"),COUNTIF('شيكات مجيرة'!$H$4:$H$996,'شيكات قيد التحصيل'!H741),\"0\")","v":"0"}]
[null,null,null,null,null,null,null,null,null,null,null,{"$f":"IF(AND(H742<>\"\",H742<>\"رقم الشيك\"),COUNTIF('شيكات مجيرة'!$H$4:$H$996,'شيكات قيد التحصيل'!H742),\"0\")","v":"0"}]
[null,null,null,null,null,null,null,null,null,null,null,{"$f":"IF(AND(H743<>\"\",H743<>\"رقم الشيك\"),COUNTIF('شيكات مجيرة'!$H$4:$H$996,'شيكات قيد التحصيل'!H743),\"0\")","v":"0"}]
[null,null,null,null,null,null,null,null,null,null,null,{"$f":"IF(AND(H744<>\"\",H744<>\"رقم الشيك\"),COUNTIF('شيكات مجيرة'!$H$4:$H$996,'شيكات قيد التحصيل'!H744),\"0\")","v":"0"}]
[null,null,null,null,null,null,null,null,null,null,null,{"$f":"IF(AND(H745<>\"\",H745<>\"رقم الشيك\"),COUNTIF('شيكات مجيرة'!$H$4:$H$996,'شيكات قيد التحصيل'!H745),\"0\")","v":"0"}]
[null,null,null,null,null,null,null,null,null,null,null,{"$f":"IF(AND(H746<>\"\",H746<>\"رقم الشيك\"),COUNTIF('شيكات مجيرة'!$H$4:$H$996,'شيكات قيد التحصيل'!H746),\"0\")","v":"0"}]
[null,null,null,null,null,null,null,null,null,null,null,{"$f":"IF(AND(H747<>\"\",H747<>\"رقم الشيك\"),COUNTIF('شيكات مجيرة'!$H$4:$H$996,'شيكات قيد التحصيل'!H747),\"0\")","v":"0"}]
[null,null,null,null,null,null,null,null,null,null,null,{"$f":"IF(AND(H748<>\"\",H748<>\"رقم الشيك\"),COUNTIF('شيكات مجيرة'!$H$4:$H$996,'شيكات قيد التحصيل'!H748),\"0\")","v":"0"}]
[null,null,null,null,null,null,null,null,null,null,null,{"$f":"IF(AND(H749<>\"\",H749<>\"رقم الشيك\"),COUNTIF('شيكات مجيرة'!$H$4:$H$996,'شيكات قيد التحصيل'!H749),\"0\")","v":"0"}]
[null,null,null,null,null,null,null,null,null,null,null,{"$f":"IF(AND(H750<>\"\",H750<>\"رقم الشيك\"),COUNTIF('شيكات مجيرة'!$H$4:$H$996,'شيكات قيد التحصيل'!H750),\"0\")","v":"0"}]
[null,null,null,null,null,null,null,null,null,null,null,{"$f":"IF(AND(H751<>\"\",H751<>\"رقم الشيك\"),COUNTIF('شيكات مجيرة'!$H$4:$H$996,'شيكات قيد التحصيل'!H751),\"0\")","v":"0"}]
[null,null,null,null,null,null,null,null,null,null,null,{"$f":"IF(AND(H752<>\"\",H752<>\"رقم الشيك\"),COUNTIF('شيكات مجيرة'!$H$4:$H$996,'شيكات قيد التحصيل'!H752),\"0\")","v":"0"}]
[null,null,null,null,null,null,null,null,null,null,null,{"$f":"IF(AND(H753<>\"\",H753<>\"رقم الشيك\"),COUNTIF('شيكات مجيرة'!$H$4:$H$996,'شيكات قيد التحصيل'!H753),\"0\")","v":"0"}]
[null,null,null,null,null,null,null,null,null,null,null,{"$f":"IF(AND(H754<>\"\",H754<>\"رقم الشيك\"),COUNTIF('شيكات مجيرة'!$H$4:$H$996,'شيكات قيد التحصيل'!H754),\"0\")","v":"0"}]
[null,null,null,null,null,null,null,null,null,null,null,{"$f":"IF(AND(H755<>\"\",H755<>\"رقم الشيك\"),COUNTIF('شيكات مجيرة'!$H$4:$H$996,'شيكات قيد التحصيل'!H755),\"0\")","v":"0"}]
[null,null,null,null,null,null,null,null,null,null,null,{"$f":"IF(AND(H756<>\"\",H756<>\"رقم الشيك\"),COUNTIF('شيكات مجيرة'!$H$4:$H$996,'شيكات قيد التحصيل'!H756),\"0\")","v":"0"}]
[null,null,null,null,null,null,null,null,null,null,null,{"$f":"IF(AND(H757<>\"\",H757<>\"رقم الشيك\"),COUNTIF('شيكات مجيرة'!$H$4:$H$996,'شيكات قيد التحصيل'!H757),\"0\")","v":"0"}]
[null,null,null,null,null,null,null,null,null,null,null,{"$f":"IF(AND(H758<>\"\",H758<>\"رقم الشيك\"),COUNTIF('شيكات مجيرة'!$H$4:$H$996,'شيكات قيد التحصيل'!H758),\"0\")","v":"0"}]
[null,null,null,null,null,null,null,null,null,null,null,{"$f":"IF(AND(H759<>\"\",H759<>\"رقم الشيك\"),COUNTIF('شيكات مجيرة'!$H$4:$H$996,'شيكات قيد التحصيل'!H759),\"0\")","v":"0"}]
[null,null,null,null,null,null,null,null,null,null,null,{"$f":"IF(AND(H760<>\"\",H760<>\"رقم الشيك\"),COUNTIF('شيكات مجيرة'!$H$4:$H$996,'شيكات قيد التحصيل'!H760),\"0\")","v":"0"}]
[null,null,null,null,null,null,null,null,null,null,null,{"$f":"IF(AND(H761<>\"\",H761<>\"رقم الشيك\"),COUNTIF('شيكات مجيرة'!$H$4:$H$996,'شيكات قيد التحصيل'!H761),\"0\")","v":"0"}]
[null,null,null,null,null,null,null,null,null,null,null,{"$f":"IF(AND(H762<>\"\",H762<>\"رقم الشيك\"),COUNTIF('شيكات مجيرة'!$H$4:$H$996,'شيكات قيد التحصيل'!H762),\"0\")","v":"0"}]
[null,null,null,null,null,null,null,null,null,null,null,{"$f":"IF(AND(H763<>\"\",H763<>\"رقم الشيك\"),COUNTIF('شيكات مجيرة'!$H$4:$H$996,'شيكات قيد التحصيل'!H763),\"0\")","v":"0"}]
[null,null,null,null,null,null,null,null,null,null,null,{"$f":"IF(AND(H764<>\"\",H764<>\"رقم الشيك\"),COUNTIF('شيكات مجيرة'!$H$4:$H$996,'شيكات قيد التحصيل'!H764),\"0\")","v":"0"}]
[null,null,null,null,null,null,null,null,null,null,null,{"$f":"IF(AND(H765<>\"\",H765<>\"رقم الشيك\"),COUNTIF('شيكات مجيرة'!$H$4:$H$996,'شيكات قيد التحصيل'!H765),\"0\")","v":"0"}]
[null,null,null,null,null,null,null,null,null,null,null,{"$f":"IF(AND(H766<>\"\",H766<>\"رقم الشيك\"),COUNTIF('شيكات مجيرة'!$H$4:$H$996,'شيكات قيد التحصيل'!H766),\"0\")","v":"0"}]
[null,null,null,null,null,null,null,null,null,null,null,{"$f":"IF(AND(H767<>\"\",H767<>\"رقم الشيك\"),COUNTIF('شيكات مجيرة'!$H$4:$H$996,'شيكات قيد التحصيل'!H767),\"0\")","v":"0"}]
[null,null,null,null,null,null,null,null,null,null,null,{"$f":"IF(AND(H768<>\"\",H768<>\"رقم الشيك\"),COUNTIF('شيكات مجيرة'!$H$4:$H$996,'شيكات قيد التحصيل'!H768),\"0\")","v":"0"}]
[null,null,null,null,null,null,null,null,null,null,null,{"$f":"IF(AND(H769<>\"\",H769<>\"رقم الشيك\"),COUNTIF('شيكات مجيرة'!$H$4:$H$996,'شيكات قيد التحصيل'!H769),\"0\")","v":"0"}]
[null,null,null,null,null,null,null,null,null,null,null,{"$f":"IF(AND(H770<>\"\",H770<>\"رقم الشيك\"),COUNTIF('شيكات مجيرة'!$H$4:$H$996,'شيكات قيد التحصيل'!H770),\"0\")","v":"0"}]
[null,null,null,null,null,null,null,null,null,null,null,{"$f":"IF(AND(H771<>\"\",H771<>\"رقم الشيك\"),COUNTIF('شيكات مجيرة'!$H$4:$H$996,'شيكات قيد التحصيل'!H771),\"0\")","v":"0"}]
[null,null,null,null,null,null,null,null,null,null,null,{"$f":"IF(AND(H772<>\"\",H772<>\"رقم الشيك\"),COUNTIF('شيكات مجيرة'!$H$4:$H$996,'شيكات قيد التحصيل'!H772),\"0\")","v":"0"}]
[null,null,null,null,null,null,null,null,null,null,null,{"$f":"IF(AND(H773<>\"\",H773<>\"رقم الشيك\"),COUNTIF('شيكات مجيرة'!$H$4:$H$996,'شيكات قيد التحصيل'!H773),\"0\")","v":"0"}]
[null,null,null,null,null,null,null,null,null,null,null,{"$f":"IF(AND(H774<>\"\",H774<>\"رقم الشيك\"),COUNTIF('شيكات مجيرة'!$H$4:$H$996,'شيكات قيد التحصيل'!H774),\"0\")","v":"0"}]
[null,null,null,null,null,null,null,null,null,null,null,{"$f":"IF(AND(H775<>\"\",H775<>\"رقم الشيك\"),COUNTIF('شيكات مجيرة'!$H$4:$H$996,'شيكات قيد التحصيل'!H775),\"0\")","v":"0"}]
[null,null,null,null,null,null,null,null,null,null,null,{"$f":"IF(AND(H776<>\"\",H776<>\"رقم الشيك\"),COUNTIF('شيكات مجيرة'!$H$4:$H$996,'شيكات قيد التحصيل'!H776),\"0\")","v":"0"}]
[null,null,null,null,null,null,null,null,null,null,null,{"$f":"IF(AND(H777<>\"\",H777<>\"رقم الشيك\"),COUNTIF('شيكات مجيرة'!$H$4:$H$996,'شيكات قيد التحصيل'!H777),\"0\")","v":"0"}]
[null,null,null,null,null,null,null,null,null,null,null,{"$f":"IF(AND(H778<>\"\",H778<>\"رقم الشيك\"),COUNTIF('شيكات مجيرة'!$H$4:$H$996,'شيكات قيد التحصيل'!H778),\"0\")","v":"0"}]
[null,null,null,null,null,null,null,null,null,null,null,{"$f":"IF(AND(H779<>\"\",H779<>\"رقم الشيك\"),COUNTIF('شيكات مجيرة'!$H$4:$H$996,'شيكات قيد التحصيل'!H779),\"0\")","v":"0"}]
[null,null,null,null,null,null,null,null,null,null,null,{"$f":"IF(AND(H780<>\"\",H780<>\"رقم الشيك\"),COUNTIF('شيكات مجيرة'!$H$4:$H$996,'شيكات قيد التحصيل'!H780),\"0\")","v":"0"}]
[null,null,null,null,null,null,null,null,null,null,null,{"$f":"IF(AND(H781<>\"\",H781<>\"رقم الشيك\"),COUNTIF('شيكات مجيرة'!$H$4:$H$996,'شيكات قيد التحصيل'!H781),\"0\")","v":"0"}]
[null,null,null,null,null,null,null,null,null,null,null,{"$f":"IF(AND(H782<>\"\",H782<>\"رقم الشيك\"),COUNTIF('شيكات مجيرة'!$H$4:$H$996,'شيكات قيد التحصيل'!H782),\"0\")","v":"0"}]
[null,null,null,null,null,null,null,null,null,null,null,{"$f":"IF(AND(H783<>\"\",H783<>\"رقم الشيك\"),COUNTIF('شيكات مجيرة'!$H$4:$H$996,'شيكات قيد التحصيل'!H783),\"0\")","v":"0"}]
[null,null,null,null,null,null,null,null,null,null,null,{"$f":"IF(AND(H784<>\"\",H784<>\"رقم الشيك\"),COUNTIF('شيكات مجيرة'!$H$4:$H$996,'شيكات قيد التحصيل'!H784),\"0\")","v":"0"}]
[null,null,null,null,null,null,null,null,null,null,null,{"$f":"IF(AND(H785<>\"\",H785<>\"رقم الشيك\"),COUNTIF('شيكات مجيرة'!$H$4:$H$996,'شيكات قيد التحصيل'!H785),\"0\")","v":"0"}]
[null,null,null,null,null,null,null,null,null,null,null,{"$f":"IF(AND(H786<>\"\",H786<>\"رقم الشيك\"),COUNTIF('شيكات مجيرة'!$H$4:$H$996,'شيكات قيد التحصيل'!H786),\"0\")","v":"0"}]
[null,null,null,null,null,null,null,null,null,null,null,{"$f":"IF(AND(H787<>\"\",H787<>\"رقم الشيك\"),COUNTIF('شيكات مجيرة'!$H$4:$H$996,'شيكات قيد التحصيل'!H787),\"0\")","v":"0"}]
[null,null,null,null,null,null,null,null,null,null,null,{"$f":"IF(AND(H788<>\"\",H788<>\"رقم الشيك\"),COUNTIF('شيكات مجيرة'!$H$4:$H$996,'شيكات قيد التحصيل'!H788),\"0\")","v":"0"}]
[null,null,null,null,null,null,null,null,null,null,null,{"$f":"IF(AND(H789<>\"\",H789<>\"رقم الشيك\"),COUNTIF('شيكات مجيرة'!$H$4:$H$996,'شيكات قيد التحصيل'!H789),\"0\")","v":"0"}]
[null,null,null,null,null,null,null,null,null,null,null,{"$f":"IF(AND(H790<>\"\",H790<>\"رقم الشيك\"),COUNTIF('شيكات مجيرة'!$H$4:$H$996,'شيكات قيد التحصيل'!H790),\"0\")","v":"0"}]
[null,null,null,null,null,null,null,null,null,null,null,{"$f":"IF(AND(H791<>\"\",H791<>\"رقم الشيك\"),COUNTIF('شيكات مجيرة'!$H$4:$H$996,'شيكات قيد التحصيل'!H791),\"0\")","v":"0"}]
[null,null,null,null,null,null,null,null,null,null,null,{"$f":"IF(AND(H792<>\"\",H792<>\"رقم الشيك\"),COUNTIF('شيكات مجيرة'!$H$4:$H$996,'شيكات قيد التحصيل'!H792),\"0\")","v":"0"}]
[null,null,null,null,null,null,null,null,null,null,null,{"$f":"IF(AND(H793<>\"\",H793<>\"رقم الشيك\"),COUNTIF('شيكات مجيرة'!$H$4:$H$996,'شيكات قيد التحصيل'!H793),\"0\")","v":"0"}]
[null,null,null,null,null,null,null,null,null,null,null,{"$f":"IF(AND(H794<>\"\",H794<>\"رقم الشيك\"),COUNTIF('شيكات مجيرة'!$H$4:$H$996,'شيكات قيد التحصيل'!H794),\"0\")","v":"0"}]
[null,null,null,null,null,null,null,null,null,null,null,{"$f":"IF(AND(H795<>\"\",H795<>\"رقم الشيك\"),COUNTIF('شيكات مجيرة'!$H$4:$H$996,'شيكات قيد التحصيل'!H795),\"0\")","v":"0"}]
[null,null,null,null,null,null,null,null,null,null,null,{"$f":"IF(AND(H796<>\"\",H796<>\"رقم الشيك\"),COUNTIF('شيكات مجيرة'!$H$4:$H$996,'شيكات قيد التحصيل'!H796),\"0\")","v":"0"}]
[null,null,null,null,null,null,null,null,null,null,null,{"$f":"IF(AND(H797<>\"\",H797<>\"رقم الشيك\"),COUNTIF('شيكات مجيرة'!$H$4:$H$996,'شيكات قيد التحصيل'!H797),\"0\")","v":"0"}]
[null,null,null,null,null,null,null,null,null,null,null,{"$f":"IF(AND(H798<>\"\",H798<>\"رقم الشيك\"),COUNTIF('شيكات مجيرة'!$H$4:$H$996,'شيكات قيد التحصيل'!H798),\"0\")","v":"0"}]
[null,null,null,null,null,null,null,null,null,null,null,{"$f":"IF(AND(H799<>\"\",H799<>\"رقم الشيك\"),COUNTIF('شيكات مجيرة'!$H$4:$H$996,'شيكات قيد التحصيل'!H799),\"0\")","v":"0"}]
[null,null,null,null,null,null,null,null,null,null,null,{"$f":"IF(AND(H800<>\"\",H800<>\"رقم الشيك\"),COUNTIF('شيكات مجيرة'!$H$4:$H$996,'شيكات قيد التحصيل'!H800),\"0\")","v":"0"}]
[null,null,null,null,null,null,null,null,null,null,null,{"$f":"IF(AND(H801<>\"\",H801<>\"رقم الشيك\"),COUNTIF('شيكات مجيرة'!$H$4:$H$996,'شيكات قيد التحصيل'!H801),\"0\")","v":"0"}]
[null,null,null,null,null,null,null,null,null,null,null,{"$f":"IF(AND(H802<>\"\",H802<>\"رقم الشيك\"),COUNTIF('شيكات مجيرة'!$H$4:$H$996,'شيكات قيد التحصيل'!H802),\"0\")","v":"0"}]
[null,null,null,null,null,null,null,null,null,null,null,{"$f":"IF(AND(H803<>\"\",H803<>\"رقم الشيك\"),COUNTIF('شيكات مجيرة'!$H$4:$H$996,'شيكات قيد التحصيل'!H803),\"0\")","v":"0"}]
[null,null,null,null,null,null,null,null,null,null,null,{"$f":"IF(AND(H804<>\"\",H804<>\"رقم الشيك\"),COUNTIF('شيكات مجيرة'!$H$4:$H$996,'شيكات قيد التحصيل'!H804),\"0\")","v":"0"}]
[null,null,null,null,null,null,null,null,null,null,null,{"$f":"IF(AND(H805<>\"\",H805<>\"رقم الشيك\"),COUNTIF('شيكات مجيرة'!$H$4:$H$996,'شيكات قيد التحصيل'!H805),\"0\")","v":"0"}]
[null,null,null,null,null,null,null,null,null,null,null,{"$f":"IF(AND(H806<>\"\",H806<>\"رقم الشيك\"),COUNTIF('شيكات مجيرة'!$H$4:$H$996,'شيكات قيد التحصيل'!H806),\"0\")","v":"0"}]
[null,null,null,null,null,null,null,null,null,null,null,{"$f":"IF(AND(H807<>\"\",H807<>\"رقم الشيك\"),COUNTIF('شيكات مجيرة'!$H$4:$H$996,'شيكات قيد التحصيل'!H807),\"0\")","v":"0"}]
[null,null,null,null,null,null,null,null,null,null,null,{"$f":"IF(AND(H808<>\"\",H808<>\"رقم الشيك\"),COUNTIF('شيكات مجيرة'!$H$4:$H$996,'شيكات قيد التحصيل'!H808),\"0\")","v":"0"}]
[null,null,null,null,null,null,null,null,null,null,null,{"$f":"IF(AND(H809<>\"\",H809<>\"رقم الشيك\"),COUNTIF('شيكات مجيرة'!$H$4:$H$996,'شيكات قيد التحصيل'!H809),\"0\")","v":"0"}]
[null,null,null,null,null,null,null,null,null,null,null,{"$f":"IF(AND(H810<>\"\",H810<>\"رقم الشيك\"),COUNTIF('شيكات مجيرة'!$H$4:$H$996,'شيكات قيد التحصيل'!H810),\"0\")","v":"0"}]
[null,null,null,null,null,null,null,null,null,null,null,{"$f":"IF(AND(H811<>\"\",H811<>\"رقم الشيك\"),COUNTIF('شيكات مجيرة'!$H$4:$H$996,'شيكات قيد التحصيل'!H811),\"0\")","v":"0"}]
[null,null,null,null,null,null,null,null,null,null,null,{"$f":"IF(AND(H812<>\"\",H812<>\"رقم الشيك\"),COUNTIF('شيكات مجيرة'!$H$4:$H$996,'شيكات قيد التحصيل'!H812),\"0\")","v":"0"}]
[null,null,null,null,null,null,null,null,null,null,null,{"$f":"IF(AND(H813<>\"\",H813<>\"رقم الشيك\"),COUNTIF('شيكات مجيرة'!$H$4:$H$996,'شيكات قيد التحصيل'!H813),\"0\")","v":"0"}]
[null,null,null,null,null,null,null,null,null,null,null,{"$f":"IF(AND(H814<>\"\",H814<>\"رقم الشيك\"),COUNTIF('شيكات مجيرة'!$H$4:$H$996,'شيكات قيد التحصيل'!H814),\"0\")","v":"0"}]
[null,null,null,null,null,null,null,null,null,null,null,{"$f":"IF(AND(H815<>\"\",H815<>\"رقم الشيك\"),COUNTIF('شيكات مجيرة'!$H$4:$H$996,'شيكات قيد التحصيل'!H815),\"0\")","v":"0"}]
[null,null,null,null,null,null,null,null,null,null,null,{"$f":"IF(AND(H816<>\"\",H816<>\"رقم الشيك\"),COUNTIF('شيكات مجيرة'!$H$4:$H$996,'شيكات قيد التحصيل'!H816),\"0\")","v":"0"}]
[null,null,null,null,null,null,null,null,null,null,null,{"$f":"IF(AND(H817<>\"\",H817<>\"رقم الشيك\"),COUNTIF('شيكات مجيرة'!$H$4:$H$996,'شيكات قيد التحصيل'!H817),\"0\")","v":"0"}]
[null,null,null,null,null,null,null,null,null,null,null,{"$f":"IF(AND(H818<>\"\",H818<>\"رقم الشيك\"),COUNTIF('شيكات مجيرة'!$H$4:$H$996,'شيكات قيد التحصيل'!H818),\"0\")","v":"0"}]
[null,null,null,null,null,null,null,null,null,null,null,{"$f":"IF(AND(H819<>\"\",H819<>\"رقم الشيك\"),COUNTIF('شيكات مجيرة'!$H$4:$H$996,'شيكات قيد التحصيل'!H819),\"0\")","v":"0"}]
[null,null,null,null,null,null,null,null,null,null,null,{"$f":"IF(AND(H820<>\"\",H820<>\"رقم الشيك\"),COUNTIF('شيكات مجيرة'!$H$4:$H$996,'شيكات قيد التحصيل'!H820),\"0\")","v":"0"}]
[null,null,null,null,null,null,null,null,null,null,null,{"$f":"IF(AND(H821<>\"\",H821<>\"رقم الشيك\"),COUNTIF('شيكات مجيرة'!$H$4:$H$996,'شيكات قيد التحصيل'!H821),\"0\")","v":"0"}]
[null,null,null,null,null,null,null,null,null,null,null,{"$f":"IF(AND(H822<>\"\",H822<>\"رقم الشيك\"),COUNTIF('شيكات مجيرة'!$H$4:$H$996,'شيكات قيد التحصيل'!H822),\"0\")","v":"0"}]
[null,null,null,null,null,null,null,null,null,null,null,{"$f":"IF(AND(H823<>\"\",H823<>\"رقم الشيك\"),COUNTIF('شيكات مجيرة'!$H$4:$H$996,'شيكات قيد التحصيل'!H823),\"0\")","v":"0"}]
[null,null,null,null,null,null,null,null,null,null,null,{"$f":"IF(AND(H824<>\"\",H824<>\"رقم الشيك\"),COUNTIF('شيكات مجيرة'!$H$4:$H$996,'شيكات قيد التحصيل'!H824),\"0\")","v":"0"}]
[null,null,null,null,null,null,null,null,null,null,null,{"$f":"IF(AND(H825<>\"\",H825<>\"رقم الشيك\"),COUNTIF('شيكات مجيرة'!$H$4:$H$996,'شيكات قيد التحصيل'!H825),\"0\")","v":"0"}]
[null,null,null,null,null,null,null,null,null,null,null,{"$f":"IF(AND(H826<>\"\",H826<>\"رقم الشيك\"),COUNTIF('شيكات مجيرة'!$H$4:$H$996,'شيكات قيد التحصيل'!H826),\"0\")","v":"0"}]
[null,null,null,null,null,null,null,null,null,null,null,{"$f":"IF(AND(H827<>\"\",H827<>\"رقم الشيك\"),COUNTIF('شيكات مجيرة'!$H$4:$H$996,'شيكات قيد التحصيل'!H827),\"0\")","v":"0"}]
[null,null,null,null,null,null,null,null,null,null,null,{"$f":"IF(AND(H828<>\"\",H828<>\"رقم الشيك\"),COUNTIF('شيكات مجيرة'!$H$4:$H$996,'شيكات قيد التحصيل'!H828),\"0\")","v":"0"}]
[null,null,null,null,null,null,null,null,null,null,null,{"$f":"IF(AND(H829<>\"\",H829<>\"رقم الشيك\"),COUNTIF('شيكات مجيرة'!$H$4:$H$996,'شيكات قيد التحصيل'!H829),\"0\")","v":"0"}]
[null,null,null,null,null,null,null,null,null,null,null,{"$f":"IF(AND(H830<>\"\",H830<>\"رقم الشيك\"),COUNTIF('شيكات مجيرة'!$H$4:$H$996,'شيكات قيد التحصيل'!H830),\"0\")","v":"0"}]
[null,null,null,null,null,null,null,null,null,null,null,{"$f":"IF(AND(H831<>\"\",H831<>\"رقم الشيك\"),COUNTIF('شيكات مجيرة'!$H$4:$H$996,'شيكات قيد التحصيل'!H831),\"0\")","v":"0"}]
[null,null,null,null,null,null,null,null,null,null,null,{"$f":"IF(AND(H832<>\"\",H832<>\"رقم الشيك\"),COUNTIF('شيكات مجيرة'!$H$4:$H$996,'شيكات قيد التحصيل'!H832),\"0\")","v":"0"}]
[null,null,null,null,null,null,null,null,null,null,null,{"$f":"IF(AND(H833<>\"\",H833<>\"رقم الشيك\"),COUNTIF('شيكات مجيرة'!$H$4:$H$996,'شيكات قيد التحصيل'!H833),\"0\")","v":"0"}]
[null,null,null,null,null,null,null,null,null,null,null,{"$f":"IF(AND(H834<>\"\",H834<>\"رقم الشيك\"),COUNTIF('شيكات مجيرة'!$H$4:$H$996,'شيكات قيد التحصيل'!H834),\"0\")","v":"0"}]
[null,null,null,null,null,null,null,null,null,null,null,{"$f":"IF(AND(H835<>\"\",H835<>\"رقم الشيك\"),COUNTIF('شيكات مجيرة'!$H$4:$H$996,'شيكات قيد التحصيل'!H835),\"0\")","v":"0"}]
[null,null,null,null,null,null,null,null,null,null,null,{"$f":"IF(AND(H836<>\"\",H836<>\"رقم الشيك\"),COUNTIF('شيكات مجيرة'!$H$4:$H$996,'شيكات قيد التحصيل'!H836),\"0\")","v":"0"}]
[null,null,null,null,null,null,null,null,null,null,null,{"$f":"IF(AND(H837<>\"\",H837<>\"رقم الشيك\"),COUNTIF('شيكات مجيرة'!$H$4:$H$996,'شيكات قيد التحصيل'!H837),\"0\")","v":"0"}]
[null,null,null,null,null,null,null,null,null,null,null,{"$f":"IF(AND(H838<>\"\",H838<>\"رقم الشيك\"),COUNTIF('شيكات مجيرة'!$H$4:$H$996,'شيكات قيد التحصيل'!H838),\"0\")","v":"0"}]
[null,null,null,null,null,null,null,null,null,null,null,{"$f":"IF(AND(H839<>\"\",H839<>\"رقم الشيك\"),COUNTIF('شيكات مجيرة'!$H$4:$H$996,'شيكات قيد التحصيل'!H839),\"0\")","v":"0"}]
[null,null,null,null,null,null,null,null,null,null,null,{"$f":"IF(AND(H840<>\"\",H840<>\"رقم الشيك\"),COUNTIF('شيكات مجيرة'!$H$4:$H$996,'شيكات قيد التحصيل'!H840),\"0\")","v":"0"}]
[null,null,null,null,null,null,null,null,null,null,null,{"$f":"IF(AND(H841<>\"\",H841<>\"رقم الشيك\"),COUNTIF('شيكات مجيرة'!$H$4:$H$996,'شيكات قيد التحصيل'!H841),\"0\")","v":"0"}]
[null,null,null,null,null,null,null,null,null,null,null,{"$f":"IF(AND(H842<>\"\",H842<>\"رقم الشيك\"),COUNTIF('شيكات مجيرة'!$H$4:$H$996,'شيكات قيد التحصيل'!H842),\"0\")","v":"0"}]
[null,null,null,null,null,null,null,null,null,null,null,{"$f":"IF(AND(H843<>\"\",H843<>\"رقم الشيك\"),COUNTIF('شيكات مجيرة'!$H$4:$H$996,'شيكات قيد التحصيل'!H843),\"0\")","v":"0"}]
[null,null,null,null,null,null,null,null,null,null,null,{"$f":"IF(AND(H844<>\"\",H844<>\"رقم الشيك\"),COUNTIF('شيكات مجيرة'!$H$4:$H$996,'شيكات قيد التحصيل'!H844),\"0\")","v":"0"}]
[null,null,null,null,null,null,null,null,null,null,null,{"$f":"IF(AND(H845<>\"\",H845<>\"رقم الشيك\"),COUNTIF('شيكات مجيرة'!$H$4:$H$996,'شيكات قيد التحصيل'!H845),\"0\")","v":"0"}]
[null,null,null,null,null,null,null,null,null,null,null,{"$f":"IF(AND(H846<>\"\",H846<>\"رقم الشيك\"),COUNTIF('شيكات مجيرة'!$H$4:$H$996,'شيكات قيد التحصيل'!H846),\"0\")","v":"0"}]
[null,null,null,null,null,null,null,null,null,null,null,{"$f":"IF(AND(H847<>\"\",H847<>\"رقم الشيك\"),COUNTIF('شيكات مجيرة'!$H$4:$H$996,'شيكات قيد التحصيل'!H847),\"0\")","v":"0"}]
[null,null,null,null,null,null,null,null,null,null,null,{"$f":"IF(AND(H848<>\"\",H848<>\"رقم الشيك\"),COUNTIF('شيكات مجيرة'!$H$4:$H$996,'شيكات قيد التحصيل'!H848),\"0\")","v":"0"}]
[null,null,null,null,null,null,null,null,null,null,null,{"$f":"IF(AND(H849<>\"\",H849<>\"رقم الشيك\"),COUNTIF('شيكات مجيرة'!$H$4:$H$996,'شيكات قيد التحصيل'!H849),\"0\")","v":"0"}]
[null,null,null,null,null,null,null,null,null,null,null,{"$f":"IF(AND(H850<>\"\",H850<>\"رقم الشيك\"),COUNTIF('شيكات مجيرة'!$H$4:$H$996,'شيكات قيد التحصيل'!H850),\"0\")","v":"0"}]
[null,null,null,null,null,null,null,null,null,null,null,{"$f":"IF(AND(H851<>\"\",H851<>\"رقم الشيك\"),COUNTIF('شيكات مجيرة'!$H$4:$H$996,'شيكات قيد التحصيل'!H851),\"0\")","v":"0"}]
[null,null,null,null,null,null,null,null,null,null,null,{"$f":"IF(AND(H852<>\"\",H852<>\"رقم الشيك\"),COUNTIF('شيكات مجيرة'!$H$4:$H$996,'شيكات قيد التحصيل'!H852),\"0\")","v":"0"}]
[null,null,null,null,null,null,null,null,null,null,null,{"$f":"IF(AND(H853<>\"\",H853<>\"رقم الشيك\"),COUNTIF('شيكات مجيرة'!$H$4:$H$996,'شيكات قيد التحصيل'!H853),\"0\")","v":"0"}]
[null,null,null,null,null,null,null,null,null,null,null,{"$f":"IF(AND(H854<>\"\",H854<>\"رقم الشيك\"),COUNTIF('شيكات مجيرة'!$H$4:$H$996,'شيكات قيد التحصيل'!H854),\"0\")","v":"0"}]
[null,null,null,null,null,null,null,null,null,null,null,{"$f":"IF(AND(H855<>\"\",H855<>\"رقم الشيك\"),COUNTIF('شيكات مجيرة'!$H$4:$H$996,'شيكات قيد التحصيل'!H855),\"0\")","v":"0"}]
[null,null,null,null,null,null,null,null,null,null,null,{"$f":"IF(AND(H856<>\"\",H856<>\"رقم الشيك\"),COUNTIF('شيكات مجيرة'!$H$4:$H$996,'شيكات قيد التحصيل'!H856),\"0\")","v":"0"}]
[null,null,null,null,null,null,null,null,null,null,null,{"$f":"IF(AND(H857<>\"\",H857<>\"رقم الشيك\"),COUNTIF('شيكات مجيرة'!$H$4:$H$996,'شيكات قيد التحصيل'!H857),\"0\")","v":"0"}]
[null,null,null,null,null,null,null,null,null,null,null,{"$f":"IF(AND(H858<>\"\",H858<>\"رقم الشيك\"),COUNTIF('شيكات مجيرة'!$H$4:$H$996,'شيكات قيد التحصيل'!H858),\"0\")","v":"0"}]
[null,null,null,null,null,null,null,null,null,null,null,{"$f":"IF(AND(H859<>\"\",H859<>\"رقم الشيك\"),COUNTIF('شيكات مجيرة'!$H$4:$H$996,'شيكات قيد التحصيل'!H859),\"0\")","v":"0"}]
[null,null,null,null,null,null,null,null,null,null,null,{"$f":"IF(AND(H860<>\"\",H860<>\"رقم الشيك\"),COUNTIF('شيكات مجيرة'!$H$4:$H$996,'شيكات قيد التحصيل'!H860),\"0\")","v":"0"}]
[null,null,null,null,null,null,null,null,null,null,null,{"$f":"IF(AND(H861<>\"\",H861<>\"رقم الشيك\"),COUNTIF('شيكات مجيرة'!$H$4:$H$996,'شيكات قيد التحصيل'!H861),\"0\")","v":"0"}]
[null,null,null,null,null,null,null,null,null,null,null,{"$f":"IF(AND(H862<>\"\",H862<>\"رقم الشيك\"),COUNTIF('شيكات مجيرة'!$H$4:$H$996,'شيكات قيد التحصيل'!H862),\"0\")","v":"0"}]
[null,null,null,null,null,null,null,null,null,null,null,{"$f":"IF(AND(H863<>\"\",H863<>\"رقم الشيك\"),COUNTIF('شيكات مجيرة'!$H$4:$H$996,'شيكات قيد التحصيل'!H863),\"0\")","v":"0"}]
[null,null,null,null,null,null,null,null,null,null,null,{"$f":"IF(AND(H864<>\"\",H864<>\"رقم الشيك\"),COUNTIF('شيكات مجيرة'!$H$4:$H$996,'شيكات قيد التحصيل'!H864),\"0\")","v":"0"}]
[null,null,null,null,null,null,null,null,null,null,null,{"$f":"IF(AND(H865<>\"\",H865<>\"رقم الشيك\"),COUNTIF('شيكات مجيرة'!$H$4:$H$996,'شيكات قيد التحصيل'!H865),\"0\")","v":"0"}]
[null,null,null,null,null,null,null,null,null,null,null,{"$f":"IF(AND(H866<>\"\",H866<>\"رقم الشيك\"),COUNTIF('شيكات مجيرة'!$H$4:$H$996,'شيكات قيد التحصيل'!H866),\"0\")","v":"0"}]
[null,null,null,null,null,null,null,null,null,null,null,{"$f":"IF(AND(H867<>\"\",H867<>\"رقم الشيك\"),COUNTIF('شيكات مجيرة'!$H$4:$H$996,'شيكات قيد التحصيل'!H867),\"0\")","v":"0"}]
[null,null,null,null,null,null,null,null,null,null,null,{"$f":"IF(AND(H868<>\"\",H868<>\"رقم الشيك\"),COUNTIF('شيكات مجيرة'!$H$4:$H$996,'شيكات قيد التحصيل'!H868),\"0\")","v":"0"}]
[null,null,null,null,null,null,null,null,null,null,null,{"$f":"IF(AND(H869<>\"\",H869<>\"رقم الشيك\"),COUNTIF('شيكات مجيرة'!$H$4:$H$996,'شيكات قيد التحصيل'!H869),\"0\")","v":"0"}]
[null,null,null,null,null,null,null,null,null,null,null,{"$f":"IF(AND(H870<>\"\",H870<>\"رقم الشيك\"),COUNTIF('شيكات مجيرة'!$H$4:$H$996,'شيكات قيد التحصيل'!H870),\"0\")","v":"0"}]
[null,null,null,null,null,null,null,null,null,null,null,{"$f":"IF(AND(H871<>\"\",H871<>\"رقم الشيك\"),COUNTIF('شيكات مجيرة'!$H$4:$H$996,'شيكات قيد التحصيل'!H871),\"0\")","v":"0"}]
[null,null,null,null,null,null,null,null,null,null,null,{"$f":"IF(AND(H872<>\"\",H872<>\"رقم الشيك\"),COUNTIF('شيكات مجيرة'!$H$4:$H$996,'شيكات قيد التحصيل'!H872),\"0\")","v":"0"}]
[null,null,null,null,null,null,null,null,null,null,null,{"$f":"IF(AND(H873<>\"\",H873<>\"رقم الشيك\"),COUNTIF('شيكات مجيرة'!$H$4:$H$996,'شيكات قيد التحصيل'!H873),\"0\")","v":"0"}]
[null,null,null,null,null,null,null,null,null,null,null,{"$f":"IF(AND(H874<>\"\",H874<>\"رقم الشيك\"),COUNTIF('شيكات مجيرة'!$H$4:$H$996,'شيكات قيد التحصيل'!H874),\"0\")","v":"0"}]
[null,null,null,null,null,null,null,null,null,null,null,{"$f":"IF(AND(H875<>\"\",H875<>\"رقم الشيك\"),COUNTIF('شيكات مجيرة'!$H$4:$H$996,'شيكات قيد التحصيل'!H875),\"0\")","v":"0"}]
[null,null,null,null,null,null,null,null,null,null,null,{"$f":"IF(AND(H876<>\"\",H876<>\"رقم الشيك\"),COUNTIF('شيكات مجيرة'!$H$4:$H$996,'شيكات قيد التحصيل'!H876),\"0\")","v":"0"}]
[null,null,null,null,null,null,null,null,null,null,null,{"$f":"IF(AND(H877<>\"\",H877<>\"رقم الشيك\"),COUNTIF('شيكات مجيرة'!$H$4:$H$996,'شيكات قيد التحصيل'!H877),\"0\")","v":"0"}]
[null,null,null,null,null,null,null,null,null,null,null,{"$f":"IF(AND(H878<>\"\",H878<>\"رقم الشيك\"),COUNTIF('شيكات مجيرة'!$H$4:$H$996,'شيكات قيد التحصيل'!H878),\"0\")","v":"0"}]
[null,null,null,null,null,null,null,null,null,null,null,{"$f":"IF(AND(H879<>\"\",H879<>\"رقم الشيك\"),COUNTIF('شيكات مجيرة'!$H$4:$H$996,'شيكات قيد التحصيل'!H879),\"0\")","v":"0"}]
[null,null,null,null,null,null,null,null,null,null,null,{"$f":"IF(AND(H880<>\"\",H880<>\"رقم الشيك\"),COUNTIF('شيكات مجيرة'!$H$4:$H$996,'شيكات قيد التحصيل'!H880),\"0\")","v":"0"}]
[null,null,null,null,null,null,null,null,null,null,null,{"$f":"IF(AND(H881<>\"\",H881<>\"رقم الشيك\"),COUNTIF('شيكات مجيرة'!$H$4:$H$996,'شيكات قيد التحصيل'!H881),\"0\")","v":"0"}]
[null,null,null,null,null,null,null,null,null,null,null,{"$f":"IF(AND(H882<>\"\",H882<>\"رقم الشيك\"),COUNTIF('شيكات مجيرة'!$H$4:$H$996,'شيكات قيد التحصيل'!H882),\"0\")","v":"0"}]
[null,null,null,null,null,null,null,null,null,null,null,{"$f":"IF(AND(H883<>\"\",H883<>\"رقم الشيك\"),COUNTIF('شيكات مجيرة'!$H$4:$H$996,'شيكات قيد التحصيل'!H883),\"0\")","v":"0"}]
[null,null,null,null,null,null,null,null,null,null,null,{"$f":"IF(AND(H884<>\"\",H884<>\"رقم الشيك\"),COUNTIF('شيكات مجيرة'!$H$4:$H$996,'شيكات قيد التحصيل'!H884),\"0\")","v":"0"}]
[null,null,null,null,null,null,null,null,null,null,null,{"$f":"IF(AND(H885<>\"\",H885<>\"رقم الشيك\"),COUNTIF('شيكات مجيرة'!$H$4:$H$996,'شيكات قيد التحصيل'!H885),\"0\")","v":"0"}]
[null,null,null,null,null,null,null,null,null,null,null,{"$f":"IF(AND(H886<>\"\",H886<>\"رقم الشيك\"),COUNTIF('شيكات مجيرة'!$H$4:$H$996,'شيكات قيد التحصيل'!H886),\"0\")","v":"0"}]
[null,null,null,null,null,null,null,null,null,null,null,{"$f":"IF(AND(H887<>\"\",H887<>\"رقم الشيك\"),COUNTIF('شيكات مجيرة'!$H$4:$H$996,'شيكات قيد التحصيل'!H887),\"0\")","v":"0"}]
[null,null,null,null,null,null,null,null,null,null,null,{"$f":"IF(AND(H888<>\"\",H888<>\"رقم الشيك\"),COUNTIF('شيكات مجيرة'!$H$4:$H$996,'شيكات قيد التحصيل'!H888),\"0\")","v":"0"}]
[null,null,null,null,null,null,null,null,null,null,null,{"$f":"IF(AND(H889<>\"\",H889<>\"رقم الشيك\"),COUNTIF('شيكات مجيرة'!$H$4:$H$996,'شيكات قيد التحصيل'!H889),\"0\")","v":"0"}]
[null,null,null,null,null,null,null,null,null,null,null,{"$f":"IF(AND(H890<>\"\",H890<>\"رقم الشيك\"),COUNTIF('شيكات مجيرة'!$H$4:$H$996,'شيكات قيد التحصيل'!H890),\"0\")","v":"0"}]
[null,null,null,null,null,null,null,null,null,null,null,{"$f":"IF(AND(H891<>\"\",H891<>\"رقم الشيك\"),COUNTIF('شيكات مجيرة'!$H$4:$H$996,'شيكات قيد التحصيل'!H891),\"0\")","v":"0"}]
[null,null,null,null,null,null,null,null,null,null,null,{"$f":"IF(AND(H892<>\"\",H892<>\"رقم الشيك\"),COUNTIF('شيكات مجيرة'!$H$4:$H$996,'شيكات قيد التحصيل'!H892),\"0\")","v":"0"}]
[null,null,null,null,null,null,null,null,null,null,null,{"$f":"IF(AND(H893<>\"\",H893<>\"رقم الشيك\"),COUNTIF('شيكات مجيرة'!$H$4:$H$996,'شيكات قيد التحصيل'!H893),\"0\")","v":"0"}]
[null,null,null,null,null,null,null,null,null,null,null,{"$f":"IF(AND(H894<>\"\",H894<>\"رقم الشيك\"),COUNTIF('شيكات مجيرة'!$H$4:$H$996,'شيكات قيد التحصيل'!H894),\"0\")","v":"0"}]
[null,null,null,null,null,null,null,null,null,null,null,{"$f":"IF(AND(H895<>\"\",H895<>\"رقم الشيك\"),COUNTIF('شيكات مجيرة'!$H$4:$H$996,'شيكات قيد التحصيل'!H895),\"0\")","v":"0"}]
[null,null,null,null,null,null,null,null,null,null,null,{"$f":"IF(AND(H896<>\"\",H896<>\"رقم الشيك\"),COUNTIF('شيكات مجيرة'!$H$4:$H$996,'شيكات قيد التحصيل'!H896),\"0\")","v":"0"}]
[null,null,null,null,null,null,null,null,null,null,null,{"$f":"IF(AND(H897<>\"\",H897<>\"رقم الشيك\"),COUNTIF('شيكات مجيرة'!$H$4:$H$996,'شيكات قيد التحصيل'!H897),\"0\")","v":"0"}]
[null,null,null,null,null,null,null,null,null,null,null,{"$f":"IF(AND(H898<>\"\",H898<>\"رقم الشيك\"),COUNTIF('شيكات مجيرة'!$H$4:$H$996,'شيكات قيد التحصيل'!H898),\"0\")","v":"0"}]
[null,null,null,null,null,null,null,null,null,null,null,{"$f":"IF(AND(H899<>\"\",H899<>\"رقم الشيك\"),COUNTIF('شيكات مجيرة'!$H$4:$H$996,'شيكات قيد التحصيل'!H899),\"0\")","v":"0"}]
[null,null,null,null,null,null,null,null,null,null,null,{"$f":"IF(AND(H900<>\"\",H900<>\"رقم الشيك\"),COUNTIF('شيكات مجيرة'!$H$4:$H$996,'شيكات قيد التحصيل'!H900),\"0\")","v":"0"}]
[null,null,null,null,null,null,null,null,null,null,null,{"$f":"IF(AND(H901<>\"\",H901<>\"رقم الشيك\"),COUNTIF('شيكات مجيرة'!$H$4:$H$996,'شيكات قيد التحصيل'!H901),\"0\")","v":"0"}]
[null,null,null,null,null,null,null,null,null,null,null,{"$f":"IF(AND(H902<>\"\",H902<>\"رقم الشيك\"),COUNTIF('شيكات مجيرة'!$H$4:$H$996,'شيكات قيد التحصيل'!H902),\"0\")","v":"0"}]
[null,null,null,null,null,null,null,null,null,null,null,{"$f":"IF(AND(H903<>\"\",H903<>\"رقم الشيك\"),COUNTIF('شيكات مجيرة'!$H$4:$H$996,'شيكات قيد التحصيل'!H903),\"0\")","v":"0"}]
[null,null,null,null,null,null,null,null,null,null,null,{"$f":"IF(AND(H904<>\"\",H904<>\"رقم الشيك\"),COUNTIF('شيكات مجيرة'!$H$4:$H$996,'شيكات قيد التحصيل'!H904),\"0\")","v":"0"}]
[null,null,null,null,null,null,null,null,null,null,null,{"$f":"IF(AND(H905<>\"\",H905<>\"رقم الشيك\"),COUNTIF('شيكات مجيرة'!$H$4:$H$996,'شيكات قيد التحصيل'!H905),\"0\")","v":"0"}]
[null,null,null,null,null,null,null,null,null,null,null,{"$f":"IF(AND(H906<>\"\",H906<>\"رقم الشيك\"),COUNTIF('شيكات مجيرة'!$H$4:$H$996,'شيكات قيد التحصيل'!H906),\"0\")","v":"0"}]
[null,null,null,null,null,null,null,null,null,null,null,{"$f":"IF(AND(H907<>\"\",H907<>\"رقم الشيك\"),COUNTIF('شيكات مجيرة'!$H$4:$H$996,'شيكات قيد التحصيل'!H907),\"0\")","v":"0"}]
[null,null,null,null,null,null,null,null,null,null,null,{"$f":"IF(AND(H908<>\"\",H908<>\"رقم الشيك\"),COUNTIF('شيكات مجيرة'!$H$4:$H$996,'شيكات قيد التحصيل'!H908),\"0\")","v":"0"}]
[null,null,null,null,null,null,null,null,null,null,null,{"$f":"IF(AND(H909<>\"\",H909<>\"رقم الشيك\"),COUNTIF('شيكات مجيرة'!$H$4:$H$996,'شيكات قيد التحصيل'!H909),\"0\")","v":"0"}]
[null,null,null,null,null,null,null,null,null,null,null,{"$f":"IF(AND(H910<>\"\",H910<>\"رقم الشيك\"),COUNTIF('شيكات مجيرة'!$H$4:$H$996,'شيكات قيد التحصيل'!H910),\"0\")","v":"0"}]
[null,null,null,null,null,null,null,null,null,null,null,{"$f":"IF(AND(H911<>\"\",H911<>\"رقم الشيك\"),COUNTIF('شيكات مجيرة'!$H$4:$H$996,'شيكات قيد التحصيل'!H911),\"0\")","v":"0"}]
[null,null,null,null,null,null,null,null,null,null,null,{"$f":"IF(AND(H912<>\"\",H912<>\"رقم الشيك\"),COUNTIF('شيكات مجيرة'!$H$4:$H$996,'شيكات قيد التحصيل'!H912),\"0\")","v":"0"}]
[null,null,null,null,null,null,null,null,null,null,null,{"$f":"IF(AND(H913<>\"\",H913<>\"رقم الشيك\"),COUNTIF('شيكات مجيرة'!$H$4:$H$996,'شيكات قيد التحصيل'!H913),\"0\")","v":"0"}]
[null,null,null,null,null,null,null,null,null,null,null,{"$f":"IF(AND(H914<>\"\",H914<>\"رقم الشيك\"),COUNTIF('شيكات مجيرة'!$H$4:$H$996,'شيكات قيد التحصيل'!H914),\"0\")","v":"0"}]
[null,null,null,null,null,null,null,null,null,null,null,{"$f":"IF(AND(H915<>\"\",H915<>\"رقم الشيك\"),COUNTIF('شيكات مجيرة'!$H$4:$H$996,'شيكات قيد التحصيل'!H915),\"0\")","v":"0"}]
[null,null,null,null,null,null,null,null,null,null,null,{"$f":"IF(AND(H916<>\"\",H916<>\"رقم الشيك\"),COUNTIF('شيكات مجيرة'!$H$4:$H$996,'شيكات قيد التحصيل'!H916),\"0\")","v":"0"}]
[null,null,null,null,null,null,null,null,null,null,null,{"$f":"IF(AND(H917<>\"\",H917<>\"رقم الشيك\"),COUNTIF('شيكات مجيرة'!$H$4:$H$996,'شيكات قيد التحصيل'!H917),\"0\")","v":"0"}]
[null,null,null,null,null,null,null,null,null,null,null,{"$f":"IF(AND(H918<>\"\",H918<>\"رقم الشيك\"),COUNTIF('شيكات مجيرة'!$H$4:$H$996,'شيكات قيد التحصيل'!H918),\"0\")","v":"0"}]
[null,null,null,null,null,null,null,null,null,null,null,{"$f":"IF(AND(H919<>\"\",H919<>\"رقم الشيك\"),COUNTIF('شيكات مجيرة'!$H$4:$H$996,'شيكات قيد التحصيل'!H919),\"0\")","v":"0"}]
[null,null,null,null,null,null,null,null,null,null,null,{"$f":"IF(AND(H920<>\"\",H920<>\"رقم الشيك\"),COUNTIF('شيكات مجيرة'!$H$4:$H$996,'شيكات قيد التحصيل'!H920),\"0\")","v":"0"}]
[null,null,null,null,null,null,null,null,null,null,null,{"$f":"IF(AND(H921<>\"\",H921<>\"رقم الشيك\"),COUNTIF('شيكات مجيرة'!$H$4:$H$996,'شيكات قيد التحصيل'!H921),\"0\")","v":"0"}]
[null,null,null,null,null,null,null,null,null,null,null,{"$f":"IF(AND(H922<>\"\",H922<>\"رقم الشيك\"),COUNTIF('شيكات مجيرة'!$H$4:$H$996,'شيكات قيد التحصيل'!H922),\"0\")","v":"0"}]
[null,null,null,null,null,null,null,null,null,null,null,{"$f":"IF(AND(H923<>\"\",H923<>\"رقم الشيك\"),COUNTIF('شيكات مجيرة'!$H$4:$H$996,'شيكات قيد التحصيل'!H923),\"0\")","v":"0"}]
[null,null,null,null,null,null,null,null,null,null,null,{"$f":"IF(AND(H924<>\"\",H924<>\"رقم الشيك\"),COUNTIF('شيكات مجيرة'!$H$4:$H$996,'شيكات قيد التحصيل'!H924),\"0\")","v":"0"}]
[null,null,null,null,null,null,null,null,null,null,null,{"$f":"IF(AND(H925<>\"\",H925<>\"رقم الشيك\"),COUNTIF('شيكات مجيرة'!$H$4:$H$996,'شيكات قيد التحصيل'!H925),\"0\")","v":"0"}]
[null,null,null,null,null,null,null,null,null,null,null,{"$f":"IF(AND(H926<>\"\",H926<>\"رقم الشيك\"),COUNTIF('شيكات مجيرة'!$H$4:$H$996,'شيكات قيد التحصيل'!H926),\"0\")","v":"0"}]
[null,null,null,null,null,null,null,null,null,null,null,{"$f":"IF(AND(H927<>\"\",H927<>\"رقم الشيك\"),COUNTIF('شيكات مجيرة'!$H$4:$H$996,'شيكات قيد التحصيل'!H927),\"0\")","v":"0"}]
[null,null,null,null,null,null,null,null,null,null,null,{"$f":"IF(AND(H928<>\"\",H928<>\"رقم الشيك\"),COUNTIF('شيكات مجيرة'!$H$4:$H$996,'شيكات قيد التحصيل'!H928),\"0\")","v":"0"}]
[null,null,null,null,null,null,null,null,null,null,null,{"$f":"IF(AND(H929<>\"\",H929<>\"رقم الشيك\"),COUNTIF('شيكات مجيرة'!$H$4:$H$996,'شيكات قيد التحصيل'!H929),\"0\")","v":"0"}]
[null,null,null,null,null,null,null,null,null,null,null,{"$f":"IF(AND(H930<>\"\",H930<>\"رقم الشيك\"),COUNTIF('شيكات مجيرة'!$H$4:$H$996,'شيكات قيد التحصيل'!H930),\"0\")","v":"0"}]
[null,null,null,null,null,null,null,null,null,null,null,{"$f":"IF(AND(H931<>\"\",H931<>\"رقم الشيك\"),COUNTIF('شيكات مجيرة'!$H$4:$H$996,'شيكات قيد التحصيل'!H931),\"0\")","v":"0"}]
[null,null,null,null,null,null,null,null,null,null,null,{"$f":"IF(AND(H932<>\"\",H932<>\"رقم الشيك\"),COUNTIF('شيكات مجيرة'!$H$4:$H$996,'شيكات قيد التحصيل'!H932),\"0\")","v":"0"}]
[null,null,null,null,null,null,null,null,null,null,null,{"$f":"IF(AND(H933<>\"\",H933<>\"رقم الشيك\"),COUNTIF('شيكات مجيرة'!$H$4:$H$996,'شيكات قيد التحصيل'!H933),\"0\")","v":"0"}]
[null,null,null,null,null,null,null,null,null,null,null,{"$f":"IF(AND(H934<>\"\",H934<>\"رقم الشيك\"),COUNTIF('شيكات مجيرة'!$H$4:$H$996,'شيكات قيد التحصيل'!H934),\"0\")","v":"0"}]
[null,null,null,null,null,null,null,null,null,null,null,{"$f":"IF(AND(H935<>\"\",H935<>\"رقم الشيك\"),COUNTIF('شيكات مجيرة'!$H$4:$H$996,'شيكات قيد التحصيل'!H935),\"0\")","v":"0"}]
[null,null,null,null,null,null,null,null,null,null,null,{"$f":"IF(AND(H936<>\"\",H936<>\"رقم الشيك\"),COUNTIF('شيكات مجيرة'!$H$4:$H$996,'شيكات قيد التحصيل'!H936),\"0\")","v":"0"}]
[null,null,null,null,null,null,null,null,null,null,null,{"$f":"IF(AND(H937<>\"\",H937<>\"رقم الشيك\"),COUNTIF('شيكات مجيرة'!$H$4:$H$996,'شيكات قيد التحصيل'!H937),\"0\")","v":"0"}]
[null,null,null,null,null,null,null,null,null,null,null,{"$f":"IF(AND(H938<>\"\",H938<>\"رقم الشيك\"),COUNTIF('شيكات مجيرة'!$H$4:$H$996,'شيكات قيد التحصيل'!H938),\"0\")","v":"0"}]
[null,null,null,null,null,null,null,null,null,null,null,{"$f":"IF(AND(H939<>\"\",H939<>\"رقم الشيك\"),COUNTIF('شيكات مجيرة'!$H$4:$H$996,'شيكات قيد التحصيل'!H939),\"0\")","v":"0"}]
[null,null,null,null,null,null,null,null,null,null,null,{"$f":"IF(AND(H940<>\"\",H940<>\"رقم الشيك\"),COUNTIF('شيكات مجيرة'!$H$4:$H$996,'شيكات قيد التحصيل'!H940),\"0\")","v":"0"}]
[null,null,null,null,null,null,null,null,null,null,null,{"$f":"IF(AND(H941<>\"\",H941<>\"رقم الشيك\"),COUNTIF('شيكات مجيرة'!$H$4:$H$996,'شيكات قيد التحصيل'!H941),\"0\")","v":"0"}]
[null,null,null,null,null,null,null,null,null,null,null,{"$f":"IF(AND(H942<>\"\",H942<>\"رقم الشيك\"),COUNTIF('شيكات مجيرة'!$H$4:$H$996,'شيكات قيد التحصيل'!H942),\"0\")","v":"0"}]
[null,null,null,null,null,null,null,null,null,null,null,{"$f":"IF(AND(H943<>\"\",H943<>\"رقم الشيك\"),COUNTIF('شيكات مجيرة'!$H$4:$H$996,'شيكات قيد التحصيل'!H943),\"0\")","v":"0"}]
[null,null,null,null,null,null,null,null,null,null,null,{"$f":"IF(AND(H944<>\"\",H944<>\"رقم الشيك\"),COUNTIF('شيكات مجيرة'!$H$4:$H$996,'شيكات قيد التحصيل'!H944),\"0\")","v":"0"}]
[null,null,null,null,null,null,null,null,null,null,null,{"$f":"IF(AND(H945<>\"\",H945<>\"رقم الشيك\"),COUNTIF('شيكات مجيرة'!$H$4:$H$996,'شيكات قيد التحصيل'!H945),\"0\")","v":"0"}]
[null,null,null,null,null,null,null,null,null,null,null,{"$f":"IF(AND(H946<>\"\",H946<>\"رقم الشيك\"),COUNTIF('شيكات مجيرة'!$H$4:$H$996,'شيكات قيد التحصيل'!H946),\"0\")","v":"0"}]
[null,null,null,null,null,null,null,null,null,null,null,{"$f":"IF(AND(H947<>\"\",H947<>\"رقم الشيك\"),COUNTIF('شيكات مجيرة'!$H$4:$H$996,'شيكات قيد التحصيل'!H947),\"0\")","v":"0"}]
[null,null,null,null,null,null,null,null,null,null,null,{"$f":"IF(AND(H948<>\"\",H948<>\"رقم الشيك\"),COUNTIF('شيكات مجيرة'!$H$4:$H$996,'شيكات قيد التحصيل'!H948),\"0\")","v":"0"}]
[null,null,null,null,null,null,null,null,null,null,null,{"$f":"IF(AND(H949<>\"\",H949<>\"رقم الشيك\"),COUNTIF('شيكات مجيرة'!$H$4:$H$996,'شيكات قيد التحصيل'!H949),\"0\")","v":"0"}]
[null,null,null,null,null,null,null,null,null,null,null,{"$f":"IF(AND(H950<>\"\",H950<>\"رقم الشيك\"),COUNTIF('شيكات مجيرة'!$H$4:$H$996,'شيكات قيد التحصيل'!H950),\"0\")","v":"0"}]
[null,null,null,null,null,null,null,null,null,null,null,{"$f":"IF(AND(H951<>\"\",H951<>\"رقم الشيك\"),COUNTIF('شيكات مجيرة'!$H$4:$H$996,'شيكات قيد التحصيل'!H951),\"0\")","v":"0"}]
[null,null,null,null,null,null,null,null,null,null,null,{"$f":"IF(AND(H952<>\"\",H952<>\"رقم الشيك\"),COUNTIF('شيكات مجيرة'!$H$4:$H$996,'شيكات قيد التحصيل'!H952),\"0\")","v":"0"}]
[null,null,null,null,null,null,null,null,null,null,null,{"$f":"IF(AND(H953<>\"\",H953<>\"رقم الشيك\"),COUNTIF('شيكات مجيرة'!$H$4:$H$996,'شيكات قيد التحصيل'!H953),\"0\")","v":"0"}]
[null,null,null,null,null,null,null,null,null,null,null,{"$f":"IF(AND(H954<>\"\",H954<>\"رقم الشيك\"),COUNTIF('شيكات مجيرة'!$H$4:$H$996,'شيكات قيد التحصيل'!H954),\"0\")","v":"0"}]
[null,null,null,null,null,null,null,null,null,null,null,{"$f":"IF(AND(H955<>\"\",H955<>\"رقم الشيك\"),COUNTIF('شيكات مجيرة'!$H$4:$H$996,'شيكات قيد التحصيل'!H955),\"0\")","v":"0"}]
[null,null,null,null,null,null,null,null,null,null,null,{"$f":"IF(AND(H956<>\"\",H956<>\"رقم الشيك\"),COUNTIF('شيكات مجيرة'!$H$4:$H$996,'شيكات قيد التحصيل'!H956),\"0\")","v":"0"}]
[null,null,null,null,null,null,null,null,null,null,null,{"$f":"IF(AND(H957<>\"\",H957<>\"رقم الشيك\"),COUNTIF('شيكات مجيرة'!$H$4:$H$996,'شيكات قيد التحصيل'!H957),\"0\")","v":"0"}]
[null,null,null,null,null,null,null,null,null,null,null,{"$f":"IF(AND(H958<>\"\",H958<>\"رقم الشيك\"),COUNTIF('شيكات مجيرة'!$H$4:$H$996,'شيكات قيد التحصيل'!H958),\"0\")","v":"0"}]
[null,null,null,null,null,null,null,null,null,null,null,{"$f":"IF(AND(H959<>\"\",H959<>\"رقم الشيك\"),COUNTIF('شيكات مجيرة'!$H$4:$H$996,'شيكات قيد التحصيل'!H959),\"0\")","v":"0"}]
[null,null,null,null,null,null,null,null,null,null,null,{"$f":"IF(AND(H960<>\"\",H960<>\"رقم الشيك\"),COUNTIF('شيكات مجيرة'!$H$4:$H$996,'شيكات قيد التحصيل'!H960),\"0\")","v":"0"}]
[null,null,null,null,null,null,null,null,null,null,null,{"$f":"IF(AND(H961<>\"\",H961<>\"رقم الشيك\"),COUNTIF('شيكات مجيرة'!$H$4:$H$996,'شيكات قيد التحصيل'!H961),\"0\")","v":"0"}]
[null,null,null,null,null,null,null,null,null,null,null,{"$f":"IF(AND(H962<>\"\",H962<>\"رقم الشيك\"),COUNTIF('شيكات مجيرة'!$H$4:$H$996,'شيكات قيد التحصيل'!H962),\"0\")","v":"0"}]
[null,null,null,null,null,null,null,null,null,null,null,{"$f":"IF(AND(H963<>\"\",H963<>\"رقم الشيك\"),COUNTIF('شيكات مجيرة'!$H$4:$H$996,'شيكات قيد التحصيل'!H963),\"0\")","v":"0"}]
[null,null,null,null,null,null,null,null,null,null,null,{"$f":"IF(AND(H964<>\"\",H964<>\"رقم الشيك\"),COUNTIF('شيكات مجيرة'!$H$4:$H$996,'شيكات قيد التحصيل'!H964),\"0\")","v":"0"}]
[null,null,null,null,null,null,null,null,null,null,null,{"$f":"IF(AND(H965<>\"\",H965<>\"رقم الشيك\"),COUNTIF('شيكات مجيرة'!$H$4:$H$996,'شيكات قيد التحصيل'!H965),\"0\")","v":"0"}]
[null,null,null,null,null,null,null,null,null,null,null,{"$f":"IF(AND(H966<>\"\",H966<>\"رقم الشيك\"),COUNTIF('شيكات مجيرة'!$H$4:$H$996,'شيكات قيد التحصيل'!H966),\"0\")","v":"0"}]
[null,null,null,null,null,null,null,null,null,null,null,{"$f":"IF(AND(H967<>\"\",H967<>\"رقم الشيك\"),COUNTIF('شيكات مجيرة'!$H$4:$H$996,'شيكات قيد التحصيل'!H967),\"0\")","v":"0"}]
[null,null,null,null,null,null,null,null,null,null,null,{"$f":"IF(AND(H968<>\"\",H968<>\"رقم الشيك\"),COUNTIF('شيكات مجيرة'!$H$4:$H$996,'شيكات قيد التحصيل'!H968),\"0\")","v":"0"}]
[null,null,null,null,null,null,null,null,null,null,null,{"$f":"IF(AND(H969<>\"\",H969<>\"رقم الشيك\"),COUNTIF('شيكات مجيرة'!$H$4:$H$996,'شيكات قيد التحصيل'!H969),\"0\")","v":"0"}]
[null,null,null,null,null,null,null,null,null,null,null,{"$f":"IF(AND(H970<>\"\",H970<>\"رقم الشيك\"),COUNTIF('شيكات مجيرة'!$H$4:$H$996,'شيكات قيد التحصيل'!H970),\"0\")","v":"0"}]
[null,null,null,null,null,null,null,null,null,null,null,{"$f":"IF(AND(H971<>\"\",H971<>\"رقم الشيك\"),COUNTIF('شيكات مجيرة'!$H$4:$H$996,'شيكات قيد التحصيل'!H971),\"0\")","v":"0"}]
[null,null,null,null,null,null,null,null,null,null,null,{"$f":"IF(AND(H972<>\"\",H972<>\"رقم الشيك\"),COUNTIF('شيكات مجيرة'!$H$4:$H$996,'شيكات قيد التحصيل'!H972),\"0\")","v":"0"}]
[null,null,null,null,null,null,null,null,null,null,null,{"$f":"IF(AND(H973<>\"\",H973<>\"رقم الشيك\"),COUNTIF('شيكات مجيرة'!$H$4:$H$996,'شيكات قيد التحصيل'!H973),\"0\")","v":"0"}]
[null,null,null,null,null,null,null,null,null,null,null,{"$f":"IF(AND(H974<>\"\",H974<>\"رقم الشيك\"),COUNTIF('شيكات مجيرة'!$H$4:$H$996,'شيكات قيد التحصيل'!H974),\"0\")","v":"0"}]
[null,null,null,null,null,null,null,null,null,null,null,{"$f":"IF(AND(H975<>\"\",H975<>\"رقم الشيك\"),COUNTIF('شيكات مجيرة'!$H$4:$H$996,'شيكات قيد التحصيل'!H975),\"0\")","v":"0"}]
[null,null,null,null,null,null,null,null,null,null,null,{"$f":"IF(AND(H976<>\"\",H976<>\"رقم الشيك\"),COUNTIF('شيكات مجيرة'!$H$4:$H$996,'شيكات قيد التحصيل'!H976),\"0\")","v":"0"}]
[null,null,null,null,null,null,null,null,null,null,null,{"$f":"IF(AND(H977<>\"\",H977<>\"رقم الشيك\"),COUNTIF('شيكات مجيرة'!$H$4:$H$996,'شيكات قيد التحصيل'!H977),\"0\")","v":"0"}]
[null,null,null,null,null,null,null,null,null,null,null,{"$f":"IF(AND(H978<>\"\",H978<>\"رقم الشيك\"),COUNTIF('شيكات مجيرة'!$H$4:$H$996,'شيكات قيد التحصيل'!H978),\"0\")","v":"0"}]
[null,null,null,null,null,null,null,null,null,null,null,{"$f":"IF(AND(H979<>\"\",H979<>\"رقم الشيك\"),COUNTIF('شيكات مجيرة'!$H$4:$H$996,'شيكات قيد التحصيل'!H979),\"0\")","v":"0"}]
[null,null,null,null,null,null,null,null,null,null,null,{"$f":"IF(AND(H980<>\"\",H980<>\"رقم الشيك\"),COUNTIF('شيكات مجيرة'!$H$4:$H$996,'شيكات قيد التحصيل'!H980),\"0\")","v":"0"}]
[null,null,null,null,null,null,null,null,null,null,null,{"$f":"IF(AND(H981<>\"\",H981<>\"رقم الشيك\"),COUNTIF('شيكات مجيرة'!$H$4:$H$996,'شيكات قيد التحصيل'!H981),\"0\")","v":"0"}]
[null,null,null,null,null,null,null,null,null,null,null,{"$f":"IF(AND(H982<>\"\",H982<>\"رقم الشيك\"),COUNTIF('شيكات مجيرة'!$H$4:$H$996,'شيكات قيد التحصيل'!H982),\"0\")","v":"0"}]
[null,null,null,null,null,null,null,null,null,null,null,{"$f":"IF(AND(H983<>\"\",H983<>\"رقم الشيك\"),COUNTIF('شيكات مجيرة'!$H$4:$H$996,'شيكات قيد التحصيل'!H983),\"0\")","v":"0"}]
[null,null,null,null,null,null,null,null,null,null,null,{"$f":"IF(AND(H984<>\"\",H984<>\"رقم الشيك\"),COUNTIF('شيكات مجيرة'!$H$4:$H$996,'شيكات قيد التحصيل'!H984),\"0\")","v":"0"}]
[null,null,null,null,null,null,null,null,null,null,null,{"$f":"IF(AND(H985<>\"\",H985<>\"رقم الشيك\"),COUNTIF('شيكات مجيرة'!$H$4:$H$996,'شيكات قيد التحصيل'!H985),\"0\")","v":"0"}]
[null,null,null,null,null,null,null,null,null,null,null,{"$f":"IF(AND(H986<>\"\",H986<>\"رقم الشيك\"),COUNTIF('شيكات مجيرة'!$H$4:$H$996,'شيكات قيد التحصيل'!H986),\"0\")","v":"0"}]
[null,null,null,null,null,null,null,null,null,null,null,{"$f":"IF(AND(H987<>\"\",H987<>\"رقم الشيك\"),COUNTIF('شيكات مجيرة'!$H$4:$H$996,'شيكات قيد التحصيل'!H987),\"0\")","v":"0"}]
[null,null,null,null,null,null,null,null,null,null,null,{"$f":"IF(AND(H988<>\"\",H988<>\"رقم الشيك\"),COUNTIF('شيكات مجيرة'!$H$4:$H$996,'شيكات قيد التحصيل'!H988),\"0\")","v":"0"}]
[null,null,null,null,null,null,null,null,null,null,null,{"$f":"IF(AND(H989<>\"\",H989<>\"رقم الشيك\"),COUNTIF('شيكات مجيرة'!$H$4:$H$996,'شيكات قيد التحصيل'!H989),\"0\")","v":"0"}]
[null,null,null,null,null,null,null,null,null,null,null,{"$f":"IF(AND(H990<>\"\",H990<>\"رقم الشيك\"),COUNTIF('شيكات مجيرة'!$H$4:$H$996,'شيكات قيد التحصيل'!H990),\"0\")","v":"0"}]
[null,null,null,null,null,null,null,null,null,null,null,{"$f":"IF(AND(H991<>\"\",H991<>\"رقم الشيك\"),COUNTIF('شيكات مجيرة'!$H$4:$H$996,'شيكات قيد التحصيل'!H991),\"0\")","v":"0"}]
[null,null,null,null,null,null,null,null,null,null,null,{"$f":"IF(AND(H992<>\"\",H992<>\"رقم الشيك\"),COUNTIF('شيكات مجيرة'!$H$4:$H$996,'شيكات قيد التحصيل'!H992),\"0\")","v":"0"}]

{"sheet":"شيكات مجيرة","index":2,"n_rows":25,"n_cols":11,"rows_kept":25,"cut":false,"hidden":false,"merged":[]}
[null,null,null,null,null,null,"الوقت الان",null,{"$f":"NOW()","v":43903.980838773146},"←خاص الوقت المتبقي للصرف",{"$f":"NOW()","v":"2020-03-13T23:32:24.470"}]
["رقم ","اسم الزبون","نوع السيارة","لون السيارة","قوة المحرك","رقمها بالشراء","قيمة الشيك ","رقم الشيك","البنك","تاريخ الاستحقاق","اسم صاحب الشيك"]
[21,"محمد عايد محمد عوض","كيا مورنينج فتحه","بيج",1000,6,2200,70,"الاسلامي العربي","30/1/2021","محمد عايد محمد عوض يطا الحيله بجانب مدرسه الحيله 0502957643"]
["رقم ","اسم الزبون","نوع السيارة","لون السيارة","قوة المحرك","رقمها بالشراء","قيمة الشيك ","رقم الشيك","البنك","تاريخ الاستحقاق","اسم صاحب الشيك"]
[21,"خليل","بولو","بيج",1200,7,3000,501,"فلسطين","2020-03-30","خليل"]
["رقم ","اسم الزبون","نوع السيارة","لون السيارة","قوة المحرك","رقمها بالشراء","قيمة الشيك ","رقم الشيك","البنك","تاريخ الاستحقاق","اسم صاحب الشيك"]
[22,"خليل","بولو","بيج",1200,7,2000,502,"القدس","2020-04-30","خليل"]
["رقم ","اسم الزبون","نوع السيارة","لون السيارة","قوة المحرك","رقمها بالشراء","قيمة الشيك ","رقم الشيك","البنك","تاريخ الاستحقاق","اسم صاحب الشيك"]
[21,"محمد عايد محمد عوض","كيا مورنينج فتحه","بيج",1000,6,2200,70,"الاسلامي العربي","30/1/2021","محمد عايد محمد عوض يطا الحيله بجانب مدرسه الحيله 0502957643"]
[22,"محمد عايد محمد عوض","كيا مورنينج فتحه","بيج",1000,6,2500,501,"القاهرة عمان","28/2/2021","عيسى خليل محمود مخامرة يطا 0502957643"]
["رقم ","اسم الزبون","نوع السيارة","لون السيارة","قوة المحرك","رقمها بالشراء","قيمة الشيك ","رقم الشيك","البنك","تاريخ الاستحقاق","اسم صاحب الشيك"]
[22,"خليل","بولو","بيج",1200,7,2000,502,"القدس","2020-04-30","خليل"]
["رقم ","اسم الزبون","نوع السيارة","لون السيارة","قوة المحرك","رقمها بالشراء","قيمة الشيك ","رقم الشيك","البنك","تاريخ الاستحقاق","اسم صاحب الشيك"]
[21,"محمد عايد محمد عوض","كيا مورنينج فتحه","بيج",1000,6,2200,70,"الاسلامي العربي","30/1/2021","محمد عايد محمد عوض يطا الحيله بجانب مدرسه الحيله 0502957643"]
["رقم ","اسم الزبون","نوع السيارة","لون السيارة","قوة المحرك","رقمها بالشراء","قيمة الشيك ","رقم الشيك","البنك","تاريخ الاستحقاق","اسم صاحب الشيك"]
[22,"محمد عايد محمد عوض","كيا مورنينج فتحه","بيج",1000,6,2500,501,"القاهرة عمان","28/2/2021","عيسى خليل محمود مخامرة يطا 0502957643"]
["رقم ","اسم الزبون","نوع السيارة","لون السيارة","قوة المحرك","رقمها بالشراء","قيمة الشيك ","رقم الشيك","البنك","تاريخ الاستحقاق","اسم صاحب الشيك"]
[21,"خليل","بولو","بيج",1200,7,3000,501,"فلسطين","2020-03-30","خليل"]
["رقم ","اسم الزبون","نوع السيارة","لون السيارة","قوة المحرك","رقمها بالشراء","قيمة الشيك ","رقم الشيك","البنك","تاريخ الاستحقاق","اسم صاحب الشيك"]
[21,"محمد عايد محمد عوض","كيا مورنينج فتحه","بيج",1000,6,2200,70,"الاسلامي العربي","30/1/2021","محمد عايد محمد عوض يطا الحيله بجانب مدرسه الحيله 0502957643"]
["رقم ","اسم الزبون","نوع السيارة","لون السيارة","قوة المحرك","رقمها بالشراء","قيمة الشيك ","رقم الشيك","البنك","تاريخ الاستحقاق","اسم صاحب الشيك"]
[21,"محمد عايد محمد عوض","كيا مورنينج فتحه","بيج",1000,6,2200,70,"الاسلامي العربي","30/1/2021","محمد عايد محمد عوض يطا الحيله بجانب مدرسه الحيله 0502957643"]
[22,"محمد عايد محمد عوض","كيا مورنينج فتحه","بيج",1000,6,2500,501,"القاهرة عمان","28/2/2021","عيسى خليل محمود مخامرة يطا 0502957643"]
["رقم ","اسم الزبون","نوع السيارة","لون السيارة","قوة المحرك","رقمها بالشراء","قيمة الشيك ","رقم الشيك","البنك","تاريخ الاستحقاق","اسم صاحب الشيك"]
[22,"خليل","بولو","بيج",1200,7,2000,502,"القدس","2020-04-30","خليل"]

{"sheet":"تقرير الشيكات","index":3,"n_rows":17,"n_cols":11,"rows_kept":17,"cut":false,"hidden":false,"merged":[]}
[]
[null,"من  تاريخ","2020-01-01",null,null,null,"أولا-  ادخل الفترة  من --- الى ---- ستظهر قيمة شيكات الفتره "]
[null,"الى تاريخ","2020-01-10",null,null,null,null,null,null,null,"ثانيا- الصف السادس الذي يمثل رؤوس الاعمدة تابت لاتحاول  تغيره او إضافة صف قبله سيؤثر على الفرز مابعده يمكن الإضافة"]
[]
[null,"قيمة الشيكات للفترة المحددة",{"$f":"SUMIFS($G$7:$G$998,$J$7:$J$998,\">=\"&$C$2,$J$7:$J$998,\"<=\"&$C$3)","v":15601},null,null,null,null,null,null,null,"ثالثا- سيتم ترتيب الشيكات حسب تاريخ الصرف بعد تنشيط الورقة "]
["رقم الشيك","اسم الزبون","نوع السيارة","لون السيارة","قوة المحرك","رقمها بالشراء","قيمة الشيك ","رقم الشيك","البنك","تاريخ الاستحقاق","اسم صاحب الشيك"]
[2,"يونس","اوبيل","بيج",1000,8,3000,501,"القاهرة عمان","2020-01-01","عيسى خليل محمود مخامرة يطا 0502957643"]
[7,"كمال",null,null,null,null,1500,null,null,"2020-01-01"]
[2,"يونس","اوبيل","بيج",1000,8,3000,501,"القاهرة عمان","2020-01-01","عيسى خليل محمود مخامرة يطا 0502957643"]
[null,"كمال",null,null,null,null,1501,null,null,"2020-01-02"]
[1,"يوسف","كيا مورنينج فتحه","بيج",1000,6,2200,70,"الاسلامي العربي","2020-01-02","محمد عايد محمد عوض يطا الحيله بجانب مدرسه الحيله 0502957643"]
[1,"يوسف","كيا مورنينج فتحه","بيج",1000,6,2200,70,"الاسلامي العربي","2020-01-02","محمد عايد محمد عوض يطا الحيله بجانب مدرسه الحيله 0502957643"]
[1,"يوسف","كيا مورنينج فتحه","بيج",1000,6,2200,70,"الاسلامي العربي","2020-01-02","محمد عايد محمد عوض يطا الحيله بجانب مدرسه الحيله 0502957643"]
[4,"سامر","فورد","اخضر",3000,3,2000,14,"القدس","2020-02-14"]
[5,"احمد",null,null,null,null,2000,null,null,"2020-03-03"]
[3,"عدنان","كيا","احمر",2000,4,1500,80,"فلسطين","2020-03-05"]
[6,"محمود",null,null,null,null,3000,null,null,"2020-03-30"]